{"text_format":"1","workbook":"xlsx","n_sheets":13,"sheets":["Préparation de terrain","Régénération artificielle","Éducation de peuplement","Éclaircie commerciale EAF","Martelage","Travaux de planification","Dispersion UA_2017-2018","Versions du fichier","Calculs grille","Traitements admissibles","Menus","Formules","Majorations applicables"],"not_rendered":{"charts":0,"images":3,"macros":1,"external_links":1,"defined_names":109,"comments":0,"pivot_tables":0},"unopened":[],"bounds":{"document_bytes":16777216,"sheet_cells":100000,"rows_first":2000,"rows_last":500,"rows_between":2000,"halvings":0,"cell_chars":16384,"cell_head_chars":4096},"cells_cut":0,"cells_raw":0,"read":"whole","date_system":"1900"}

{"sheet":"Préparation de terrain","index":0,"n_rows":284,"n_cols":24,"rows_kept":284,"cut":false,"hidden":false,"merged":[[62,0,62,2],[63,0,63,2],[64,0,64,2],[65,0,65,2],[66,0,66,2],[67,0,67,2],[68,0,68,2],[79,0,79,2],[80,0,80,2],[247,0,247,5],[232,0,232,5],[113,0,113,6],[117,0,117,6],[116,0,116,6],[118,0,118,4],[147,0,147,5],[162,0,162,5],[177,0,177,5],[192,0,192,5],[207,0,207,5],[219,0,219,5],[163,0,163,5],[180,0,180,5],[178,0,178,5],[185,0,185,5],[153,0,153,5],[154,0,154,5],[194,0,194,5],[211,0,211,5],[203,0,203,5],[198,0,198,5],[199,0,199,5],[174,0,174,5],[127,1,127,3],[128,1,128,3],[129,1,129,3],[184,0,184,5],[149,0,149,5],[94,0,94,6],[107,0,107,6],[134,0,134,5],[108,0,108,5],[100,0,100,1],[96,2,96,3],[97,2,97,3],[98,2,98,3],[99,2,99,3],[148,0,148,5],[168,0,168,5],[167,0,167,5],[97,4,97,5],[98,4,98,5],[99,4,99,5],[95,0,95,1],[95,2,95,3],[100,4,100,5],[101,0,101,5],[202,0,202,5],[225,0,225,5],[195,0,195,5],[216,0,216,6],[215,0,215,5],[208,0,208,5],[221,0,221,5],[201,0,201,6],[224,0,224,5],[220,0,220,5],[0,0,0,6],[2,0,2,6],[3,0,3,6],[25,0,25,6],[15,0,15,1],[24,0,24,5],[10,0,10,6],[28,0,28,6],[16,0,16,6],[12,0,12,4],[19,1,19,3],[20,1,20,3],[22,1,22,3],[26,0,26,6],[4,0,4,5],[5,0,5,5],[6,0,6,5],[7,0,7,5],[8,0,8,5],[9,0,9,5],[1,0,1,5],[23,1,23,3],[249,0,249,5],[250,0,250,5],[76,0,76,6],[69,0,69,6],[78,0,78,6],[152,0,152,5],[156,0,156,6],[197,0,197,5],[126,1,126,3],[227,0,227,5],[228,0,228,6],[193,0,193,5],[200,0,200,5],[196,0,196,5],[212,0,212,5],[204,0,204,5],[205,0,205,5],[213,0,213,5],[155,0,155,5],[141,0,141,5],[142,0,142,5],[143,0,143,5],[144,0,144,5],[151,0,151,5],[41,0,41,6],[33,0,33,6],[27,0,27,6],[32,0,32,6],[61,0,61,6],[242,0,242,5],[206,0,206,5],[137,0,137,4],[138,0,138,4],[140,0,140,6],[86,0,86,6],[135,0,135,5],[102,0,102,6],[190,0,190,5],[172,0,172,5],[173,0,173,5],[170,0,170,5],[175,0,175,5],[176,0,176,5],[100,2,100,3],[164,0,164,5],[103,0,103,6],[109,0,109,5],[110,0,110,5],[267,0,267,4],[112,0,112,6],[218,0,218,5],[126,0,130,0],[125,0,125,5],[132,0,132,5],[131,0,131,6],[133,0,133,6],[122,0,122,5],[121,0,121,5],[123,0,123,6],[119,0,119,6],[217,0,217,5],[150,0,150,5],[231,0,231,5],[230,0,230,5],[229,0,229,5],[165,0,165,5],[161,0,161,5],[166,0,166,5],[261,0,261,5],[253,0,253,5],[236,0,236,5],[258,0,260,5],[90,0,90,1],[91,0,91,1],[169,0,169,5],[96,4,96,5],[269,2,270,4],[256,0,256,6],[234,0,234,5],[235,0,235,5],[130,1,130,5],[223,0,223,5],[252,0,252,5],[187,0,187,5],[171,0,171,6],[157,0,157,5],[158,0,158,5],[159,0,159,5],[160,0,160,5],[139,0,139,6],[186,0,186,6],[145,0,145,5],[264,0,264,5],[262,6,263,6],[262,0,263,5],[146,0,146,5],[254,0,254,5],[222,0,222,5],[136,0,136,6],[258,6,260,6],[257,0,257,6],[233,0,233,5],[240,0,240,5],[237,0,237,5],[241,0,241,6],[239,0,239,5],[214,0,214,5],[209,0,209,5],[179,0,179,5],[191,0,191,5],[255,0,255,5],[248,0,248,5],[246,0,246,5],[245,0,245,5],[244,0,244,5],[243,0,243,5],[181,0,181,5],[182,0,182,5],[183,0,183,5],[188,0,188,5],[189,0,189,5],[210,0,210,5],[238,0,238,5],[251,0,251,5],[42,0,42,6],[226,0,226,5],[124,0,124,5],[120,0,120,6],[106,0,106,6],[93,0,93,6],[126,4,129,4],[104,0,104,5],[111,0,111,5],[114,0,114,4],[115,0,115,4],[105,0,105,5],[96,0,96,1],[97,0,97,1],[98,0,98,1],[99,0,99,1],[95,4,95,5],[58,0,58,5],[92,0,92,1],[87,2,87,3],[29,0,29,5],[30,0,30,5],[31,0,31,5],[11,0,11,4],[13,0,13,5],[14,0,14,5],[15,2,15,6],[17,0,17,6],[18,1,18,2],[18,3,18,5],[52,4,52,5],[48,0,48,1],[48,2,48,3],[52,0,52,1],[53,4,53,5],[54,4,54,5],[55,4,55,5],[56,4,56,5],[57,4,57,5],[51,0,51,6],[48,4,48,5],[53,0,53,1],[54,0,54,1],[55,0,55,1],[56,0,56,1],[57,0,57,1],[52,2,52,3],[53,2,53,3],[54,2,54,3],[55,2,55,3],[56,2,56,3],[57,2,57,3],[46,4,46,5],[47,4,47,5],[43,0,43,1],[44,0,44,1],[45,0,45,1],[46,0,46,1],[47,0,47,1],[43,2,43,3],[44,2,44,3],[45,2,45,3],[46,2,46,3],[47,2,47,3],[60,0,60,6],[59,0,59,6],[90,2,90,3],[91,2,91,3],[92,2,92,3],[87,4,87,5],[88,4,88,5],[89,4,89,5],[90,4,90,5],[91,4,91,5],[92,4,92,5],[70,4,70,5],[71,4,71,5],[72,4,72,5],[73,4,73,5],[74,4,74,5],[75,4,75,5],[70,2,70,3],[71,2,71,3],[72,2,72,3],[73,2,73,3],[74,2,74,3],[75,2,75,3],[87,0,87,1],[34,4,34,5],[35,4,35,5],[36,4,36,5],[37,4,37,5],[38,4,38,5],[39,4,39,5],[40,0,40,5],[49,0,49,5],[50,0,50,6],[34,0,34,1],[35,0,35,1],[36,0,36,1],[37,0,37,1],[38,0,38,1],[39,0,39,1],[34,2,34,3],[35,2,35,3],[36,2,36,3],[37,2,37,3],[38,2,38,3],[39,2,39,3],[43,4,43,5],[44,4,44,5],[45,4,45,5],[88,0,88,1],[89,0,89,1],[70,0,70,1],[71,0,71,1],[72,0,72,1],[73,0,73,1],[74,0,74,1],[75,0,75,1],[77,0,77,6],[81,0,81,2],[82,0,82,2],[83,0,83,2],[84,0,84,2],[85,0,85,2],[88,2,88,3],[89,2,89,3]]}
[]
["Annexe au calcul des taux des traitements non commerciaux                    2017-2018                                                                                                                                                                                                                                                                                                                                                                                                                                                                                                                                                 Préparation de terrain"]
[" *** Veuillez saisir les informations dans les cellules blanches seulement ***"]
["Identification"]
["UA"]
["Secteur d'intervention"]
["Unité de compilation"]
["Numéro de la prescription"]
["Traitement (code DICA)"]
["Traitement (code RATF)"]
["Traitement de préparation de terrain"]
["Traitement",null,null,null,null,{"$f":"IF(ISNA(VLOOKUP($G$12,Menus!A4:B11,2,FALSE)),\"\",(VLOOKUP($G$12,Menus!A4:B11,2,FALSE)))","v":"PRT_Inscrire_une_valeur"},"Inscrire une valeur"]
["Équipement ou modalité",null,null,null,null,{"$f":"IF(G13=Menus!D6,Menus!E6,IF(G13=Menus!D11,Menus!E11,\"\"))","v":""},"Inscrire une valeur",null,""]
["Taux de base",null,null,null,null,null,{"$f":"IF(G13=Menus!D4,Menus!H4,IF(G13=Menus!D5,Menus!H5,IF(G13=Menus!D6,Menus!H6,IF(G13=Menus!D7,Menus!H7,IF(G13=Menus!D8,Menus!H8,IF(G13=Menus!D9,Menus!H9,IF(G13=Menus!D10,Menus!H10,IF(G13=Menus!D11,Menus!H11,IF(G13=Menus!D12,Menus!H12,IF(G13=Menus!D13,Menus!H13,IF(G13=Menus!D15,Menus!H15,IF(G13=Menus!D16,Menus!H16,IF(G13=Menus!D14,Menus!H14,IF(G13=Menus!D17,Menus!H17,IF(G13=Menus!D18,Menus!H18,IF(G13=Menus!D19,Menus!H19,\"\"))))))))))))))))","v":0},null,null,""]
["Unité de mesure",null,null,null,null,null,{"$f":"IF(G13=Menus!D4,Menus!I4,IF(G13=Menus!D5,Menus!I5,IF(G13=Menus!D6,Menus!I6,IF(G13=Menus!D7,Menus!I7,IF(G13=Menus!D8,Menus!I8,IF(G13=Menus!D9,Menus!I9,IF(G13=Menus!D10,Menus!I10,IF(G13=Menus!D11,Menus!I11,IF(G13=Menus!D12,Menus!I12,IF(G13=Menus!D13,Menus!I13,IF(G13=Menus!D15,Menus!I15,IF(G13=Menus!D16,Menus!I16,IF(G13=Menus!D14,Menus!I14,IF(G13=Menus!D17,Menus!I17,IF(G13=Menus!D18,Menus!I18,IF(G13=Menus!D19,Menus!I19,\"\"))))))))))))))))","v":"-"}]
[{"$f":"\"Formule (e=Constante \"&Menus!C48&\")\"","v":"Formule (e=Constante 2,718)"},null,{"$f":"IF(G13=Formules!B8,Formules!D8,IF(G13=Formules!B9,Formules!D9,\"\"))","v":""}]
[{"$f":"\"Valeurs spécifiques à remplir selon le traitement - \"&G12&\" - \"&G13","v":"Valeurs spécifiques à remplir selon le traitement - Inscrire une valeur - Inscrire une valeur"}]
["Taux variable - Déblaiement des résidus de coupe (Excavatrice ou débusqueuse ou abatteuse) et Scarifiage par monticule ou inversion par placeau ou décapage par placeau"]
["R","Superficie préparée",null,"Scarifiage partiel :  \n- 100-125 poquets/ha soit ((125 * 6 m²) / 10 000) : 8%\n- 300-400 poquets/ha soit ((375 * 6 m²) / 10 000) : 22%\n- 900-1200 monticules/ha soit ((1 100 * 3 m²) / 10 000) : 33%\nDéblaiement en plein :\n- 85% déblayé et 15% andains : 85%\n"]
["TP","Type de couvert",null,null,{"$f":"IF(G13=Menus!D6,Menus!F6,IF(G13=Menus!D11,Menus!F11,\"\"))","v":""},{"$f":"IF(G20=Menus!B49,Menus!C49,IF(G20=Menus!B50,Menus!C50,IF(G20=Menus!B51,Menus!C51,\"\")))","v":""},null,null,null,""]
["TR","Type de procédé de récolte",null,null,{"$f":"IF(G21=Menus!B52,Menus!D52,IF(G21=Menus!B53,Menus!D53,IF(G21=Menus!B54,Menus!D54,IF(G21=Menus!B55,Menus!D55,\"\"))))","v":""},{"$f":"IF(G21=Menus!B52,Menus!C52,IF(G21=Menus!B53,Menus!C53,IF(G21=Menus!B54,Menus!C54,IF(G21=Menus!B55,Menus!C55,\"\"))))","v":""}]
["PER","Type de perturbation",null,null,null,{"$f":"IF(G22=Menus!B56,Menus!C56,IF(G22=Menus!B57,Menus!C57,\"\"))","v":""}]
["VEH","Type d'engin forestier",null,null,{"$f":"IF(G13=Menus!D6,Menus!G6,IF(G13=Menus!D11,Menus!G11,\"\"))","v":""},{"$f":"IF(G23=Menus!B58,Menus!C58,IF(G23=Menus!B59,Menus!C59,IF(G23=Menus!B60,Menus!C60,\"\")))","v":""}]
["Valeur","VEH utilisée dans la formule",null,null,{"$f":"IF(G20=Menus!B49,Menus!D49,IF(G20=Menus!B50,Menus!D50,IF(G20=Menus!B51,Menus!D51,\"\")))","v":""},{"$f":"IF(ISERR(IF(F23=\"\",\"\",IF(F23=3,0.33,IF(F23=2,1,(1/(1.4063*POWER(G19,0.069))*0.85)))))=TRUE,\"\",IF(F23=\"\",\"\",IF(F23=3,0.33,IF(F23=2,1,(1/(1.4063*POWER(G19,0.069))*0.85)))))","v":""}]
["Taux calculé à partir de l'équation et des variables reliées au traitement",null,null,null,null,null,{"$f":"IF(ISERR((('Calculs grille'!I14*'Préparation de terrain'!G19)/EXP(1.683*'Préparation de terrain'!G19-0.299*'Préparation de terrain'!F20-0.313*'Préparation de terrain'!F21+0.17*'Préparation de terrain'!F22+2.014))*'Préparation de terrain'!F24),0,((('Calculs grille'!I14*'Préparation de terrain'!G19)/EXP(1.683*'Préparation de terrain'!G19-0.299*'Préparation de terrain'!F20-0.313*'Préparation de terrain'!F21+0.17*'Préparation de terrain'!F22+2.014))*'Préparation de terrain'!F24))","v":0}]
[{"$f":"\"Majorations et/ou réduction applicables à l'exécution - \"&G12&\" - \"&G13","v":"Majorations et/ou réduction applicables à l'exécution - Inscrire une valeur - Inscrire une valeur"}]
[{"$f":"IF(G13='Majorations applicables'!C2,'Majorations applicables'!K2,IF(G13='Majorations applicables'!C3,'Majorations applicables'!K3,IF(G13='Majorations applicables'!C4,'Majorations applicables'!K4,IF(G13='Majorations applicables'!C5,'Majorations applicables'!K5,IF(G13='Majorations applicables'!C6,'Majorations applicables'!K6,IF(G13='Majorations applicables'!C7,'Majorations applicables'!K7,IF(G13='Majorations applicables'!C8,'Majorations applicables'!K8,IF(G13='Majorations applicables'!C9,'Majorations applicables'!K9,IF(G13='Majorations applicables'!C10,'Majorations applicables'!K10,IF(G13='Majorations applicables'!C11,'Majorations applicables'!K11,IF(G13='Majorations applicables'!C12,'Majorations applicables'!K12,IF(G13='Majorations applicables'!C13,'Majorations applicables'!K13,IF(G13='Majorations applicables'!C14,'Majorations applicables'!K14,IF(G13='Majorations applicables'!C15,'Majorations applicables'!K15,IF(G13='Majorations applicables'!C16,'Majorations applicables'!K16,\"\")))))))))))))))","v":""}]
["Majoration ou réduction selon la distance entre les passages (PA0)"]
["Majoration ou réduction selon la distance entre les passages (PA0) - Disque-Bracke-Wadell"]
["Distance entre les passages de l'engin forestier"]
["Nombre de microsite par hectare désiré calculé à partir d'une valeur standard de distance entre les passages de l'engin forestier",null,null,null,null,null,{"$f":"IF(ISERR(IF(G30=\"\",\"\",IF('Préparation de terrain'!G30=Menus!A23,Menus!B23,IF('Préparation de terrain'!G30=Menus!A24,Menus!B24,IF('Préparation de terrain'!G30=Menus!A25,Menus!B25,IF('Préparation de terrain'!G30=Menus!A26,Menus!B26,\"La valeur de distance entre les passages est différente des valeurs pré-établies, calcul à titre indicatif seulement «\"&ROUND(10000/G30,0)&\"» microsites par hectare\")))))),\"\",IF(G30=\"\",\"\",IF('Préparation de terrain'!G30=Menus!A23,Menus!B23,IF('Préparation de terrain'!G30=Menus!A24,Menus!B24,IF('Préparation de terrain'!G30=Menus!A25,Menus!B25,IF('Préparation de terrain'!G30=Menus!A26,Menus!B26,\"La valeur de distance entre les passages est différente des valeurs pré-établies, calcul à titre indicatif seulement «\"&ROUND(10000/G30,0)&\"» microsites par hectare\"))))))","v":""}]
["Ajustement du taux d'exécution calculé à partir de la valeur inscrite de distance entre les passages de l'engin forestier",null,null,null,null,null,{"$f":"IF(ISERR(4/G30),0,4/G30)","v":0}]
["Majoration pour la pente (PE1)"]
["Majoration pour la pente (PE1) - Disque-Bracke-Wadell-M36"]
["Classe de pente\nnumérique",null,"Taux calculé",null,"Écart",null,"Superficie (ha)"]
["Pente A",null,{"$f":"$G$14*(1+0)","v":0},null,{"$f":"C36-$G$14","v":0}]
["Pente B",null,{"$f":"$G$14*(1+0)","v":0},null,{"$f":"C37-$G$14","v":0}]
["Pente C",null,{"$f":"$G$14*(1+0.051)","v":0},null,{"$f":"C38-$G$14","v":0}]
["Pente D",null,{"$f":"$G$14*(1+0.45)","v":0},null,{"$f":"C39-$G$14","v":0}]
["Pente E",null,{"$f":"$G$14*(1+1.46)","v":0},null,{"$f":"C40-$G$14","v":0}]
["Total",null,null,null,null,null,{"$f":"SUM(G36:G40)","v":0}]
["Majoration pour la pente (PE2)"]
["Majoration pour la pente (PE2) - Abatteuse-Rouleau"]
["Classe de pente numérique",null,"Taux calculé",null,"Écart",null,"Superficie (ha)"]
["Pente A",null,{"$f":"$G$14*(1+0)","v":0},null,{"$f":"C45-$G$14","v":0}]
["Pente B",null,{"$f":"$G$14*(1+0)","v":0},null,{"$f":"C46-$G$14","v":0}]
["Pente C",null,{"$f":"$G$14*(1+0.007)","v":0},null,{"$f":"C47-$G$14","v":0}]
["Pente D",null,{"$f":"$G$14*(1+0.026)","v":0},null,{"$f":"C48-$G$14","v":0}]
["Pente E",null,{"$f":"$G$14*(1+0.061)","v":0},null,{"$f":"C49-$G$14","v":0}]
["Total",null,null,null,null,null,{"$f":"SUM(G45:G49)","v":0}]
["Majoration pour la pente (PE4)"]
["Majoration pour la pente (PE4) - Bouteur"]
["Classe de pente numérique",null,"Taux calculé",null,"Écart",null,"Superficie (ha)"]
["Pente A",null,{"$f":"$G$14*(1+0)","v":0},null,{"$f":"C54-$G$14","v":0}]
["Pente B",null,{"$f":"$G$14*(1+0)","v":0},null,{"$f":"C55-$G$14","v":0}]
["Pente C",null,{"$f":"$G$14*(1+0.05)","v":0},null,{"$f":"C56-$G$14","v":0}]
["Pente D",null,{"$f":"$G$14*(1+0.15)","v":0},null,{"$f":"C57-$G$14","v":0}]
["Pente E",null,{"$f":"$G$14*(1+0.19)","v":0},null,{"$f":"C58-$G$14","v":0}]
["Total",null,null,null,null,null,{"$f":"SUM(G54:G58)","v":0}]
["Majoration pour le nombre de passage et la pente (PA1 et PE1)"]
["Majoration pour le nombre de passage et la pente (PA1 et PE1) - Disque-Bracke-Wadell"]
["Superficie  (hectares)"]
["Classe de pente numérique",null,null,"Simple passage ","Double passage","Triple passage","Total"]
["Pente A",null,null,null,null,null,{"$f":"SUM(D64:F64)","v":0}]
["Pente B",null,null,null,null,null,{"$f":"SUM(D65:F65)","v":0}]
["Pente C",null,null,null,null,null,{"$f":"SUM(D66:F66)","v":0}]
["Pente D",null,null,null,null,null,{"$f":"SUM(D67:F67)","v":0}]
["Pente E",null,null,null,null,null,{"$f":"SUM(D68:F68)","v":0}]
["Total",null,null,{"$f":"SUM(D64:D68)","v":0},{"$f":"SUM(E64:E68)","v":0},{"$f":"SUM(F64:F68)","v":0},{"$f":"SUM(G64:G68)","v":0}]
["Taux calculé ($/hectare)"]
["Nombre de passage",null,1,null,2,null,3]
["Pente A",null,{"$f":"($G$142+$G$143)*(1+0)*(($C$71-1)+0.89^(1-1))","v":0},null,{"$f":"($G$142+$G$143)*(1+0)*(($E$71-1)+0.89^($E$71-1))","v":0},null,{"$f":"($G$142+$G$143)*(1+0)*(($G$71-1)+0.89^($G$71-1))","v":0}]
["Pente B",null,{"$f":"($G$142+$G$143)*(1+0)*(($C$71-1)+0.89^(($C$71-1)))","v":0},null,{"$f":"($G$142+$G$143)*(1+0)*(($E$71-1)+0.89^($E$71-1))","v":0},null,{"$f":"($G$142+$G$143)*(1+0)*(($G$71-1)+0.89^($G$71-1))","v":0}]
["Pente C",null,{"$f":"($G$142+$G$143)*(1+0.051)*(($C$71-1)+0.89^($C$71-1))","v":0},null,{"$f":"($G$142+$G$143)*(1+0.051)*(($E$71-1)+0.89^($E$71-1))","v":0},null,{"$f":"($G$142+$G$143)*(1+0.051)*(($G$71-1)+0.89^($G$71-1))","v":0}]
["Pente D",null,{"$f":"($G$142+$G$143)*(1+0.45)*(($C$71-1)+0.89^($C$71-1))","v":0},null,{"$f":"($G$142+$G$143)*(1+0.45)*(($E$71-1)+0.89^($E$71-1))","v":0},null,{"$f":"($G$142+$G$143)*(1+0.45)*(($G$71-1)+0.89^($G$71-1))","v":0}]
["Pente E",null,{"$f":"($G$142+$G$143)*(1+1.46)*(($C$71-1)+0.89^($C$71-1))","v":0},null,{"$f":"($G$142+$G$143)*(1+1.46)*(($E$71-1)+0.89^($E$71-1))","v":0},null,{"$f":"($G$142+$G$143)*(1+1.46)*(($G$71-1)+0.89^($G$71-1))","v":0}]
["Majoration pour le nombre de passage et la pente (PA2 et PE2)"]
["Majoration pour le nombre de passage et la pente (PA2 et PE2) - Herse"]
["Superficie (hectares)"]
["Classe de pente numérique",null,null,"Simple passage ","Double passage","Triple passage","Total"]
["Pente A",null,null,null,null,null,{"$f":"SUM(D81:F81)","v":0}]
["Pente B",null,null,null,null,null,{"$f":"SUM(D82:F82)","v":0}]
["Pente C",null,null,null,null,null,{"$f":"SUM(D83:F83)","v":0}]
["Pente D",null,null,null,null,null,{"$f":"SUM(D84:F84)","v":0}]
["Pente E",null,null,null,null,null,{"$f":"SUM(D85:F85)","v":0}]
["Total",null,null,{"$f":"SUM(D81:D85)","v":0},{"$f":"SUM(E81:E85)","v":0},{"$f":"SUM(F81:F85)","v":0},{"$f":"SUM(G81:G85)","v":0}]
["Taux calculé ($/hectare)"]
["Nombre de passage",null,1,null,2,null,3]
["Pente A",null,{"$f":"$G$14*(1+0)*(($C$88-1)+0.79^($C$88-1))","v":0},null,{"$f":"$G$14*(1+0)*(($E$88-1)+0.79^($E$88-1))","v":0},null,{"$f":"$G$14*(1+0)*(($G$88-1)+0.79^($G$88-1))","v":0}]
["Pente B",null,{"$f":"$G$14*(1+0)*(($C$88-1)+0.79^($C$88-1))","v":0},null,{"$f":"$G$14*(1+0)*(($E$88-1)+0.79^($E$88-1))","v":0},null,{"$f":"$G$14*(1+0)*(($G$88-1)+0.79^($G$88-1))","v":0}]
["Pente C",null,{"$f":"$G$14*(1+0.007)*(($C$88-1)+0.79^($C$88-1))","v":0},null,{"$f":"$G$14*(1+0.007)*(($E$88-1)+0.79^($E$88-1))","v":0},null,{"$f":"$G$14*(1+0.007)*(($G$88-1)+0.79^($G$88-1))","v":0}]
["Pente D",null,{"$f":"$G$14*(1+0.026)*(($C$88-1)+0.79^($C$88-1))","v":0},null,{"$f":"$G$14*(1+0.026)*(($E$88-1)+0.79^($E$88-1))","v":0},null,{"$f":"$G$14*(1+0.026)*(($G$88-1)+0.79^($G$88-1))","v":0}]
["Pente E",null,{"$f":"$G$14*(1+0.061)*(($C$88-1)+0.79^($C$88-1))","v":0},null,{"$f":"$G$14*(1+0.061)*(($E$88-1)+0.79^($E$88-1))","v":0},null,{"$f":"$G$14*(1+0.061)*(($G$88-1)+0.79^($G$88-1))","v":0}]
["Majoration pour la pente (PE2 ou PE3 selon le type d'équipement)"]
["Majoration pour la pente (PE2 ou PE3 selon le type d'équipement) - Variable"]
["Classe de pente numérique",null,"Taux calculé",null,"Écart",null,"Superficie (hectare)"]
["Pente A",null,{"$f":"IF($F$23=1,G25*(1+0),G25*(1+0))","v":0},null,{"$f":"C97-$G$25","v":0}]
["Pente B",null,{"$f":"IF($F$23=1,G25*(1+0),G25*(1+0))","v":0},null,{"$f":"C98-$G$25","v":0}]
["Pente C",null,{"$f":"IF($F$23=1,G25*(1+0.11),G25*(1+0.007))","v":0},null,{"$f":"C99-$G$25","v":0}]
["Pente D",null,{"$f":"IF($F$23=1,G25*(1+0.19),G25*(1+0.026))","v":0},null,{"$f":"C100-$G$25","v":0}]
["Pente E",null,{"$f":"IF($F$23=1,G25*(1+0.23),G25*(1+0.061))","v":0},null,{"$f":"C101-$G$25","v":0}]
["Total",null,null,null,null,null,{"$f":"SUM(G97:G101)","v":0}]
[{"$f":"\"Unités de mesure pour le traitement \"&D13","v":"Unités de mesure pour le traitement "}]
["Unités de mesure pour le traitement - Drainage-Taupe-pioche"]
["Nombre de kilomètres ou Mm³"]
["Nombre de milliers de microsites"]
["Majoration en fonction de l'indice de dispersion (DISP1 ou DISP2)"]
["Majoration en fonction de l'indice de dispersion (DISP1 ou DISP2) - Tous sauf Taupe et Drainage"]
["UA",null,null,null,null,null,{"$f":"IF(G5<>\"\",G5,\"\")","v":""}]
["Indice de dispersion",null,null,null,null,null,{"$f":"IF(ISERROR(VLOOKUP(G109,'Dispersion UA_2017-2018'!A27:B98,2,FALSE))=TRUE,0,VLOOKUP(G109,'Dispersion UA_2017-2018'!A27:B98,2,FALSE))","v":0}]
["Majoration DISP1",null,null,null,null,null,{"$f":"IF(G110>9,0.038*9,IF(G110>1,0.038*ROUNDUP((G110-1),0),0))","v":0}]
["Majoration DISP2",null,null,null,null,null,{"$f":"IF(G110>19,0.014*15,IF(G110>4,0.014*ROUNDUP((G110-4),0),0))","v":0}]
["Majoration pour l'hébergement et la distance du secteur d'intervention (H1 et D200)"]
["Majoration pour l'hébergement et la distance du secteur d'intervention (H1 et D200) - Tous "]
["Hébergement (H1)",null,null,null,null,{"$f":"IF(G115=\"\",\"\",IF(G115=Menus!A29,Menus!B29,IF(G115=Menus!A30,Menus!B30,IF(G115=Menus!A31,Menus!B31,IF(G115<=0.0375,G115,\"Max 3,75%\")))))","v":""}]
["Distance du secteur d'intervention (D200)",null,null,null,null,{"$f":"IF(G116=Menus!$A$39,Menus!$B$39,IF(G116=Menus!$A$40,Menus!$B$40,\"\"))","v":""}]
["Majoration pour la certification (CEAF1 ou ISO1)"]
["Majoration pour la certification (CEAF1 ou ISO1) - Tous"]
["Certification (CEAF1 ou ISO1)",null,null,null,null,{"$f":"IF(G119=Menus!$A$43,Menus!$B$43,IF(G119=Menus!$A$44,Menus!$B$44,IF(G119=Menus!$A$45,Menus!$B$45,\"\")))","v":""}]
["Vérification"]
["Vérification - Tous"]
["Délimitation des secteurs (taux par kilomètre délimité)"]
["Nombre de kilomètres délimités"]
["Vérification - Disque-Bracke-Wadell/M36/Variable/Herse/Bouteur/Abatteuse-Rouleau"]
["Inventaire après traitement (taux par placette inventoriée)"]
["Nombre de placettes inventoriées"]
["Critère 1","Dénombrement des microsites",null,null,{"$f":"SUM(F127:F130)*'Calculs grille'!$I$87","v":0},{"$f":"IF(G127=\"Oui\",1,IF(G127=\"Non\",0,\"\"))","v":""}]
[null,"Mesure des distances entre les sillons",null,null,null,{"$f":"IF(G128=\"Oui\",1,IF(G128=\"Non\",0,\"\"))","v":""}]
[null,"Qualification des microsites",null,null,null,{"$f":"IF(G129=\"Oui\",1,IF(G129=\"Non\",0,\"\"))","v":""}]
[null,"Évaluation du type de plants, de l'essence reboisée et du choix de site",null,null,null,{"$f":"IF(G130=\"Oui\",1,IF(G130=\"Non\",0,\"\"))","v":""}]
[null,"Nombre total de critères",null,null,null,null,{"$f":"SUM(F127:F130)","v":0}]
["Vérification - Drainage"]
["Inventaire après traitement (taux par kilomètre ou millier de mètres cubes)"]
["Vérification - Taupe"]
["Inventaire après traitement (taux par placette inventoriée)"]
["Nombre de placettes inventoriées"]
["Vérification - Majoration pour l'hébergement et la distance du secteur d'intervention (H3 et D200)"]
["Hébergement (H3)",null,null,null,null,{"$f":"IF(G138=\"\",\"\",IF(G138=Menus!A34,Menus!B34,IF(G138=Menus!A35,Menus!B35,IF(G138=Menus!A36,Menus!B36,IF(G138<=0.091,G138,\"Max 9,1%\")))))","v":""}]
["Distance du secteur d'intervention (D200)",null,null,null,null,{"$f":"IF(G139=Menus!$A$39,Menus!$B$39,IF(G139=Menus!$A$40,Menus!$B$40,\"\"))","v":""}]
["Total"]
["Calculs - Disque-Bracke-Wadell"]
["Taux d'exécution de base",null,null,null,null,null,{"$f":"IF(ISERR(IF($G$14=\"\",0,$G$14)),0,IF($G$14=\"\",0,$G$14))","v":0}]
["Taux PA0",null,null,null,null,null,{"$f":"IF(ISERR(IF(G30=\"\",0,-(G14*(1-G32)))),0,IF(G30=\"\",0,-(G14*(1-G32))))","v":0}]
["Taux PA1 et PE1",null,null,null,null,null,{"$f":"IF(ISERR(((SUMPRODUCT($C$72:$C$76,$D$64:$D$68)+SUMPRODUCT($E$72:$E$76,$E$64:$E$68)+SUMPRODUCT($G$72:$G$76,$F$64:$F$68))/$G$69)-($G$142+$G$143)),0,((SUMPRODUCT($C$72:$C$76,$D$64:$D$68)+SUMPRODUCT($E$72:$E$76,$E$64:$E$68)+SUMPRODUCT($G$72:$G$76,$F$64:$F$68))/$G$69)-($G$142+$G$143))","v":0}]
["Taux sous-total exécution",null,null,null,null,null,{"$f":"IF(ISERR(SUM(G142:G144)),0,SUM(G142:G144))","v":0}]
["Taux DISP1",null,null,null,null,null,{"$f":"IF(ISERR(G145*G111),0,G145*G111)","v":0}]
["Taux H1",null,null,null,null,null,{"$f":"IF(ISERR(G145*$F$115),0,G145*$F$115)","v":0}]
["Taux CEAF1 ou ISO1",null,null,null,null,null,{"$f":"IF(ISERR(G145*$F$119),0,G145*$F$119)","v":0}]
["Taux exécution total et majorations et réduction admissibles",null,null,null,null,null,{"$f":"IF(ISERR(ROUND(SUM(G145:G148),2)),0,ROUND(SUM(G145:G148),2))","v":0}]
["Taux vérification",null,null,null,null,null,{"$f":"IF(ISERR(((G122*G123)+($G$125+($G$131*'Calculs grille'!I87))*$G$126)/G153),0,((G122*G123)+($G$125+($G$131*'Calculs grille'!I87))*$G$126)/G153)","v":0}]
["Taux H3 et/ou D200",null,null,null,null,null,{"$f":"IF(ISERR((SUM(F138:F139)*G150)),0,(SUM(F138:F139)*G150))","v":0}]
["Taux exécution et vérification total",null,null,null,null,null,{"$f":"IF(ISERR(ROUND(SUM(G149:G151),2)),0,ROUND(SUM(G149:G151),2))","v":0}]
["Superficie",null,null,null,null,null,{"$f":"IF(ISERR(ROUND(G69,2)),0,ROUND(G69,2))","v":0}]
["Total exécution",null,null,null,null,null,{"$f":"IF(ISERR(G149*G153),0,G149*G153)","v":0}]
["Total vérification",null,null,null,null,null,{"$f":"IF(ISERR(ROUND(SUM(G150:G151),2)*G153),0,ROUND(SUM(G150:G151),2)*G153)","v":0}]
["Grand total admissible",null,null,null,null,null,{"$f":"IF(ISERR(SUM(G154:G155)),0,SUM(G154:G155))","v":0}]
["Calculs - M36"]
["Taux d'exécution de base",null,null,null,null,null,{"$f":"IF(ISERR(IF($G$14=\"\",0,$G$14)),0,IF($G$14=\"\",0,$G$14))","v":0}]
["Taux PE1",null,null,null,null,null,{"$f":"IF(ISERR(IF(G41=0,0,SUMPRODUCT($E$36:$E$40,$G$36:$G$40)/$G$41)),0,IF(G41=0,0,SUMPRODUCT($E$36:$E$40,$G$36:$G$40)/$G$41))","v":0}]
["Taux sous-total exécution",null,null,null,null,null,{"$f":"IF(ISERR(SUM(G158:G159)),0,SUM(G158:G159))","v":0}]
["Taux DISP1",null,null,null,null,null,{"$f":"IF(ISERR(G160*G111),0,G160*G111)","v":0}]
["Taux H1",null,null,null,null,null,{"$f":"IF(ISERR(G160*$F$115),0,G160*$F$115)","v":0}]
["Taux CEAF1 ou ISO1",null,null,null,null,null,{"$f":"IF(ISERR(G160*$F$119),0,G160*$F$119)","v":0}]
["Taux exécution total et majoration(s) admissible(s)",null,null,null,null,null,{"$f":"IF(ISERR(ROUND(SUM(G160:G163),2)),0,ROUND(SUM(G160:G163),2))","v":0}]
["Taux vérification",null,null,null,null,null,{"$f":"IF(ISERR((((G122*G123)+($G$125+($G$131*'Calculs grille'!I87))*$G$126)/G168)),0,(((G122*G123)+($G$125+($G$131*'Calculs grille'!I87))*$G$126)/G168))","v":0}]
["Taux H3 et/ou D200",null,null,null,null,null,{"$f":"IF(ISERR((SUM(F138:F139)*G165)),0,(SUM(F138:F139)*G165))","v":0}]
["Taux exécution et vérification total",null,null,null,null,null,{"$f":"IF(ISERR(ROUND(SUM(G164:G166),2)),0,ROUND(SUM(G164:G166),2))","v":0}]
["Superficie",null,null,null,null,null,{"$f":"IF(ISERR(ROUND(G41,2)),0,ROUND(G41,2))","v":0}]
["Total exécution",null,null,null,null,null,{"$f":"IF(ISERR(G164*G168),0,G164*G168)","v":0}]
["Total vérification",null,null,null,null,null,{"$f":"IF(ISERR(ROUND(SUM(G165:G166),2)*G168),0,ROUND(SUM(G165:G166),2)*G168)","v":0}]
["Grand total admissible",null,null,null,null,null,{"$f":"IF(ISERR(SUM(G169:G170)),0,SUM(G169:G170))","v":0}]
["Calculs - Herse"]
["Taux d'exécution de base",null,null,null,null,null,{"$f":"IF(ISERR(IF($G$14=\"\",0,$G$14)),0,IF($G$14=\"\",0,$G$14))","v":0}]
["Taux PA2 et PE2",null,null,null,null,null,{"$f":"IF(ISERR(IF(G86=0,0,((SUMPRODUCT($C$89:$C$93,$D$81:$D$85)+SUMPRODUCT($E$89:$E$93,$E$81:$E$85)+SUMPRODUCT($G$89:$G$93,$F$81:$F$85))/$G$86)-($G$173))),0,IF(G86=0,0,((SUMPRODUCT($C$89:$C$93,$D$81:$D$85)+SUMPRODUCT($E$89:$E$93,$E$81:$E$85)+SUMPRODUCT($G$89:$G$93,$F$81:$F$85))/$G$86)-($G$173)))","v":0}]
["Taux sous-total exécution",null,null,null,null,null,{"$f":"IF(ISERR(SUM(G173:G174)),0,SUM(G173:G174))","v":0}]
["Taux DISP1",null,null,null,null,null,{"$f":"IF(ISERR(G175*G111),0,G175*G111)","v":0}]
["Taux H1",null,null,null,null,null,{"$f":"IF(ISERR(G175*$F$115),0,G175*$F$115)","v":0}]
["Taux CEAF1 ou ISO1",null,null,null,null,null,{"$f":"IF(ISERR(G175*$F$119),0,G175*$F$119)","v":0}]
["Taux exécution total et majoration(s) admissible(s)",null,null,null,null,null,{"$f":"IF(ISERR(ROUND(SUM(G175:G178),2)),0,ROUND(SUM(G175:G178),2))","v":0}]
["Taux vérification",null,null,null,null,null,{"$f":"IF(ISERR((((G122*G123)+($G$125+($G$131*'Calculs grille'!I87))*$G$126)/G183)),0,(((G122*G123)+($G$125+($G$131*'Calculs grille'!I87))*$G$126)/G183))","v":0}]
["Taux H3 et/ou D200",null,null,null,null,null,{"$f":"IF(ISERR((SUM(F138:F139)*G180)),0,(SUM(F138:F139)*G180))","v":0}]
["Taux exécution et vérification total",null,null,null,null,null,{"$f":"IF(ISERR(ROUND(SUM(G179:G181),2)),0,ROUND(SUM(G179:G181),2))","v":0}]
["Superficie",null,null,null,null,null,{"$f":"IF(ISERR(ROUND(G86,2)),0,ROUND(G86,2))","v":0}]
["Total exécution",null,null,null,null,null,{"$f":"IF(ISERR(G179*G183),0,G179*G183)","v":0}]
["Total vérification",null,null,null,null,null,{"$f":"IF(ISERR(ROUND(SUM(G180:G181),2)*G183),0,ROUND(SUM(G180:G181),2)*G183)","v":0}]
["Grand total admissible",null,null,null,null,null,{"$f":"IF(ISERR(SUM(G184:G185)),0,SUM(G184:G185))","v":0}]
["Calculs - Bouteur"]
["Taux d'exécution de base",null,null,null,null,null,{"$f":"IF(ISERR(IF($G$14=\"\",0,$G$14)),0,IF($G$14=\"\",0,$G$14))","v":0}]
["Taux PE4",null,null,null,null,null,{"$f":"IF(ISERR(SUMPRODUCT($E$54:$E$58,$G$54:$G$58)/$G$59),0,SUMPRODUCT($E$54:$E$58,$G$54:$G$58)/$G$59)","v":0}]
["Taux sous-total exécution",null,null,null,null,null,{"$f":"IF(ISERR(SUM(G188:G189)),0,SUM(G188:G189))","v":0}]
["Taux DISP2",null,null,null,null,null,{"$f":"IF(ISERR(G190*G112),0,G190*G112)","v":0}]
["Taux H1",null,null,null,null,null,{"$f":"IF(ISERR(G190*$F$115),0,G190*$F$115)","v":0}]
["Taux CEAF1 ou ISO1",null,null,null,null,null,{"$f":"IF(ISERR(G190*$F$119),0,G190*$F$119)","v":0}]
["Taux exécution total  et majoration(s) admissible(s)",null,null,null,null,null,{"$f":"IF(ISERR(ROUND(SUM(G190:G193),2)),0,ROUND(SUM(G190:G193),2))","v":0}]
["Taux vérification",null,null,null,null,null,{"$f":"IF(ISERR((((G122*G123)+($G$125+($G$131*'Calculs grille'!I87))*$G$126)/G198)),0,(((G122*G123)+($G$125+($G$131*'Calculs grille'!I87))*$G$126)/G198))","v":0}]
["Taux H3 et/ou D200",null,null,null,null,null,{"$f":"IF(ISERR((SUM(F138:F139)*G195)),0,(SUM(F138:F139)*G195))","v":0}]
["Taux exécution et vérification total",null,null,null,null,null,{"$f":"IF(ISERR(ROUND(SUM(G194:G196),2)),0,ROUND(SUM(G194:G196),2))","v":0}]
["Superficie",null,null,null,null,null,{"$f":"IF(ISERR(ROUND(G59,2)),0,ROUND(G59,2))","v":0}]
["Total exécution",null,null,null,null,null,{"$f":"IF(ISERR(G194*G198),0,G194*G198)","v":0}]
["Total vérification",null,null,null,null,null,{"$f":"IF(ISERR(ROUND(SUM(G195:G196),2)*G198),0,ROUND(SUM(G195:G196),2)*G198)","v":0}]
["Grand total admissible",null,null,null,null,null,{"$f":"IF(ISERR(SUM(G199:G200)),0,SUM(G199:G200))","v":0}]
["Calculs - Abatteuse/Rouleau"]
["Taux d'exécution de base",null,null,null,null,null,{"$f":"IF(ISERR(IF($G$14=\"\",0,$G$14)),0,IF($G$14=\"\",0,$G$14))","v":0}]
["Taux PE2",null,null,null,null,null,{"$f":"IF(ISERR(SUMPRODUCT($E$45:$E$49,$G$45:$G$49)/$G$50),0,SUMPRODUCT($E$45:$E$49,$G$45:$G$49)/$G$50)","v":0}]
["Taux sous-total exécution",null,null,null,null,null,{"$f":"IF(ISERR(SUM(G203:G204)),0,(SUM(G203:G204)))","v":0}]
["Taux DISP2",null,null,null,null,null,{"$f":"IF(ISERR(G205*G112),0,G205*G112)","v":0}]
["Taux H1",null,null,null,null,null,{"$f":"IF(ISERR(G205*$F$115),0,G205*$F$115)","v":0}]
["Taux CEAF1 ou ISO1",null,null,null,null,null,{"$f":"IF(ISERR(G205*$F$119),0,G205*$F$119)","v":0}]
["Taux exécution total et majoration(s) admissible(s)",null,null,null,null,null,{"$f":"IF(ISERR(ROUND(SUM(G205:G208),2)),0,ROUND(SUM(G205:G208),2))","v":0}]
["Taux vérification",null,null,null,null,null,{"$f":"IF(ISERR(((G122*G123)+($G$125+($G$131*'Calculs grille'!I87))*$G$126)/G213),0,((G122*G123)+($G$125+($G$131*'Calculs grille'!I87))*$G$126)/G213)","v":0}]
["Taux H3 et/ou D200",null,null,null,null,null,{"$f":"IF(ISERR((SUM(F138:F139)*G210)),0,(SUM(F138:F139)*G210))","v":0}]
["Taux exécution et vérification total",null,null,null,null,null,{"$f":"IF(ISERR(ROUND(SUM(G209:G211),2)),0,ROUND(SUM(G209:G211),2))","v":0}]
["Superficie",null,null,null,null,null,{"$f":"IF(ISERR(ROUND(G50,2)),0,ROUND(G50,2))","v":0}]
["Total exécution",null,null,null,null,null,{"$f":"IF(ISERR(G209*G213),0,G209*G213)","v":0}]
["Total vérification",null,null,null,null,null,{"$f":"IF(ISERR(ROUND(SUM(G210:G211),2)*G213),0,ROUND(SUM(G210:G211),2)*G213)","v":0}]
["Grand total admissible",null,null,null,null,null,{"$f":"IF(ISERR(SUM(G214:G215)),0,SUM(G214:G215))","v":0}]
["Calculs - Drainage"]
["Taux d'exécution de base",null,null,null,null,null,{"$f":"IF(ISERR(IF($G$14=\"\",0,$G$14)),0,IF($G$14=\"\",0,$G$14))","v":0}]
["Taux H1",null,null,null,null,null,{"$f":"IF(ISERR(G218*F115),0,G218*F115)","v":0}]
["Taux CEAF1 ou ISO1",null,null,null,null,null,{"$f":"IF(ISERR(G218*$F$119),0,G218*$F$119)","v":0}]
["Taux exécution total et majoration(s) admissible(s)",null,null,null,null,null,{"$f":"IF(ISERR(ROUND(SUM(G218:G220),2)),0,ROUND(SUM(G218:G220),2))","v":0}]
["Taux vérification",null,null,null,null,null,{"$f":"IF(ISERR(((G122*G123)+(G133*G225))/G225),0,((G122*G123)+(G133*G225))/G225)","v":0}]
["Taux H3 et/ou D200",null,null,null,null,null,{"$f":"IF(ISERR((SUM(F138:F139)*G222)),0,(SUM(F138:F139)*G222))","v":0}]
["Taux exécution et vérification total",null,null,null,null,null,{"$f":"IF(ISERR(ROUND(SUM(G221:G223),2)),0,ROUND(SUM(G221:G223),2))","v":0}]
["Nombre de kilomètres ou Mm³",null,null,null,null,null,{"$f":"IF(ISERR(ROUND(G105,2)),0,ROUND(G105,2))","v":0}]
["Total exécution",null,null,null,null,null,{"$f":"IF(ISERR(G221*G225),0,G221*G225)","v":0}]
["Total vérification",null,null,null,null,null,{"$f":"IF(ISERR(ROUND(SUM(G222:G223),2)*G225),0,ROUND(SUM(G222:G223),2)*G225)","v":0}]
["Grand total admissible",null,null,null,null,null,{"$f":"IF(ISERR(G224*G225),0,G224*G225)","v":0}]
["Calculs - Taupe"]
["Taux d'exécution de base",null,null,null,null,null,{"$f":"IF(ISERR(IF($G$14=\"\",0,$G$14)),0,IF($G$14=\"\",0,$G$14))","v":0}]
["Taux H1",null,null,null,null,null,{"$f":"IF(ISERR(F115*G230),0,F115*G230)","v":0}]
["Taux D200",null,null,null,null,null,{"$f":"IF(ISERR(F116*G230),0,F116*G230)","v":0}]
["Taux CEAF1 ou ISO1",null,null,null,null,null,{"$f":"IF(ISERR(G230*F119),0,G230*F119)","v":0}]
["Taux exécution total  et majoration(s) admissible(s)",null,null,null,null,null,{"$f":"IF(ISERR(ROUND(SUM(G230:G233),2)),0,ROUND(SUM(G230:G233),2))","v":0}]
["Taux vérification",null,null,null,null,null,{"$f":"IF(ISERR(((G122*G123)+(G135*G136))/G238),0,((G122*G123)+(G135*G136))/G238)","v":0}]
["Taux H3 et/ou D200",null,null,null,null,null,{"$f":"IF(ISERR((SUM(F138:F139)*G235)),0,(SUM(F138:F139)*G235))","v":0}]
["Taux exécution et vérification total",null,null,null,null,null,{"$f":"IF(ISERR(ROUND(SUM(G234:G236),2)),0,ROUND(SUM(G234:G236),2))","v":0}]
["Nombre de milliers de microsites",null,null,null,null,null,{"$f":"IF(ISERR(ROUND(G106,3)),0,ROUND(G106,3))","v":0}]
["Total exécution",null,null,null,null,null,{"$f":"IF(ISERR(G234*G238),0,G234*G238)","v":0}]
["Total vérification",null,null,null,null,null,{"$f":"IF(ISERR(ROUND(SUM(G235:G236),2)*G238),0,ROUND(SUM(G235:G236),2)*G238)","v":0}]
["Grand total admissible",null,null,null,null,null,{"$f":"IF(ISERR(SUM(G239:G240)),0,SUM(G239:G240))","v":0}]
["Calculs - Variable"]
["Taux d'exécution de base",null,null,null,null,null,{"$f":"IF(ISERR($G$25),0,$G$25)","v":0}]
["Taux PE2 ou PE3",null,null,null,null,null,{"$f":"IF(ISERR(IF($G$102=0,0,(SUMPRODUCT(E97:E101,G97:G101)/$G$102))),0,IF($G$102=0,0,(SUMPRODUCT(E97:E101,G97:G101)/$G$102)))","v":0}]
["Taux sous-total exécution",null,null,null,null,null,{"$f":"IF(ISERR(SUM(G243:G244)),0,SUM(G243:G244))","v":0}]
["Taux DISP2",null,null,null,null,null,{"$f":"IF(ISERR(G245*G112),0,G245*G112)","v":0}]
["Taux H1",null,null,null,null,null,{"$f":"IF(ISERR(G245*$F$115),0,G245*$F$115)","v":0}]
["Taux CEAF1 ou ISO1",null,null,null,null,null,{"$f":"IF(ISERR(G245*$F$119),0,G245*$F$119)","v":0}]
["Taux exécution total et majoration(s) admissible(s)",null,null,null,null,null,{"$f":"IF(ISERR(ROUND(SUM(G245:G248),2)),0,ROUND(SUM(G245:G248),2))","v":0}]
["Taux vérification",null,null,null,null,null,{"$f":"IF(ISERR(((G122*G123)+($G$125+($G$131*'Calculs grille'!I87))*$G$126)/G253),0,((G122*G123)+($G$125+($G$131*'Calculs grille'!I87))*$G$126)/G253)","v":0}]
["Taux H3 et/ou D200",null,null,null,null,null,{"$f":"IF(ISERR((SUM(F138:F139)*G250)),0,(SUM(F138:F139)*G250))","v":0}]
["Taux exécution et vérification total",null,null,null,null,null,{"$f":"IF(ISERR(ROUND(SUM(G249:G251),2)),0,ROUND(SUM(G249:G251),2))","v":0}]
["Superficie",null,null,null,null,null,{"$f":"IF(ISERR(ROUND(G102,2)),0,ROUND(G102,2))","v":0}]
["Total exécution",null,null,null,null,null,{"$f":"IF(ISERR(G249*G253),0,G249*G253)","v":0}]
["Total vérification",null,null,null,null,null,{"$f":"IF(ISERR(ROUND(SUM(G250:G251),2)*G253),0,ROUND(SUM(G250:G251),2)*G253)","v":0}]
["Grand total admissible",null,null,null,null,null,{"$f":"IF(ISERR(SUM(G254:G255)),0,SUM(G254:G255))","v":0},null,null,null,null,null,null,null,null,null,null,null,null,null,null,{"$f":"N256&H256","v":""},{"$f":"J256&H256","v":""},{"$f":"P256&H256","v":""}]
[null,null,null,null,null,null,null,null,null,null,null,null,null,null,null,null,null,null,null,null,null,"","",""]
["J'atteste que les renseignements fournis dans ce document afin de calculer le taux du traitement sont complets et conformes à la vérité, au meilleur de mes connaissances.",null,null,null,null,null,null,null,null,null,null,null,null,null,null,null,null,null,null,null,null,"","",""]
[]
[null,null,null,null,null,null,null,null,null,null,null,null,null,null,null,null,null,null,null,null,null,"","",""]
[null,null,null,null,null,null,null,null,null,null,null,null,null,null,null,null,null,null,null,null,null,"","",""]
["Nom et prénom de l'ingénieur forestier",null,null,null,null,null,"No de permis",null,null,null,null,null,null,null,null,null,null,null,null,null,null,"","",""]
[null,null,null,null,null,null,{"$f":"TODAY()","v":"2017-04-05"},null,null,null,null,null,null,null,null,null,null,null,null,null,null,"","",""]
[null,null,null,null,null,null,null,null,null,null,null,null,null,null,null,null,null,null,null,null,null,"","",""]
["Signature de l'ingénieur forestier",null,null,null,null,null,"Date (AAAA-MM-JJ)",null,null,null,null,null,null,null,null,null,null,null,null,null,null,"",{"$f":"J265&H265","v":""},{"$f":"P265&H265","v":""}]
[null,null,null,null,null,null,null,null,null,null,null,null,null,null,null,null,null,null,null,null,null,"","",""]
[null,null,null,null,null,null,null,null,null,null,null,null,null,null,null,null,null,null,null,null,null,"","",""]
["Section réservée au suivi du contrat",null,null,null,null,null,null,null,null,null,null,null,null,null,null,null,null,null,null,null,null,"","",""]
[null,null,null,null,null,null,null,null,null,null,null,null,null,null,null,null,null,null,null,null,null,"","",""]
[null,"Numéro de la prescription :",{"$f":"IF(G8<>\"\",G8,\"\")","v":""},null,null,null,null,null,null,null,null,null,null,null,null,null,null,null,null,null,null,"","",""]
[null,null,null,null,null,null,null,null,null,null,null,null,null,null,null,null,null,null,null,null,null,"","",""]
[null,"Numéro du contrat :",null,null,null,null,null,null,null,null,null,null,null,null,null,null,null,null,null,null,null,"","",""]
[null,"Numéro du projet :",null,null,null,null,null,null,null,null,null,null,null,null,null,null,null,null,null,null,null,"","",""]
[null,"U.G. :",null,null,null,null,null,null,null,null,null,null,null,null,null,null,null,null,null,null,null,"","",""]
[null,"MRC :",null,null,null,null,null,null,null,null,null,null,null,null,null,null,null,null,null,null,null,"","",""]
[null,"Code de traitement DICA :",{"$f":"IF(G9<>\"\",G9,\"\")","v":""},null,null,null,null,null,null,null,null,null,null,null,null,null,null,null,null,null,null,"","",""]
[null,"Code de traitement RATF :",{"$f":"IF(G10<>\"\",G10,\"\")","v":""},null,null,null,null,null,null,null,null,null,null,null,null,null,null,null,null,null,null,"","",""]
[null,"Type d'attribution :",null,null,null,null,null,null,null,null,null,null,null,null,null,null,null,null,null,null,null,"","",""]
[null,"Taux AOP :",null,null,null,null,null,null,null,null,null,null,null,null,null,null,null,null,null,null,null,"","",""]
[null,"Nom de l'entrepreneur :",null,null,null,null,null,null,null,null,null,null,null,null,null,null,null,null,null,null,null,"","",""]
[null,"Numéro de fournisseur :",null,null,null,null,null,null,null,null,null,null,null,null,null,null,null,null,null,null,null,"","",""]
[null,"Date de début :"]
[null,"Date de fin :"]
[null,"Commentaires :"]

{"sheet":"Régénération artificielle","index":1,"n_rows":195,"n_cols":7,"rows_kept":195,"cut":false,"hidden":false,"merged":[[130,0,130,5],[172,0,172,5],[162,0,162,5],[140,0,140,5],[142,0,142,5],[158,0,158,5],[168,0,168,6],[159,0,159,5],[157,0,157,5],[155,0,155,5],[146,0,146,5],[150,0,150,5],[151,0,151,5],[167,0,167,6],[164,0,164,5],[160,0,160,5],[161,0,161,5],[169,6,171,6],[163,0,163,5],[132,0,132,5],[139,0,139,6],[136,0,136,5],[111,0,111,5],[105,0,105,5],[63,4,63,5],[78,0,78,3],[81,0,81,6],[148,0,148,5],[64,4,64,5],[78,4,78,5],[149,0,149,5],[128,0,128,5],[125,0,125,6],[126,0,126,5],[101,0,101,5],[92,0,92,5],[115,0,115,5],[127,0,127,5],[90,0,90,5],[89,0,89,5],[91,0,91,5],[67,4,67,5],[147,0,147,5],[131,0,131,5],[133,0,133,5],[134,0,134,5],[59,1,59,2],[93,0,93,5],[65,0,65,6],[66,0,66,6],[79,4,79,5],[94,0,94,5],[27,1,27,5],[26,1,26,4],[173,0,174,5],[173,6,174,6],[68,0,68,6],[62,0,62,6],[86,0,86,5],[100,0,100,5],[114,0,114,5],[122,0,122,5],[112,0,112,5],[113,0,113,5],[109,0,109,5],[98,0,98,5],[99,0,99,5],[104,0,104,5],[103,0,103,5],[106,0,106,5],[22,1,22,4],[11,0,11,5],[13,0,13,5],[18,1,18,4],[23,0,23,5],[19,1,19,5],[50,0,50,6],[51,0,51,6],[54,1,54,2],[35,0,35,6],[46,0,46,6],[44,0,44,6],[37,1,38,1],[37,0,38,0],[31,1,31,4],[20,2,20,5],[20,1,21,1],[20,0,21,0],[63,0,63,3],[102,0,102,5],[84,0,84,5],[85,0,85,5],[70,0,70,5],[71,0,71,5],[82,0,82,6],[83,0,83,5],[80,0,80,3],[95,0,95,5],[74,0,75,0],[67,0,67,3],[76,0,76,6],[69,0,69,6],[57,1,57,2],[55,1,55,2],[96,0,96,6],[64,0,64,3],[137,0,137,5],[138,0,138,5],[60,3,60,5],[156,0,156,5],[0,0,0,6],[1,0,1,4],[2,0,2,6],[3,0,3,6],[15,0,15,6],[16,0,16,6],[25,0,25,6],[28,1,30,1],[24,0,24,5],[10,0,10,6],[14,0,14,6],[17,0,17,6],[4,0,4,5],[5,0,5,5],[6,0,6,5],[7,0,7,5],[8,0,8,5],[9,0,9,5],[12,0,12,5],[29,2,29,4],[28,2,28,5],[28,0,30,0],[30,2,30,5],[21,2,21,4],[180,2,181,4],[60,0,60,2],[79,0,79,3],[80,4,80,5],[74,4,75,4],[75,1,75,3],[74,1,74,3],[144,0,144,5],[143,0,143,5],[141,0,141,5],[123,0,123,5],[178,0,178,4],[165,0,165,5],[166,0,166,5],[154,0,154,5],[124,0,124,5],[175,0,175,5],[169,0,171,5],[152,0,152,6],[153,0,153,5],[107,0,107,5],[108,0,108,5],[59,3,59,5],[61,0,61,6],[88,0,88,5],[77,0,77,6],[135,0,135,5],[145,0,145,5],[129,0,129,5],[116,0,116,5],[117,0,117,5],[119,0,119,5],[120,0,120,5],[72,0,72,5],[73,0,73,5],[97,0,97,5],[87,0,87,5],[118,0,118,5],[121,0,121,5],[110,0,110,6],[58,3,58,5],[38,2,38,4],[39,1,39,4],[40,0,40,5],[41,0,41,5],[42,0,42,5],[32,0,32,5],[33,0,33,5],[34,0,34,5],[57,3,57,5],[56,1,56,2],[58,1,58,2],[43,0,43,5],[47,0,47,5],[48,0,48,5],[49,0,49,5],[45,0,45,5],[54,3,54,5],[55,3,55,5],[56,3,56,5],[52,0,52,6],[53,0,53,6],[36,1,36,5],[37,2,37,5]]}
[]
["Annexe au calcul des taux des traitements non commerciaux                                                                                                                                                                                                                                           2017-2018                                                                                                                                                                                                                                                                              Régénération artificielle"]
[" *** Veuillez saisir les informations dans les cellules blanches seulement ***"]
["Identification"]
["UA"]
["Secteur d'intervention"]
["Unité de compilation"]
["Numéro de la prescription"]
["Traitement (code DICA)"]
["Traitement (code RATF)"]
["Traitement d'éducation de peuplement à taux fixe ou variable"]
["Traitement",null,null,null,null,null,"Inscrire une valeur"]
["Taux de base",null,null,null,null,null,{"$f":"IF(ISNA(VLOOKUP($G$12,Menus!A264:C270,2,FALSE)),\"\",VLOOKUP($G$12,Menus!A264:C270,2,FALSE))","v":0}]
["Unité de mesure",null,null,null,null,null,{"$f":"IF(ISNA(VLOOKUP($G$12,Menus!A264:C270,3,FALSE)),\"\",VLOOKUP($G$12,Menus!A264:C270,3,FALSE))","v":"-"}]
["Taux d'exécution à déterminer selon la formule suivante"]
[{"$f":"IF(G12=Formules!B10,Formules!D10,IF(G12=Formules!B11,Formules!D11,IF(G12=Formules!B12,Formules!D12,\"\")))","v":""}]
[{"$f":"\"Valeurs spécifiques à remplir selon le traitement - \"&G12","v":"Valeurs spécifiques à remplir selon le traitement - Inscrire une valeur"}]
["Valeurs spécifiques à remplir selon le traitement - Plantation uniforme et regarni en plein manuel sauf PEH"]
["PR","Préparation de terrain",null,null,null,{"$f":"IF(G19=Menus!A273,Menus!B273,IF(G19=Menus!A274,Menus!B274,\"\"))","v":""}]
["DE","Densité totale (nombre de plants à mettre en terre par hectare)"]
["DS","Distance entre les rangées de plants","Objectif de densité de plantation à terme : Outil de calcul afin de permettre d'afficher une valeur suggérée pour DS"]
[null,null,"Outil de calcul de la valeur de la variable «DS» en fonction de «Objectif de densité de plantation à terme». Une valeur différente peut être inscrite",null,null,{"$f":"IF(ISERR(ROUND(SQRT(10000/G21),2)),0,ROUND(SQRT(10000/G21),2))","v":0}]
["Gabarit","Constante liée au gabarit retenu",null,null,null,{"$f":"IF(G23=Menus!A277,Menus!B277,IF(G23=Menus!A278,Menus!B278,IF(G23=Menus!A279,Menus!B279,IF(G23=Menus!A280,Menus!B280,IF(G23=Menus!A281,Menus!B281,IF(G23=Menus!A282,Menus!B282,\"\"))))))","v":""}]
["Nombre total de milliers de plants à mettre en terre"]
["Taux calculé à partir de l'équation et des variables reliées au traitement",null,null,null,null,null,{"$f":"IF(ISERR('Calculs grille'!I20+'Calculs grille'!I21*F19+('Calculs grille'!I22/(G20*G22))+F23),0,'Calculs grille'!I20+'Calculs grille'!I21*F19+('Calculs grille'!I22/(G20*G22))+F23)","v":0}]
["Valeurs spécifiques à remplir selon le traitement - Regarni de sentier et enrichissement manuel sauf PEH"]
["PR","Préparation de terrain",null,null,null,{"$f":"IF(G27=Menus!A273,Menus!B273,IF(G27=Menus!A274,Menus!B274,\"\"))","v":""}]
["DE","Densité totale (nombre de plants à mettre en terre par hectare)"]
["DS","Distance entre les rangées de plants","Objectif de densité de plantation à terme"]
[null,null,"Outil de calcul de la valeur de la variable «DS» en fonction de «Objectif de densité de plantation à terme». Une valeur différente peut être inscrite",null,null,{"$f":"IF(ISERR(ROUND(SQRT(10000/G29),2)),0,ROUND(SQRT(10000/G29),2))","v":0}]
[null,null,"Calcul de la distance ajustée entre les plants (DSA), en fonction de «Objectif de densité de plantation à terme» et de «Pourcentage d'occupation des sentiers (regarni) ou proportion de la superficie traitée (enrichissement)». La valeur DSA calculée et la valeur DS inscrite par l'utilisateur seront utilisées pour calculer le taux.",null,null,null,{"$f":"IF(ISERR(F30/G33),0,F30/G33)","v":0}]
["Gabarit","Constante liée au gabarit retenu",null,null,null,{"$f":"IF(G32=Menus!A277,Menus!B277,IF(G32=Menus!A278,Menus!B278,IF(G32=Menus!A279,Menus!B279,IF(G32=Menus!A280,Menus!B280,IF(G32=Menus!A281,Menus!B281,IF(G32=Menus!A282,Menus!B282,\"\"))))))","v":""}]
["Pourcentage d'occupation des sentiers (regarni) ou proportion de la superficie traitée (enrichissement)"]
["Nombre total de milliers de plants à mettre en terre"]
["Taux calculé à partir de l'équation et des variables reliées au traitement",null,null,null,null,null,{"$f":"IF(ISERR(IF(G33=\"\",('Calculs grille'!I20+'Calculs grille'!I21*F27+('Calculs grille'!I22/(G28*G30))+F32),('Calculs grille'!I20+'Calculs grille'!I21*F27+('Calculs grille'!I22/(G28*G31))+F32)*(1+((('Calculs grille'!I20+'Calculs grille'!I21*F27+('Calculs grille'!I22/(G29*G30))+F32)-('Calculs grille'!I20+'Calculs grille'!I21*F27+('Calculs grille'!I22/(G29*G31))+F32))/('Calculs grille'!I20+'Calculs grille'!I21*F27+('Calculs grille'!I22/(G29*G31))+F32))))),0,IF(G33=\"\",('Calculs grille'!I20+'Calculs grille'!I21*F27+('Calculs grille'!I22/(G28*G30))+F32),('Calculs grille'!I20+'Calculs grille'!I21*F27+('Calculs grille'!I22/(G28*G31))+F32)*(1+((('Calculs grille'!I20+'Calculs grille'!I21*F27+('Calculs grille'!I22/(G29*G30))+F32)-('Calculs grille'!I20+'Calculs grille'!I21*F27+('Calculs grille'!I22/(G29*G31))+F32))/('Calculs grille'!I20+'Calculs grille'!I21*F27+('Calculs grille'!I22/(G29*G31))+F32)))))","v":0}]
["Valeurs spécifiques à remplir selon le traitement - Plantation uniforme et regarni en plein manuel sentier préparé sauf PEH"]
["DE","Densité totale (indiquer le nombre de plants à mettre en terre par hectare)"]
["DS","Distance entre les rangées de plants","Objectif de densité de plantation à terme : Outil de calcul afin de permettre d'afficher une valeur suggérée pour DS"]
[null,null,"Outil de calcul de la valeur de la variable «DS» en fonction de «Objectif de densité de plantation à terme». Une valeur différente peut être inscrite",null,null,{"$f":"IF(ISERR(ROUND(SQRT(10000/G38),2)),0,ROUND(SQRT(10000/G38),2))","v":0}]
["Gabarit","Constante liée au gabarit retenu",null,null,null,{"$f":"IF(G40=Menus!A277,Menus!B277,IF(G40=Menus!A278,Menus!B278,IF(G40=Menus!A279,Menus!B279,IF(G40=Menus!A280,Menus!B280,IF(G40=Menus!A281,Menus!B281,IF(G40=Menus!A282,Menus!B282,\"\"))))))","v":""}]
["Nombre total de milliers de plants à mettre en terre dans les SENTIERS"]
["Nombre total de milliers de plants à mettre en terre dans les BANDES"]
["Taux calculé à partir de l'équation et des variables reliées au traitement AVEC préparation de terrain",null,null,null,null,null,{"$f":"IF(ISERR('Calculs grille'!I20+'Calculs grille'!I21*1+('Calculs grille'!I22/(G37*G39))+F40),0,'Calculs grille'!I20+'Calculs grille'!I21*1+('Calculs grille'!I22/(G37*G39))+F40)","v":0}]
["Taux calculé à partir de l'équation et des variables reliées au traitement SANS préparation de terrain",null,null,null,null,null,{"$f":"IF(ISERR('Calculs grille'!I20+'Calculs grille'!I21*0+('Calculs grille'!I22/(G37*G39))+F40),0,'Calculs grille'!I20+'Calculs grille'!I21*0+('Calculs grille'!I22/(G37*G39))+F40)","v":0}]
["Valeurs spécifiques à remplir selon le traitement - Plantation uniforme PEH"]
["Nombre de milliers de plants à mettre en terre"]
["Valeurs spécifiques à remplir selon le traitement - Plantation uniforme et regarni mécanique (Scarificateur-planteur Bracke P-11a)"]
["Spécification"]
["Nombre de milliers de plants à mettre en terre"]
["Taux",null,null,null,null,null,{"$f":"IF(G48=Menus!A285,Menus!B285,IF(G48=Menus!A286,Menus!B286,IF(G48=Menus!A287,Menus!B287,IF(G48=Menus!A288,Menus!B288,0))))","v":0}]
[{"$f":"\"Majorations applicables à l'exécution - \"&G12","v":"Majorations applicables à l'exécution - Inscrire une valeur"}]
[{"$f":"IF(G12='Majorations applicables'!C23,'Majorations applicables'!K23,IF(G12='Majorations applicables'!C24,'Majorations applicables'!K24,IF(G12='Majorations applicables'!C25,'Majorations applicables'!K25,IF(G12='Majorations applicables'!C26,'Majorations applicables'!K26,IF(G12='Majorations applicables'!C27,'Majorations applicables'!K27,IF(G12='Majorations applicables'!C28,'Majorations applicables'!K28,\"\"))))))","v":""}]
["Majoration pour la pente (PE2)"]
["Majoration pour la pente (PE2) - Ensemencement terrestre manuel"]
["Classe de pente numérique","Taux calculé",null,"Écart",null,null,"Superficie (hectare)"]
["Pente A",{"$f":"$G$13*(1+0)","v":0},{"$f":"B56-$G$12","v":{"$error":"#VALUE!"}},{"$f":"B56-$G$13","v":0}]
["Pente B",{"$f":"$G$13*(1+0)","v":0},{"$f":"B57-$G$12","v":{"$error":"#VALUE!"}},{"$f":"B57-$G$13","v":0}]
["Pente C",{"$f":"$G$13*(1+0.007)","v":0},{"$f":"B58-$G$12","v":{"$error":"#VALUE!"}},{"$f":"B58-$G$13","v":0}]
["Pente D",{"$f":"$G$13*(1+0.026)","v":0},{"$f":"B59-$G$12","v":{"$error":"#VALUE!"}},{"$f":"B59-$G$13","v":0}]
["Pente E",{"$f":"$G$13*(1+0.061)","v":0},{"$f":"B60-$G$12","v":{"$error":"#VALUE!"}},{"$f":"B60-$G$13","v":0}]
[null,null,null,"Total",null,null,{"$f":"SUM(G56:G60)","v":0}]
["Majoration pour l'hébergement, le transport collectif et la distance du secteur d'intervention (H2, TC et D200)"]
["Majoration pour l'hébergement, le transport collectif et la distance du secteur d'intervention (H2, TC et D200) - Tous sauf D200 pour Bracke"]
["Hébergement (H2 ou TC)",null,null,null,{"$f":"IF(G64=\"\",\"\",IF(G64=Menus!A291,Menus!B291,IF(G64=Menus!A292,Menus!B292,IF(G64=Menus!A293,Menus!B293,IF(G64=Menus!A294,Menus!B294,IF(G64<=0.126,G64,\"Max 12,6%\"))))))","v":""}]
["Distance du secteur d'intervention (D200)",null,null,null,{"$f":"IF(G65=Menus!A302,Menus!B302,IF(G65=Menus!A303,Menus!B303,\"\"))","v":""}]
["Majoration pour la certification (CEAF2 ou ISO2)"]
["Majoration pour la certification (CEAF2 ou ISO2) - Tous"]
["Certification (CEAF2 ou ISO2)",null,null,null,{"$f":"IF(G68=Menus!$A$306,Menus!$B$306,IF(G68=Menus!$A$307,Menus!$B$307,IF(G68=Menus!$A$308,Menus!$B$308,\"\")))","v":""}]
["Vérification"]
["Vérification - Tous"]
["Délimitation des secteurs (taux par kilomètre délimité)"]
["Nombre de kilomètres délimités"]
["Inventaire après traitement (taux par placette inventoriée)"]
["Nombre de placettes inventoriées"]
["Critères 2","Coefficient de distribution de placette en partie ou en totalité sur un andain",null,null,{"$f":"SUM(F75:F76)*'Calculs grille'!$I$91","v":0},{"$f":"IF(G75=\"Oui\",1,IF(G75=\"Non\",0,\"\"))","v":""}]
[null,"Évaluation qualitative de l'alignement des plants",null,null,null,{"$f":"IF(G76=\"Oui\",1,IF(G76=\"Non\",0,\"\"))","v":""}]
["Vérification - Majoration pour l'hébergement, la distance du secteur d'intervention et la traçabilité des plants (H3, D200 et TRA)"]
["Vérification - Majoration pour l'hébergement, la distance du secteur d'intervention et la traçabilité des plants (H3, D200 et TRA) - Tous sauf TRA pour Ensemencement terrestre manuel"]
["Hébergement (H3)",null,null,null,{"$f":"IF(G79=\"\",\"\",IF(G79=Menus!A297,Menus!B297,IF(G79=Menus!A298,Menus!B298,IF(G79=Menus!A299,Menus!B299,IF(G79<=0.091,G79,\"Max 9,1%\")))))","v":""}]
["Distance du secteur d'intervention (D200)",null,null,null,{"$f":"IF(G80=Menus!$A$39,Menus!$B$39,IF(G80=Menus!$A$40,Menus!$B$40,\"\"))","v":""}]
["Traçabilité (TRA) taux par milliers de plants",null,null,null,{"$f":"IF(G81=Menus!$A$323,Menus!$B$323,IF(G81=Menus!$A$324,Menus!$B$324,\"\"))","v":""}]
["Total"]
["Calculs - Plantation uniforme et regarni en plein manuel sauf PEH"]
["Taux d'exécution de base",null,null,null,null,null,{"$f":"IF(ISERR(G25),0,G25)","v":0}]
["Taux H2 ou TC",null,null,null,null,null,{"$f":"IF(ISERR(G84*E64),0,G84*E64)","v":0}]
["Taux D200",null,null,null,null,null,{"$f":"IF(ISERR(G84*E65),0,G84*E65)","v":0}]
["Taux CEAF2 ou ISO2",null,null,null,null,null,{"$f":"IF(ISERR(G84*$E$68),0,G84*$E$68)","v":0}]
["Taux exécution total et majoration(s) admissible(s)",null,null,null,null,null,{"$f":"IF(ISERR(ROUND(SUM(G84:G87),2)),0,ROUND(SUM(G84:G87),2))","v":0}]
["Taux vérification",null,null,null,null,null,{"$f":"IF(ISERR((($G$71*$G$72)+(($G$73+(SUM($F$75:$F$76)*'Calculs grille'!$I$91))*$G$74))/G93),0,(($G$71*$G$72)+(($G$73+(SUM($F$75:$F$76)*'Calculs grille'!$I$91))*$G$74))/G93)","v":0}]
["Taux H3 et/ou D200",null,null,null,null,null,{"$f":"IF(ISERR(G89*SUM(E79:F80)),0,G89*SUM(E79:F80))","v":0}]
["Taux TRA",null,null,null,null,null,{"$f":"IF(ISERR(SUM($E$81)),0,SUM($E$81))","v":0}]
["Taux exécution et vérification total",null,null,null,null,null,{"$f":"IF(ISERR(ROUND(SUM(G88:G91),2)),0,ROUND(SUM(G88:G91),2))","v":0}]
["Nombre de milliers de plants",null,null,null,null,null,{"$f":"IF(ISERR(ROUND(G24,3)),0,ROUND(G24,3))","v":0}]
["Total exécution",null,null,null,null,null,{"$f":"IF(ISERR(G88*G93),0,G88*G93)","v":0}]
["Total vérification",null,null,null,null,null,{"$f":"IF(ISERR(ROUND(SUM(G89:G91),2)*G93),0,ROUND(SUM(G89:G91),2)*G93)","v":0}]
["Grand total admissible",null,null,null,null,null,{"$f":"IF(ISERR(SUM(G94:G95)),0,SUM(G94:G95))","v":0}]
["Calculs - Regarni de sentier et enrichissement manuel sauf PEH"]
["Taux d'exécution de base",null,null,null,null,null,{"$f":"IF(ISERR(G35),0,G35)","v":0}]
["Taux H2 ou TC",null,null,null,null,null,{"$f":"IF(ISERR(G98*E64),0,G98*E64)","v":0}]
["Taux D200",null,null,null,null,null,{"$f":"IF(ISERR(G98*E65),0,G98*E65)","v":0}]
["Taux CEAF2 ou ISO2",null,null,null,null,null,{"$f":"IF(ISERR(G98*$E$68),0,G98*$E$68)","v":0}]
["Taux exécution total et majoration(s) admissible(s)",null,null,null,null,null,{"$f":"IF(ISERR(ROUND(SUM(G98:G101),2)),0,ROUND(SUM(G98:G101),2))","v":0}]
["Taux vérification",null,null,null,null,null,{"$f":"IF(ISERR((($G$71*$G$72)+(($G$73+(SUM($F$75:$F$76)*'Calculs grille'!$I$91))*$G$74))/G107),0,(($G$71*$G$72)+(($G$73+(SUM($F$75:$F$76)*'Calculs grille'!$I$91))*$G$74))/G107)","v":0}]
["Taux H3 et/ou D200",null,null,null,null,null,{"$f":"IF(ISERR(G103*SUM(E79:F80)),0,G103*SUM(E79:F80))","v":0}]
["Taux TRA",null,null,null,null,null,{"$f":"IF(ISERR(SUM($E$81)),0,SUM($E$81))","v":0}]
["Taux exécution et vérification total",null,null,null,null,null,{"$f":"IF(ISERR(ROUND(SUM(G102:G105),2)),0,ROUND(SUM(G102:G105),2))","v":0}]
["Nombre de milliers de plants",null,null,null,null,null,{"$f":"IF(ISERR(ROUND(G34,3)),0,ROUND(G34,3))","v":0}]
["Total exécution",null,null,null,null,null,{"$f":"IF(ISERR(G102*G107),0,G102*G107)","v":0}]
["Total vérification",null,null,null,null,null,{"$f":"IF(ISERR(ROUND(SUM(G103:G105),2)*G107),0,ROUND(SUM(G103:G105),2)*G107)","v":0}]
["Grand total admissible",null,null,null,null,null,{"$f":"IF(ISERR(SUM(G108:G109)),0,SUM(G108:G109))","v":0}]
["Calculs - Plantation uniforme et regarni en plein manuel sentier préparé sauf PEH"]
["Taux d'exécution de base",null,null,null,null,null,{"$f":"IF(ISERR(SUMPRODUCT($G$41:$G$42,$G$43:$G$44)/SUM($G$41:$G$42)),0,SUMPRODUCT($G$41:$G$42,$G$43:$G$44)/SUM($G$41:$G$42))","v":0}]
["Taux H2 ou TC",null,null,null,null,null,{"$f":"IF(ISERR(G112*E64),0,G112*E64)","v":0}]
["Taux D200",null,null,null,null,null,{"$f":"IF(ISERR(G112*E65),0,G112*E65)","v":0}]
["Taux CEAF2 ou ISO2",null,null,null,null,null,{"$f":"IF(ISERR(G112*$E$68),0,G112*$E$68)","v":0}]
["Taux exécution total et majoration(s) admissible(s)",null,null,null,null,null,{"$f":"IF(ISERR(ROUND(SUM(G112:G115),2)),0,ROUND(SUM(G112:G115),2))","v":0}]
["Taux vérification",null,null,null,null,null,{"$f":"IF(ISERR((($G$71*$G$72)+(($G$73+(SUM($F$75:$F$76)*'Calculs grille'!$I$91))*$G$74))/SUM(G121:G122)),0,(($G$71*$G$72)+(($G$73+(SUM($F$75:$F$76)*'Calculs grille'!$I$91))*$G$74))/SUM(G121:G122))","v":0}]
["Taux H3 et/ou D200",null,null,null,null,null,{"$f":"IF(ISERR(G117*SUM(E79:F80)),0,G117*SUM(E79:F80))","v":0}]
["Taux TRA",null,null,null,null,null,{"$f":"IF(ISERR(SUM($E$81)),0,SUM($E$81))","v":0}]
["Taux exécution et vérification total",null,null,null,null,null,{"$f":"IF(ISERR(ROUND(SUM(G116:G119),2)),0,ROUND(SUM(G116:G119),2))","v":0}]
["Nombre de milliers de plants dans les SENTIERS",null,null,null,null,null,{"$f":"IF(ISERR(ROUND(G41,3)),0,ROUND(G41,3))","v":0}]
["Nombre de milliers de plants dans les BANDES",null,null,null,null,null,{"$f":"IF(ISERR(ROUND(G42,3)),0,ROUND(G42,3))","v":0}]
["Total exécution",null,null,null,null,null,{"$f":"IF(ISERR(G116*SUM(G121:G122)),0,G116*SUM(G121:G122))","v":0}]
["Total vérification",null,null,null,null,null,{"$f":"IF(ISERR(ROUND(SUM(G117:G119),2)*SUM(G121:G122)),0,ROUND(SUM(G117:G119),2)*SUM(G121:G122))","v":0}]
["Grand total admissible",null,null,null,null,null,{"$f":"IF(ISERR(SUM(G123:G124)),0,SUM(G123:G124))","v":0}]
["Calculs - Plantation uniforme PEH"]
["Taux d'exécution de base",null,null,null,null,null,{"$f":"IF(ISERR(G13),0,G13)","v":0}]
["Taux H2 ou TC",null,null,null,null,null,{"$f":"IF(ISERR(G127*E64),0,G127*E64)","v":0}]
["Taux D200",null,null,null,null,null,{"$f":"IF(ISERR(G127*E65),0,G127*E65)","v":0}]
["Taux CEAF2 ou ISO2",null,null,null,null,null,{"$f":"IF(ISERR(G127*$E$68),0,G127*$E$68)","v":0}]
["Taux exécution total et majoration(s) admissible(s)",null,null,null,null,null,{"$f":"IF(ISERR(ROUND(SUM(G127:G130),2)),0,ROUND(SUM(G127:G130),2))","v":0}]
["Taux vérification",null,null,null,null,null,{"$f":"IF(ISERR((($G$71*$G$72)+(($G$73+(SUM($F$75:$F$76)*'Calculs grille'!$I$91))*$G$74))/G136),0,(($G$71*$G$72)+(($G$73+(SUM($F$75:$F$76)*'Calculs grille'!$I$91))*$G$74))/G136)","v":0}]
["Taux H3 et/ou D200",null,null,null,null,null,{"$f":"IF(ISERR(G132*SUM(E79:F80)),0,G132*SUM(E79:F80))","v":0}]
["Taux TRA",null,null,null,null,null,{"$f":"IF(ISERR(SUM($E$81)),0,SUM($E$81))","v":0}]
["Taux exécution et vérification total",null,null,null,null,null,{"$f":"IF(ISERR(ROUND(SUM(G131:G134),2)),0,ROUND(SUM(G131:G134),2))","v":0}]
["Nombre de milliers de plants",null,null,null,null,null,{"$f":"IF(ISERR(ROUND(G46,3)),0,ROUND(G46,3))","v":0}]
["Total exécution",null,null,null,null,null,{"$f":"IF(ISERR(G131*G136),0,G131*G136)","v":0}]
["Total vérification",null,null,null,null,null,{"$f":"IF(ISERR(ROUND(SUM(G132:G134),2)*G136),0,ROUND(SUM(G132:G134),2)*G136)","v":0}]
["Grand total admissible",null,null,null,null,null,{"$f":"IF(ISERR(SUM(G137:G138)),0,SUM(G137:G138))","v":0}]
["Calculs - Plantation uniforme et regarni mécanique (Scarificateur-planteur Bracke P-11a)"]
["Taux d'exécution de base",null,null,null,null,null,{"$f":"IF(ISERR(IF(G50=\"\",0,G50)),0,IF(G50=\"\",0,G50))","v":0}]
["Taux H2",null,null,null,null,null,{"$f":"IF(ISERR(G141*E64),0,G141*E64)","v":0}]
["Taux CEAF2 ou ISO2",null,null,null,null,null,{"$f":"IF(ISERR(G141*E68),0,G141*E68)","v":0}]
["Taux exécution total et majoration(s) admissible(s)",null,null,null,null,null,{"$f":"IF(ISERR(ROUND(SUM(G141:G143),2)),0,ROUND(SUM(G141:G143),2))","v":0}]
["Taux vérification",null,null,null,null,null,{"$f":"IF(ISERR(((G71*G72)+(($G$73+((SUM($F$75:$F$76)))*'Calculs grille'!$I$91)*$G$74))/$G$149),0,((G71*G72)+(($G$73+((SUM($F$75:$F$76)))*'Calculs grille'!$I$91)*$G$74))/$G$149)","v":0}]
["Taux H3 et/ou D200",null,null,null,null,null,{"$f":"IF(ISERR(G145*SUM(E79:F80)),0,G145*SUM(E79:F80))","v":0}]
["Taux TRA",null,null,null,null,null,{"$f":"IF(ISERR(SUM($E$81)),0,SUM($E$81))","v":0}]
["Taux exécution et vérification total",null,null,null,null,null,{"$f":"IF(ISERR(ROUND(SUM(G144:G147),2)),0,ROUND(SUM(G144:G147),2))","v":0}]
["Nombre de milliers de plants",null,null,null,null,null,{"$f":"IF(ISERR(ROUND(G49,3)),0,ROUND(G49,3))","v":0}]
["Total exécution",null,null,null,null,null,{"$f":"IF(ISERR(G144*G149),0,G144*G149)","v":0}]
["Total vérification",null,null,null,null,null,{"$f":"IF(ISERR(ROUND(SUM(G145:G147),2)*G149),0,ROUND(SUM(G145:G147),2)*G149)","v":0}]
["Grand total admissible",null,null,null,null,null,{"$f":"IF(ISERR(SUM(G150:G151)),0,SUM(G150:G151))","v":0}]
["Calculs - Ensemencement terrestre manuel"]
["Taux d'exécution de base",null,null,null,null,null,{"$f":"IF(ISERR(G13),0,G13)","v":0}]
["Taux PE2",null,null,null,null,null,{"$f":"IF(ISERR(SUMPRODUCT(D56:D60,G56:G60)/G61),0,SUMPRODUCT(D56:D60,G56:G60)/G61)","v":0}]
["Taux sous-total exécution",null,null,null,null,null,{"$f":"IF(ISERR(SUM(G154:G155)),0,SUM(G154:G155))","v":0}]
["Taux H2 ou TC",null,null,null,null,null,{"$f":"IF(ISERR(G156*E64),0,G156*E64)","v":0}]
["Taux D200",null,null,null,null,null,{"$f":"IF(ISERR(G156*E65),0,G156*E65)","v":0}]
["Taux CEAF2 ou ISO2",null,null,null,null,null,{"$f":"IF(ISERR(G156*$E$68),0,G156*$E$68)","v":0}]
["Taux exécution total et majoration(s) admissible(s)",null,null,null,null,null,{"$f":"IF(ISERR(ROUND(SUM(G156:G159),2)),0,ROUND(SUM(G156:G159),2))","v":0}]
["Taux vérification",null,null,null,null,null,{"$f":"IF(ISERR(((G71*G72)+(($G$73+((SUM($F$75:$F$76)))*'Calculs grille'!$I$91)*$G$74))/$G$164),0,((G71*G72)+(($G$73+((SUM($F$75:$F$76)))*'Calculs grille'!$I$91)*$G$74))/$G$164)","v":0}]
["Taux H3 et/ou D200",null,null,null,null,null,{"$f":"IF(ISERR(G161*(SUM(E79:F81))),0,G161*SUM((E79:F80)))","v":0}]
["Taux exécution et vérification total",null,null,null,null,null,{"$f":"IF(ISERR(ROUND(SUM(G160:G162),2)),0,ROUND(SUM(G160:G162),2))","v":0}]
["Superficie",null,null,null,null,null,{"$f":"IF(ISERR(ROUND(G61,2)),0,ROUND(G61,2))","v":0}]
["Total exécution",null,null,null,null,null,{"$f":"IF(ISERR(G160*G164),0,G160*G164)","v":0}]
["Total vérification",null,null,null,null,null,{"$f":"IF(ISERR(ROUND(SUM(G161:G162),2)*G164),0,ROUND(SUM(G161:G162),2)*G164)","v":0}]
["Grand total admissible",null,null,null,null,null,{"$f":"IF(ISERR(SUM(G165:G166)),0,SUM(G165:G166))","v":0}]
[]
["J'atteste que les renseignements fournis dans ce document afin de calculer le taux du traitement sont complets et conformes à la vérité, au meilleur de mes connaissances."]
[]
[]
[]
["Nom et prénom de l'ingénieur forestier",null,null,null,null,null,"No de permis"]
[null,null,null,null,null,null,{"$f":"TODAY()","v":"2017-04-05"}]
[]
["Signature de l'ingénieur forestier",null,null,null,null,null,"Date (AAAA-MM-JJ)"]
[]
[]
["Section réservée au suivi du contrat"]
[]
[null,"Numéro de la prescription :",{"$f":"IF(G8<>\"\",G8,\"\")","v":""}]
[]
[null,"Numéro du contrat :"]
[null,"Numéro du projet :"]
[null,"U.G. :"]
[null,"MRC :"]
[null,"Code de traitement DICA :",{"$f":"IF(G9<>\"\",G9,\"\")","v":""}]
[null,"Code de traitement RATF :",{"$f":"IF(G10<>\"\",G10,\"\")","v":""}]
[null,"Type d'attribution : "]
[null,"Taux AOP : "]
[null,"Nom de l'entrepreneur : "]
[null,"Numéro de fournisseur : "]
[null,"Date de début :"]
[null,"Date de fin :"]
[null,"Commentaires :"]

{"sheet":"Éducation de peuplement","index":2,"n_rows":251,"n_cols":7,"rows_kept":251,"cut":false,"hidden":false,"merged":[[168,0,168,5],[42,1,42,4],[40,1,40,4],[39,1,39,5],[94,0,94,1],[72,0,72,1],[73,0,73,1],[85,0,85,6],[93,0,93,6],[86,0,86,1],[87,0,87,1],[88,0,88,1],[79,0,79,1],[78,0,78,1],[80,0,80,1],[81,0,81,1],[83,0,83,1],[77,0,77,6],[82,0,82,1],[64,0,64,1],[71,0,71,1],[91,0,91,1],[65,0,65,1],[66,0,66,1],[0,0,0,6],[2,0,2,6],[3,0,3,6],[50,0,50,6],[10,0,10,6],[12,0,12,6],[13,0,13,6],[1,0,1,4],[152,0,152,5],[115,1,115,3],[116,1,116,3],[117,1,117,3],[118,1,118,3],[119,1,119,3],[120,1,120,3],[121,1,121,3],[122,1,122,3],[25,0,25,6],[110,0,110,5],[96,0,96,1],[97,0,97,1],[98,0,98,1],[99,0,99,1],[68,0,68,2],[148,0,148,5],[220,0,220,5],[221,0,221,5],[162,0,162,5],[190,0,190,5],[129,0,129,6],[191,0,191,5],[149,0,149,5],[150,0,150,5],[170,0,170,5],[146,0,146,5],[206,0,206,5],[216,0,216,5],[172,0,172,5],[132,0,132,5],[155,0,155,5],[158,0,158,5],[184,0,184,5],[179,0,179,5],[180,0,180,5],[156,0,156,5],[159,0,159,5],[164,0,164,5],[161,0,161,6],[126,0,126,4],[127,0,127,4],[100,4,100,5],[92,4,92,5],[92,0,92,3],[94,2,94,3],[95,2,95,3],[96,2,96,3],[114,4,115,4],[125,0,125,6],[120,0,122,0],[89,0,89,1],[90,0,90,1],[111,0,111,5],[114,0,115,0],[113,0,113,5],[112,0,112,5],[116,0,119,0],[101,0,101,6],[103,0,103,4],[104,0,104,4],[94,4,94,5],[95,4,95,5],[96,4,96,5],[97,4,97,5],[98,4,98,5],[99,4,99,5],[102,0,102,6],[105,0,105,6],[106,0,106,6],[107,0,107,4],[234,0,234,4],[229,6,230,6],[231,0,231,5],[236,2,237,4],[174,0,174,5],[160,0,160,5],[145,0,145,6],[144,0,144,5],[141,0,141,5],[142,0,142,5],[143,0,143,5],[157,0,157,5],[182,0,182,5],[154,0,154,5],[163,0,163,5],[165,0,165,5],[166,0,166,5],[173,0,173,5],[153,0,153,5],[188,0,188,5],[189,0,189,5],[181,0,181,5],[222,0,222,5],[207,0,207,5],[225,0,227,5],[225,6,227,6],[228,0,228,5],[229,0,230,5],[212,0,212,5],[208,0,208,6],[197,0,197,5],[198,0,198,5],[200,0,200,5],[204,0,204,5],[201,0,201,5],[202,0,202,5],[203,0,203,5],[205,0,205,5],[209,0,209,5],[210,0,210,5],[211,0,211,5],[213,0,213,5],[215,0,215,5],[219,0,219,5],[218,0,218,5],[223,0,223,6],[224,0,224,6],[192,0,192,5],[194,0,194,5],[195,0,195,5],[193,0,193,6],[196,0,196,5],[169,0,169,5],[187,0,187,5],[175,0,175,5],[217,0,217,5],[178,0,178,5],[185,0,185,5],[186,0,186,5],[171,0,171,5],[177,0,177,6],[176,0,176,5],[199,0,199,5],[214,0,214,5],[26,2,26,5],[27,2,27,4],[28,2,28,4],[29,0,29,5],[37,0,37,5],[36,0,36,5],[35,1,35,4],[34,1,34,5],[91,2,91,3],[91,4,91,5],[54,0,54,1],[55,0,55,1],[56,0,56,1],[57,0,57,1],[58,0,58,1],[59,0,59,1],[62,0,62,1],[52,0,52,6],[60,0,60,2],[38,0,38,6],[53,0,53,6],[51,0,51,6],[41,1,41,5],[43,0,43,5],[19,0,19,5],[18,1,18,4],[21,2,21,5],[22,3,22,5],[23,3,23,4],[24,0,24,5],[108,0,108,6],[109,0,109,6],[95,0,95,1],[44,0,44,6],[30,0,30,6],[23,1,23,2],[20,0,20,6],[22,1,22,2],[61,0,61,6],[69,0,69,6],[88,2,88,3],[89,2,89,3],[90,2,90,3],[86,4,86,5],[87,4,87,5],[88,4,88,5],[89,4,89,5],[90,4,90,5],[4,0,4,5],[5,0,5,5],[6,0,6,5],[7,0,7,5],[8,0,8,5],[9,0,9,5],[11,0,11,5],[16,1,16,5],[17,1,17,5],[15,0,15,6],[14,0,14,6],[45,1,45,5],[46,1,46,5],[47,1,47,5],[48,1,48,5],[49,0,49,5],[86,2,86,3],[87,2,87,3],[63,0,63,1],[76,0,76,2],[84,0,84,2],[70,0,70,1],[74,0,74,1],[75,0,75,1],[67,0,67,1],[151,0,151,5],[167,0,167,5],[183,0,183,5],[116,4,119,4],[120,4,122,4],[114,1,114,3],[97,2,97,3],[98,2,98,3],[99,2,99,3],[100,0,100,3],[147,0,147,5],[130,0,130,5],[131,0,131,5],[133,0,133,5],[134,0,134,5],[136,0,136,5],[140,0,140,5],[137,0,137,5],[138,0,138,5],[139,0,139,5],[135,0,135,5],[124,0,124,6],[128,0,128,6],[123,0,123,5]]}
[]
["Annexe au calcul des taux des traitements non commerciaux                                                                                                                                                                                                                                           2017-2018                                                                                                                                                                                                                                                                              Éducation de peuplement"]
[" *** Veuillez saisir les informations dans les cellules blanches seulement ***"]
["Identification"]
["UA"]
["Secteur d'intervention"]
["Unité de compilation"]
["Numéro de la prescription"]
["Traitement (code DICA)"]
["Traitement (code RATF)"]
["Traitement d'éducation de peuplement à taux variable"]
["Traitement",null,null,null,null,null,"Inscrire une valeur"]
["Taux d'exécution à déterminer selon la formule suivante"]
[{"$f":"IF(G12=Formules!B2,Formules!D2,IF(G12=Formules!B3,Formules!D3,IF(G12=Formules!B4,Formules!D4,IF(G12=Formules!B5,Formules!D5,IF(G12=Formules!B6,Formules!D6,IF(G12=Formules!B7,Formules!D7,\"\"))))))","v":""}]
[{"$f":"\"Valeurs spécifiques à remplir selon le traitement - \"&G12","v":"Valeurs spécifiques à remplir selon le traitement - Inscrire une valeur"}]
["Valeurs spécifiques à remplir selon le traitement - Dégagement mécanique"]
["RECFFE","Pourcentage de superficie couverte par le framboisier, fougère et épilobe"]
["DI","Densité initiale à l'hectare soit le dénombrement de toutes les tiges de 1 m et plus de hauteur  "]
["MODE","Mode d'établissement de la régénération",null,null,null,{"$f":"IF(G19=Menus!B161,Menus!C161,IF(G19=Menus!B162,Menus!C162,\"\"))","v":""}]
["Taux calculé à partir de l'équation et des variables reliées au traitement",null,null,null,null,null,{"$f":"IF(ISERR((('Calculs grille'!I38+('Calculs grille'!I39*'Éducation de peuplement'!G17*100)+('Calculs grille'!I40*'Éducation de peuplement'!G18)+('Calculs grille'!I41*'Éducation de peuplement'!F19)))),0,(('Calculs grille'!I38+('Calculs grille'!I39*'Éducation de peuplement'!G17*100)+('Calculs grille'!I40*'Éducation de peuplement'!G18)+('Calculs grille'!I41*'Éducation de peuplement'!F19))))","v":0}]
["Valeurs spécifiques à remplir selon le traitement - Gaulis I (interspécifique et sans espacement)"]
["DI","Densité totale (tiges/hectare)","Dénombrement de toutes les tiges dont le diamètre à hauteur de souche (15cm) est supérieur à 1,5cm. Inventaire un an avant exécution: Résineux > 1,0m et Feuillus > 1,6m de hauteur. Inventaire même année qu'exécution: Résineux > 1,2 m et Feuillus > 1,8 m de hauteur. NB: Le dénombrement des tiges peut être effectué à partir de la hauteur de la tige ou du diamètre à hauteur de souche après entente avec les autorités."]
["SRLC","Stocking résineux libre de croître (%)",null,"Nombre de placettes contenant un résineux libre de croître sur le nombre total de placettes"]
["CP","Composition de peuplement",null,"Facteur d'ajustement",null,{"$f":"IF(G24=Menus!B165,Menus!C165,IF(G24=Menus!B166,Menus!C166,IF(G24=Menus!B167,Menus!C167,IF(G24=Menus!B168,Menus!C168,\"\"))))","v":""}]
["Taux calculé à partir de l'équation et des variables reliées au traitement",null,null,null,null,null,{"$f":"IF(ISERR((('Calculs grille'!I44+('Calculs grille'!I45*'Éducation de peuplement'!G22)-('Calculs grille'!I46*'Éducation de peuplement'!G23))*'Éducation de peuplement'!F24)),0,(('Calculs grille'!I44+('Calculs grille'!I45*'Éducation de peuplement'!G22)-(ABS('Calculs grille'!I46)*'Éducation de peuplement'!G23))*'Éducation de peuplement'!F24))","v":0}]
["Valeurs spécifiques à remplir selon le traitement - Gaulis II (intraspécifique avec espacement OU résineux sans espacement)"]
["DI","Densité totale (tiges/hectare)","Dénombrement de toutes les tiges dont le diamètre à hauteur de souche (15cm) est supérieur à 1,5cm. Inventaire un an avant exécution: Résineux > 1,0m et Feuillus > 1,6m de hauteur. Inventaire même année qu'exécution: Résineux > 1,2m et Feuillus > 1,8m de hauteur. NB: Le dénombrement des tiges peut être effectué à partir de la hauteur de la tige ou du diamètre à hauteur de souche après entente avec les autorités."]
["TP","Type de composition visée","Facteur d'ajustement",null,null,{"$f":"IF(G28=Menus!B171,Menus!C171,IF(G28=Menus!B172,Menus!C172,IF(G28=Menus!B173,Menus!C173,\"\")))","v":""}]
["CP","Composition de peuplement","Facteur d'ajustement",null,null,{"$f":"IF(G29=Menus!B174,Menus!C174,IF(G29=Menus!B175,Menus!C175,IF(G29=Menus!B176,Menus!C176,IF(G29=Menus!B177,Menus!C177,\"\"))))","v":""}]
["Taux calculé à partir de l'équation et des variables reliées au traitement",null,null,null,null,null,{"$f":"IF(ISERR(('Calculs grille'!I49*LN(G27)-'Calculs grille'!I50)*F28*F29)=TRUE,0,(('Calculs grille'!I49*LN(G27)-'Calculs grille'!I50)*F28*F29))","v":0}]
["Valeurs spécifiques à remplir selon le traitement - EPC par puit de lumière ET Taille de formation avec martelage"]
["Éclaircie précommerciale",null,null,null,null,{"$f":"IF(G32=Menus!B188,Menus!C188,IF(G32=Menus!B189,Menus!C189,\"\"))","v":""}]
["Martelage",null,null,null,null,{"$f":"IF(G33=Menus!B184,Menus!C184,IF(G33=Menus!B185,Menus!C185,\"\"))","v":""}]
["DENSTIGE","Densité d'arbres à éclaircir et/ou marteler et/ou tailler (tiges/ha)"]
["HTTIGE","Hauteur totale des arbres à éclaircir et/ou marteler et/ou tailler (m)"]
["TAIL","Taille de formation",null,null,null,{"$f":"IF(G36=Menus!B180,Menus!C180,IF(G36=Menus!B181,Menus!C181,\"\"))","v":""}]
[{"$f":"\"Taux calculé pour le traitement à partir de l'équation et des variables - \"&G32","v":"Taux calculé pour le traitement à partir de l'équation et des variables - "},null,null,null,null,null,{"$f":"IF(ISERR((('Calculs grille'!I53*G34*EXP('Calculs grille'!I54*G35)+'Calculs grille'!I64)*F32)),0,(('Calculs grille'!I53*G34*EXP('Calculs grille'!I54*G35)+'Calculs grille'!I64)*F32))","v":0}]
[{"$f":"\"Taux calculé pour \"&IF(AND(F36=0,F33=1)=TRUE,\"le martelage sans taille de formation\",IF(AND(F36=1,F33=0)=TRUE,\"la taille de formation sans martelage\",IF(AND(F36=1,F33=1)=TRUE,\"le martelage et la taille de formation\",\"la taille de formation et le martelage\")))","v":"Taux calculé pour la taille de formation et le martelage"},null,null,null,null,null,{"$f":"IF(ISERR(IF((AND(F33=1,F36=1))=TRUE,(('Calculs grille'!I55*G34/(('Calculs grille'!I56*G34)+'Calculs grille'!I57)+'Calculs grille'!I58*F36)+'Calculs grille'!I65+'Calculs grille'!I66),IF((AND(F33=1,F36=0))=TRUE,(('Calculs grille'!I55*G34/(('Calculs grille'!I56*G34)+'Calculs grille'!I57)+'Calculs grille'!I58*F36)+'Calculs grille'!I62),IF((AND(F32=0,F33=0,F36=1))=TRUE,\"Cette combinaison n'est pas possible\",IF((AND(F33=0,F36=1))=TRUE,(('Calculs grille'!I55*G34/(('Calculs grille'!I56*G34)+'Calculs grille'!I57)+'Calculs grille'!I58*F36)+'Calculs grille'!I66),0))))),0,IF((AND(F33=1,F36=1))=TRUE,(('Calculs grille'!I55*G34/(('Calculs grille'!I56*G34)+'Calculs grille'!I57)+'Calculs grille'!I58*F36)+'Calculs grille'!I65+'Calculs grille'!I66),IF((AND(F33=1,F36=0))=TRUE,(('Calculs grille'!I55*G34/(('Calculs grille'!I56*G34)+'Calculs grille'!I57)+'Calculs grille'!I58*F36)+'Calculs grille'!I62),IF((AND(F32=0,F33=0,F36=1))=TRUE,\"Cette combinaison n'est pas possible\",IF((AND(F33=0,F36=1))=TRUE,(('Calculs grille'!I55*G34/(('Calculs grille'!I56*G34)+'Calculs grille'!I57)+'Calculs grille'!I58*F36)+'Calculs grille'!I66),0)))))","v":0}]
["Valeurs spécifiques à remplir selon le traitement - Élagage pour fins de qualité"]
["BRAN","Nombre de branches à couper par tige"]
["LONGELA","Longueur d'élagage ",null,null,null,{"$f":"IF(G41=Menus!B192,Menus!C192,IF(G41=Menus!B193,Menus!C193,\"\"))","v":""}]
["DENSELA","Densité d'arbres à élaguer par hectare"]
["MP","Martelage positif selon le nombre de tiges/ha",null,null,null,{"$f":"IF(G43=Menus!A196,Menus!B196,IF(G43=Menus!A197,Menus!B197,IF(G43=Menus!A198,Menus!B198,\"\")))","v":""}]
["Taux calculé à partir de l'équation et des variables reliées au traitement",null,null,null,null,null,{"$f":"IF(ISERR((('Calculs grille'!I69*G40+'Calculs grille'!I70+'Calculs grille'!I71*F41)\n+(-'Calculs grille'!I72*LN(G42)+'Calculs grille'!I73))*G42+F43+'Calculs grille'!I76),0,(('Calculs grille'!I69*G40+'Calculs grille'!I70+'Calculs grille'!I71*F41)\n+(-'Calculs grille'!I72*LN(G42)+'Calculs grille'!I73))*G42+F43+'Calculs grille'!I76)","v":0}]
["Valeurs spécifiques à remplir selon le traitement - Taille phytosanitaire"]
["BRAN","Nombre de branches à couper par tige"]
["DENSELA","Densité de tiges à élaguer à l'hectare"]
["DENSCO","Densité de tiges à couper à l'hectare"]
["DENSTF","Densité de tiges à tailler à l'hectare"]
["Taux calculé à partir de l'équation et des variables reliées au traitement",null,null,null,null,null,{"$f":"IF(ISERR(((('Calculs grille'!I79*'Éducation de peuplement'!G46+'Calculs grille'!I80+(-'Calculs grille'!I81*LN('Éducation de peuplement'!G47)+'Calculs grille'!I82))*'Éducation de peuplement'!G47)+'Calculs grille'!I83*'Éducation de peuplement'!G48+'Calculs grille'!I84*'Éducation de peuplement'!G49+'Calculs grille'!I85)),0,((('Calculs grille'!I79*'Éducation de peuplement'!G46+'Calculs grille'!I80+(-'Calculs grille'!I81*LN('Éducation de peuplement'!G47)+'Calculs grille'!I82))*'Éducation de peuplement'!G47)+'Calculs grille'!I83*'Éducation de peuplement'!G48+'Calculs grille'!I84*'Éducation de peuplement'!G49+'Calculs grille'!I85))","v":0}]
[{"$f":"\"Majorations applicables à l'exécution - \"&G12","v":"Majorations applicables à l'exécution - Inscrire une valeur"}]
[{"$f":"IF(G12='Majorations applicables'!C17,'Majorations applicables'!K17,IF(G12='Majorations applicables'!C18,'Majorations applicables'!K18,IF(G12='Majorations applicables'!C19,'Majorations applicables'!K19,IF(G12='Majorations applicables'!C20,'Majorations applicables'!K20,IF(G12='Majorations applicables'!C21,'Majorations applicables'!K21,IF(G12='Majorations applicables'!C22,'Majorations applicables'!K22,\"\"))))))","v":""}]
["Majoration pour la pente (PE2)"]
["Majoration pour la pente (PE2) - Dégagement mécanique"]
["Classe de pente numérique",null,"Taux calculé","Écart","Superficie nette (ha) excluant les andains","Superficie brute (hectare)","% andains"]
["Pente A",null,{"$f":"$G$20*(1+0)","v":0},{"$f":"C56-$G$20","v":0},{"$f":"F56*(1-G56)","v":0}]
["Pente B",null,{"$f":"$G$20*(1+0)","v":0},{"$f":"C57-$G$20","v":0},{"$f":"F57*(1-G57)","v":0}]
["Pente C",null,{"$f":"$G$20*(1+0.007)","v":0},{"$f":"C58-$G$20","v":0},{"$f":"F58*(1-G58)","v":0}]
["Pente D",null,{"$f":"$G$20*(1+0.026)","v":0},{"$f":"C59-$G$20","v":0},{"$f":"F59*(1-G59)","v":0}]
["Pente E",null,{"$f":"$G$20*(1+0.061)","v":0},{"$f":"C60-$G$20","v":0},{"$f":"F60*(1-G60)","v":0}]
[null,null,null,"Total",{"$f":"SUM(E56:E60)","v":0},{"$f":"SUM(F56:F60)","v":0},{"$f":"IF(ISERR(SUMPRODUCT(G56:G60,F56:F60)/F61),0,(SUMPRODUCT(G56:G60,F56:F60)/F61))","v":0}]
["Majoration pour la pente (PE2) - Gaulis I (interspécifique et sans espacement)"]
["Classe de pente numérique",null,"Taux calculé","Écart","Superficie nette (ha) excluant les andains","Superficie brute (hectare)","% andains"]
["Pente A",null,{"$f":"$G$25*(1+0)","v":0},{"$f":"C64-$G$25","v":0},{"$f":"F64*(1-G64)","v":0}]
["Pente B",null,{"$f":"$G$25*(1+0)","v":0},{"$f":"C65-$G$25","v":0},{"$f":"F65*(1-G65)","v":0}]
["Pente C",null,{"$f":"$G$25*(1+0.007)","v":0},{"$f":"C66-$G$25","v":0},{"$f":"F66*(1-G66)","v":0}]
["Pente D",null,{"$f":"$G$25*(1+0.026)","v":0},{"$f":"C67-$G$25","v":0},{"$f":"F67*(1-G67)","v":0}]
["Pente E",null,{"$f":"$G$25*(1+0.061)","v":0},{"$f":"C68-$G$25","v":0},{"$f":"F68*(1-G68)","v":0}]
[null,null,null,"Total",{"$f":"SUM(E64:E68)","v":0},{"$f":"SUM(F64:F68)","v":0},{"$f":"IF(ISERR(SUMPRODUCT(G64:G68,F64:F68)/F69),0,(SUMPRODUCT(G64:G68,F64:F68)/F69))","v":0}]
["Majoration pour la pente (PE2) - Gaulis II (intraspécifique avec espacement OU résineux sans espacement)"]
["Classe de pente numérique",null,"Taux calculé","Écart","Superficie nette (ha) excluant les andains","Superficie brute (hectare)","% andains"]
["Pente A",null,{"$f":"$G$30*(1+0)","v":0},{"$f":"C72-$G$30","v":0},{"$f":"F72*(1-G72)","v":0}]
["Pente B",null,{"$f":"$G$30*(1+0)","v":0},{"$f":"C73-$G$30","v":0},{"$f":"F73*(1-G73)","v":0}]
["Pente C",null,{"$f":"$G$30*(1+0.007)","v":0},{"$f":"C74-$G$30","v":0},{"$f":"F74*(1-G74)","v":0}]
["Pente D",null,{"$f":"$G$30*(1+0.026)","v":0},{"$f":"C75-$G$30","v":0},{"$f":"F75*(1-G75)","v":0}]
["Pente E",null,{"$f":"$G$30*(1+0.061)","v":0},{"$f":"C76-$G$30","v":0},{"$f":"F76*(1-G76)","v":0}]
[null,null,null,"Total",{"$f":"SUM(E72:E76)","v":0},{"$f":"SUM(F72:F76)","v":0},{"$f":"IF(ISERR(SUMPRODUCT(G72:G76,F72:F76)/F77),0,(SUMPRODUCT(G72:G76,F72:F76)/F77))","v":0}]
["Majoration pour la pente (PE2) - EPC par puit de lumière ET Taille de formation avec martelage"]
["Classe de pente numérique",null,"Taux calculé","Écart","Superficie nette (ha) excluant les andains","Superficie brute (hectare)","% andains"]
["Pente A",null,{"$f":"IF(ISERR((G37+G38)*(1+0)),0,(G37+G38)*(1+0))","v":0},{"$f":"IF(ISERR(C80-(G37+G38)),0,C80-(G37+G38))","v":0},{"$f":"F80*(1-G80)","v":0}]
["Pente B",null,{"$f":"IF(ISERR((G37+G38)*(1+0)),0,(G37+G38)*(1+0))","v":0},{"$f":"IF(ISERR(C81-(G37+G38)),0,C81-(G37+G38))","v":0},{"$f":"F81*(1-G81)","v":0}]
["Pente C",null,{"$f":"IF(ISERR((G37+G38)*(1+0.007)),0,(G37+G38)*(1+0.007))","v":0},{"$f":"IF(ISERR(C82-(G37+G38)),0,C82-(G37+G38))","v":0},{"$f":"F82*(1-G82)","v":0}]
["Pente D",null,{"$f":"IF(ISERR((G37+G38)*(1+0.026)),0,(G37+G38)*(1+0.026))","v":0},{"$f":"IF(ISERR(C83-(G37+G38)),0,C83-(G37+G38))","v":0},{"$f":"F83*(1-G83)","v":0}]
["Pente E",null,{"$f":"IF(ISERR((G37+G38)*(1+0.061)),0,(G37+G38)*(1+0.061))","v":0},{"$f":"IF(ISERR(C84-(G37+G38)),0,C84-(G37+G38))","v":0},{"$f":"F84*(1-G84)","v":0}]
[null,null,null,"Total",{"$f":"SUM(E80:E84)","v":0},{"$f":"SUM(F80:F84)","v":0},{"$f":"IF(ISERR(SUMPRODUCT(G80:G84,F80:F84)/F85),0,(SUMPRODUCT(G80:G84,F80:F84)/F85))","v":0}]
["Majoration pour la pente (PE2) - Élagage pour fins de qualité"]
["Classe de pente numérique",null,"Taux calculé",null,"Écart",null,"Superficie (hectare)"]
["Pente A",null,{"$f":"G44*(1+0)","v":0},null,{"$f":"C88-G44","v":0}]
["Pente B",null,{"$f":"G44*(1+0)","v":0},null,{"$f":"C89-G44","v":0}]
["Pente C",null,{"$f":"G44*(1+0.007)","v":0},null,{"$f":"C90-G44","v":0}]
["Pente D",null,{"$f":"G44*(1+0.026)","v":0},null,{"$f":"C91-G44","v":0}]
["Pente E",null,{"$f":"G44*(1+0.061)","v":0},null,{"$f":"C92-G44","v":0}]
[null,null,null,null,"Total",null,{"$f":"SUM(F88:G92)","v":0}]
["Majoration pour la pente (PE2) - Taille phytosanitaire"]
["Classe de pente numérique",null,"Taux calculé",null,"Écart",null,"Superficie (hectare)"]
["Pente A",null,{"$f":"G50*(1+0)","v":0},null,{"$f":"C96-G50","v":0}]
["Pente B",null,{"$f":"G50*(1+0)","v":0},null,{"$f":"C97-G50","v":0}]
["Pente C",null,{"$f":"G50*(1+0.007)","v":0},null,{"$f":"C98-G50","v":0}]
["Pente D",null,{"$f":"G50*(1+0.026)","v":0},null,{"$f":"C99-G50","v":0}]
["Pente E",null,{"$f":"G50*(1+0.061)","v":0},null,{"$f":"C100-G50","v":0}]
[null,null,null,null,"Total",null,{"$f":"SUM(F96:G100)","v":0}]
["Majoration pour l'hébergement, le transport collectif et la distance du secteur d'intervention (H2, TC et D200)"]
["Majoration pour l'hébergement, le transport collectif et la distance du secteur d'intervention (H2, TC et D200) - Tous "]
["Hébergement (H2 ou TC)",null,null,null,null,{"$f":"IF(G104=\"\",\"\",IF(G104=Menus!A213,Menus!B213,IF(G104=Menus!A214,Menus!B214,IF(G104=Menus!A215,Menus!B215,IF(G104=Menus!A216,Menus!B216,IF(G104<=0.126,G104,\"Max 12,6%\"))))))","v":""}]
["Distance du secteur d'intervention (D200)",null,null,null,null,{"$f":"IF(G105=Menus!A39,Menus!B39,IF(G105=Menus!A40,Menus!B40,\"\"))","v":""}]
["Majoration pour la certification (CEAF3 ou ISO3)"]
["Majoration pour la certification (CEAF3 ou ISO3) - Tous"]
["Certification (CEAF3 ou ISO3)",null,null,null,null,{"$f":"IF(G108=Menus!$A$228,Menus!$B$228,IF(G108=Menus!$A$229,Menus!$B$229,IF(G108=Menus!$A$230,Menus!$B$230,\"\")))","v":""}]
["Vérification"]
["Vérification - Tous"]
["Délimitation des secteurs (taux par kilomètre délimité)"]
["Nombre de kilomètres"]
["Inventaire après traitement (taux par placette inventoriée)"]
["Nombre de placettes inventoriées"]
["Critère 3","Arbre étude",null,null,{"$f":"SUM(F115:F116)*'Calculs grille'!$I$94","v":0},{"$f":"IF(G115=\"Oui\",1,IF(G115=\"Non\",0,\"\"))","v":""}]
[null,"AAC 5 ans",null,null,null,{"$f":"IF(G116=\"Oui\",1,IF(G116=\"Non\",0,\"\"))","v":""}]
["Critère 4","Coefficient de distribution des tiges résineuses de 1m ou 1,2m ou 1,5m de hauteur selon le traitement",null,null,{"$f":"SUM(F117:F120)*'Calculs grille'!$I$95","v":0},{"$f":"IF(G117=\"Oui\",1,IF(G117=\"Non\",0,\"\"))","v":""}]
[null,"Coefficient de distribution des souches peu importe la hauteur, avec ou sans fautes",null,null,null,""]
[null,"Coefficient de distribution des feuillus commerciaux et non commerciaux résiduels",null,null,null,""]
[null,"Coefficient de distribution des essences en raréfaction (THO, PIB, PIR)",null,null,null,""]
["Critère 5","Hauteur de toutes les tiges",null,null,{"$f":"SUM(F121:F123)*'Calculs grille'!$I$93","v":0},""]
[null,"Dénombrement des résineux de 1m ou 1,2m ou 1,5m de hauteur selon le traitement",null,null,null,""]
[null,"Dénombrement des tiges d'avenir éclaircies (dégagées/nettoyées) par essence",null,null,null,""]
["Nombre total de critères",null,null,null,null,null,{"$f":"SUM(F115:F123)","v":0}]
["Vérification - Majoration pour l'hébergement et la distance du secteur d'intervention (H3 et D200)"]
["Vérification - Majoration pour l'hébergement et la distance du secteur d'intervention (H3 et D200) - Tous"]
["Hébergement (H3)",null,null,null,null,{"$f":"IF(G127=\"\",\"\",IF(G127=Menus!A219,Menus!B219,IF(G127=Menus!A220,Menus!B220,IF(G127=Menus!A221,Menus!B221,IF(G127<=0.091,G127,\"Max 9,1%\")))))","v":""}]
["Distance du secteur d'intervention (D200)",null,null,null,null,{"$f":"IF(G128=Menus!$A$224,Menus!$B$224,IF(G128=Menus!$A$225,Menus!$B$225,\"\"))","v":""}]
["Total"]
["Calculs - Dégagement mécanique"]
["Taux d'exécution de base",null,null,null,null,null,{"$f":"IF(ISERR(G20),0,G20)","v":0}]
["Taux PE2",null,null,null,null,null,{"$f":"IF(ISERR((SUMPRODUCT(D56:D60,E56:E60)/$E$61)),0,SUMPRODUCT(D56:D60,E56:E60)/$E$61)","v":0}]
["Taux sous-total exécution",null,null,null,null,null,{"$f":"IF(ISERR(G131+G132),0,G131+G132)","v":0}]
["Taux H2 ou TC",null,null,null,null,null,{"$f":"IF(ISERR(G133*F104),0,G133*F104)","v":0}]
["Taux D200",null,null,null,null,null,{"$f":"IF(ISERR(G133*F105),0,G133*F105)","v":0}]
["Taux CEAF3 ou ISO3",null,null,null,null,null,{"$f":"IF(ISERR(G133*$F$108),0,G133*$F$108)","v":0}]
["Taux exécution total et majoration(s) admissible(s)",null,null,null,null,null,{"$f":"IF(ISERR(ROUND(SUM(G133:G136),2)),0,ROUND(SUM(G133:G136),2))","v":0}]
["Taux vérification",null,null,null,null,null,{"$f":"IF(ISERR((($G$111*$G$112)+((($G$113+((SUM($F$115:$F$116)*'Calculs grille'!$I$94))+(SUM($F$117:$F$120)*'Calculs grille'!$I$95)+((SUM($F$121:$F$123)*'Calculs grille'!$I$93))))*$G$114))/G141),0,(($G$111*$G$112)+((($G$113+((SUM($F$115:$F$116)*'Calculs grille'!$I$94))+(SUM($F$117:$F$120)*'Calculs grille'!$I$95)+((SUM($F$121:$F$123)*'Calculs grille'!$I$93))))*$G$114))/G141)","v":0}]
["Taux H3 et/ou D200",null,null,null,null,null,{"$f":"IF(ISERR(G138*SUM(F127:F128)),0,G138*SUM(F127:F128))","v":0}]
["Taux exécution et vérification total",null,null,null,null,null,{"$f":"IF(ISERR(ROUND(SUM(G137:G139),2)),0,ROUND(SUM(G137:G139),2))","v":0}]
["Superficie brute",null,null,null,null,null,{"$f":"IF(ISERR(ROUND(F61,2)),0,ROUND(F61,2))","v":0}]
["Superficie nette (excluant les andains)",null,null,null,null,null,{"$f":"IF(ISERR(ROUND(E61,2)),0,ROUND(E61,2))","v":0}]
["Total exécution",null,null,null,null,null,{"$f":"IF(ISERR(G137*G142),0,G137*G142)","v":0}]
["Total vérification",null,null,null,null,null,{"$f":"IF(ISERR(ROUND(SUM(G138:G139),2)*G141),0,ROUND(SUM(G138:G139),2)*G141)","v":0}]
["Grand total admissible",null,null,null,null,null,{"$f":"IF(ISERR(SUM(G143:G144)),0,SUM(G143:G144))","v":0}]
["Calculs - Gaulis I (interspécifique et sans espacement)"]
["Taux d'exécution de base",null,null,null,null,null,{"$f":"IF(ISERR(G25),0,G25)","v":0}]
["Taux PE2",null,null,null,null,null,{"$f":"IF(ISERR((SUMPRODUCT(D64:D68,E64:E68)/$E$69)),0,SUMPRODUCT(D64:D68,E64:E68)/$E$69)","v":0}]
["Taux sous-total exécution",null,null,null,null,null,{"$f":"IF(ISERR(G147+G148),0,G147+G148)","v":0}]
["Taux H2 ou TC",null,null,null,null,null,{"$f":"IF(ISERR(G149*F104),0,G149*F104)","v":0}]
["Taux D200",null,null,null,null,null,{"$f":"IF(ISERR(G149*F105),0,G149*F105)","v":0}]
["Taux CEAF3 ou ISO3",null,null,null,null,null,{"$f":"IF(ISERR(G149*$F$108),0,G149*$F$108)","v":0}]
["Taux exécution total et majoration(s) admissible(s)",null,null,null,null,null,{"$f":"IF(ISERR(ROUND(SUM(G149:G152),2)),0,ROUND(SUM(G149:G152),2))","v":0}]
["Taux vérification",null,null,null,null,null,{"$f":"IF(ISERR((($G$111*$G$112)+((($G$113+((SUM($F$115:$F$116)*'Calculs grille'!$I$94))+(SUM($F$117:$F$120)*'Calculs grille'!$I$95)+((SUM($F$121:$F$123)*'Calculs grille'!$I$93))))*$G$114))/G157),0,(($G$111*$G$112)+((($G$113+((SUM($F$115:$F$116)*'Calculs grille'!$I$94))+(SUM($F$117:$F$120)*'Calculs grille'!$I$95)+((SUM($F$121:$F$123)*'Calculs grille'!$I$93))))*$G$114))/G157)","v":0}]
["Taux H3 et/ou D200",null,null,null,null,null,{"$f":"IF(ISERR(G154*SUM(F127:F128)),0,G154*SUM(F127:F128))","v":0}]
["Taux exécution et vérification total",null,null,null,null,null,{"$f":"IF(ISERR(ROUND(SUM(G153:G155),2)),0,ROUND(SUM(G153:G155),2))","v":0}]
["Superficie brute",null,null,null,null,null,{"$f":"IF(ISERR(ROUND(F69,2)),0,ROUND(F69,2))","v":0}]
["Superficie nette (excluant les andains)",null,null,null,null,null,{"$f":"IF(ISERR(ROUND(E69,2)),0,ROUND(E69,2))","v":0}]
["Total exécution",null,null,null,null,null,{"$f":"IF(ISERR(G153*G158),0,G153*G158)","v":0}]
["Total vérification",null,null,null,null,null,{"$f":"IF(ISERR(ROUND(SUM(G154:G155),2)*G157),0,ROUND(SUM(G154:G155),2)*G157)","v":0}]
["Grand total admissible",null,null,null,null,null,{"$f":"IF(ISERR(SUM(G159:G160)),0,SUM(G159:G160))","v":0}]
["Calculs - Gaulis II (intraspécifique avec espacement OU résineux sans espacement)"]
["Taux d'exécution de base",null,null,null,null,null,{"$f":"IF(ISERR(G30),0,G30)","v":0}]
["Taux PE2",null,null,null,null,null,{"$f":"IF(ISERR((SUMPRODUCT(D72:D76,E72:E76)/$E$77)),0,SUMPRODUCT(D72:D76,E72:E76)/$E$77)","v":0}]
["Taux sous-total exécution",null,null,null,null,null,{"$f":"IF(ISERR(G163+G164),0,G163+G164)","v":0}]
["Taux H2 ou TC",null,null,null,null,null,{"$f":"IF(ISERR(G165*F104),0,G165*F104)","v":0}]
["Taux D200",null,null,null,null,null,{"$f":"IF(ISERR(G165*F105),0,G165*F105)","v":0}]
["Taux CEAF3 ou ISO3",null,null,null,null,null,{"$f":"IF(ISERR(G165*$F$108),0,G165*$F$108)","v":0}]
["Taux exécution total et majoration(s) admissible(s)",null,null,null,null,null,{"$f":"IF(ISERR(ROUND(SUM(G165:G168),2)),0,ROUND(SUM(G165:G168),2))","v":0}]
["Taux vérification",null,null,null,null,null,{"$f":"IF(ISERR((($G$111*$G$112)+((($G$113+((SUM($F$115:$F$116)*'Calculs grille'!$I$94))+(SUM($F$117:$F$120)*'Calculs grille'!$I$95)+((SUM($F$121:$F$123)*'Calculs grille'!$I$93))))*$G$114))/G173),0,(($G$111*$G$112)+((($G$113+((SUM($F$115:$F$116)*'Calculs grille'!$I$94))+(SUM($F$117:$F$120)*'Calculs grille'!$I$95)+((SUM($F$121:$F$123)*'Calculs grille'!$I$93))))*$G$114))/G173)","v":0}]
["Taux H3 et/ou D200",null,null,null,null,null,{"$f":"IF(ISERR(G170*SUM(F127:F128)),0,G170*SUM(F127:F128))","v":0}]
["Taux exécution et vérification total",null,null,null,null,null,{"$f":"IF(ISERR(ROUND(SUM(G169:G171),2)),0,ROUND(SUM(G169:G171),2))","v":0}]
["Superficie brute",null,null,null,null,null,{"$f":"IF(ISERR(ROUND(F77,2)),0,ROUND(F77,2))","v":0}]
["Superficie nette (excluant les andains)",null,null,null,null,null,{"$f":"IF(ISERR(ROUND(E77,2)),0,ROUND(E77,2))","v":0}]
["Total exécution",null,null,null,null,null,{"$f":"IF(ISERR(G169*G174),0,G169*G174)","v":0}]
["Total vérification",null,null,null,null,null,{"$f":"IF(ISERR(ROUND(SUM(G170:G171),2)*G173),0,ROUND(SUM(G170:G171),2)*G173)","v":0}]
["Grand total admissible",null,null,null,null,null,{"$f":"IF(ISERR(SUM(G175:G176)),0,SUM(G175:G176))","v":0}]
["Calculs - EPC par puit de lumière ET Taille de formation avec martelage"]
["Taux d'exécution de base",null,null,null,null,null,{"$f":"IF(ISERR(SUM(G37:G38)),0,SUM(G37:G38))","v":0}]
["Taux PE2",null,null,null,null,null,{"$f":"IF(ISERR((SUMPRODUCT(D80:D84,E80:E84)/$E$85)),0,SUMPRODUCT(D80:D84,E80:E84)/$E$85)","v":0}]
["Taux sous-total exécution",null,null,null,null,null,{"$f":"IF(ISERR(SUM(G179:G180)),0,SUM(G179:G180))","v":0}]
["Taux H2 ou TC",null,null,null,null,null,{"$f":"IF(ISERR(G181*F104),0,G181*F104)","v":0}]
["Taux D200",null,null,null,null,null,{"$f":"IF(ISERR(G181*F105),0,G181*F105)","v":0}]
["Taux CEAF3 ou ISO3",null,null,null,null,null,{"$f":"IF(ISERR(G181*$F$108),0,G181*$F$108)","v":0}]
["Taux exécution total et majoration(s) admissible(s)",null,null,null,null,null,{"$f":"IF(ISERR(ROUND(SUM(G181:G184),2)),0,ROUND(SUM(G181:G184),2))","v":0}]
["Taux vérification",null,null,null,null,null,{"$f":"IF(ISERR((($G$111*$G$112)+((($G$113+((SUM($F$115:$F$116)*'Calculs grille'!$I$94))+(SUM($F$117:$F$120)*'Calculs grille'!$I$95)+((SUM($F$121:$F$123)*'Calculs grille'!$I$93))))*$G$114))/G189),0,(($G$111*$G$112)+((($G$113+((SUM($F$115:$F$116)*'Calculs grille'!$I$94))+(SUM($F$117:$F$120)*'Calculs grille'!$I$95)+((SUM($F$121:$F$123)*'Calculs grille'!$I$93))))*$G$114))/G189)","v":0}]
["Taux H3 et/ou D200",null,null,null,null,null,{"$f":"IF(ISERR(G186*SUM(F127:F128)),0,G186*SUM(F127:F128))","v":0}]
["Taux exécution et vérification total",null,null,null,null,null,{"$f":"IF(ISERR(ROUND(SUM(G185:G187),2)),0,ROUND(SUM(G185:G187),2))","v":0}]
["Superficie brute",null,null,null,null,null,{"$f":"IF(ISERR(ROUND(F85,2)),0,ROUND(F85,2))","v":0}]
["Superficie nette (excluant les andains)",null,null,null,null,null,{"$f":"IF(ISERR(ROUND(E85,2)),0,ROUND(E85,2))","v":0}]
["Total exécution",null,null,null,null,null,{"$f":"IF(ISERR(G185*G190),0,G185*G190)","v":0}]
["Total vérification",null,null,null,null,null,{"$f":"IF(ISERR(ROUND(SUM(G186:G187),2)*G189),0,ROUND(SUM(G186:G187),2)*G189)","v":0}]
["Grand total admissible",null,null,null,null,null,{"$f":"IF(ISERR(SUM(G191:G192)),0,SUM(G191:G192))","v":0}]
["Calculs - Élagage pour fins de qualité"]
["Taux d'exécution de base",null,null,null,null,null,{"$f":"IF(ISERR(G44),0,G44)","v":0}]
["Taux PE2",null,null,null,null,null,{"$f":"IF(ISERR((SUMPRODUCT(E88:E92,G88:G92)/$G$93)),0,SUMPRODUCT(E88:E92,G88:G92)/$G$93)","v":0}]
["Taux sous-total exécution",null,null,null,null,null,{"$f":"IF(ISERR(G195+G196),0,G195+G196)","v":0}]
["Taux H2 ou TC",null,null,null,null,null,{"$f":"IF(ISERR(G197*F104),0,G197*F104)","v":0}]
["Taux D200",null,null,null,null,null,{"$f":"IF(ISERR(G197*F105),0,G197*F105)","v":0}]
["Taux CEAF3 ou ISO3",null,null,null,null,null,{"$f":"IF(ISERR(G197*$F$108),0,G197*$F$108)","v":0}]
["Taux exécution total et majoration(s) admissible(s)",null,null,null,null,null,{"$f":"IF(ISERR(ROUND(SUM(G197:G200),2)),0,ROUND(SUM(G197:G200),2))","v":0}]
["Taux vérification",null,null,null,null,null,{"$f":"IF(ISERR((($G$111*$G$112)+((($G$113+((SUM($F$115:$F$116)*'Calculs grille'!$I$94))+(SUM($F$117:$F$120)*'Calculs grille'!$I$95)+((SUM($F$121:$F$123)*'Calculs grille'!$I$93))))*$G$114))/G205),0,(($G$111*$G$112)+((($G$113+((SUM($F$115:$F$116)*'Calculs grille'!$I$94))+(SUM($F$117:$F$120)*'Calculs grille'!$I$95)+((SUM($F$121:$F$123)*'Calculs grille'!$I$93))))*$G$114))/G205)","v":0}]
["Taux H3 et/ou D200",null,null,null,null,null,{"$f":"IF(ISERR(G202*SUM(F127:F128)),0,G202*SUM(F127:F128))","v":0}]
["Taux exécution et vérification total",null,null,null,null,null,{"$f":"IF(ISERR(ROUND(SUM(G201:G203),2)),0,ROUND(SUM(G201:G203),2))","v":0}]
["Superficie",null,null,null,null,null,{"$f":"IF(ISERR(ROUND(G93,2)),0,ROUND(G93,2))","v":0}]
["Total exécution",null,null,null,null,null,{"$f":"IF(ISERR(G201*G205),0,G201*G205)","v":0}]
["Total vérification",null,null,null,null,null,{"$f":"IF(ISERR(ROUND(SUM(G202:G203),2)*G205),0,ROUND(SUM(G202:G203),2)*G205)","v":0}]
["Grand total admissible",null,null,null,null,null,{"$f":"IF(ISERR(SUM(G206:G207)),0,SUM(G206:G207))","v":0}]
["Calculs - Taille phytosanitaire"]
["Taux d'exécution de base",null,null,null,null,null,{"$f":"IF(ISERR(G50),0,G50)","v":0}]
["Taux PE2",null,null,null,null,null,{"$f":"IF(ISERR((SUMPRODUCT(E96:E100,G96:G100)/$G$101)),0,SUMPRODUCT(E96:E100,G96:G100)/$G$101)","v":0}]
["Taux sous-total exécution",null,null,null,null,null,{"$f":"IF(ISERR(G210+G211),0,G210+G211)","v":0}]
["Taux H2 ou TC",null,null,null,null,null,{"$f":"IF(ISERR(G212*F104),0,G212*F104)","v":0}]
["Taux D200",null,null,null,null,null,{"$f":"IF(ISERR(G212*F105),0,G212*F105)","v":0}]
["Taux CEAF3 ou ISO3",null,null,null,null,null,{"$f":"IF(ISERR(G212*$F$108),0,G212*$F$108)","v":0}]
["Taux exécution total et majoration(s) admissible(s)",null,null,null,null,null,{"$f":"IF(ISERR(ROUND(SUM(G212:G215),2)),0,ROUND(SUM(G212:G215),2))","v":0}]
["Taux vérification",null,null,null,null,null,{"$f":"IF(ISERR((($G$111*$G$112)+((($G$113+((SUM($F$115:$F$116)*'Calculs grille'!$I$94))+(SUM($F$117:$F$120)*'Calculs grille'!$I$95)+((SUM($F$121:$F$123)*'Calculs grille'!$I$93))))*$G$114))/G220),0,(($G$111*$G$112)+((($G$113+((SUM($F$115:$F$116)*'Calculs grille'!$I$94))+(SUM($F$117:$F$120)*'Calculs grille'!$I$95)+((SUM($F$121:$F$123)*'Calculs grille'!$I$93))))*$G$114))/G220)","v":0}]
["Taux H3 et/ou D200",null,null,null,null,null,{"$f":"IF(ISERR(G217*SUM(F127:F128)),0,G217*SUM(F127:F128))","v":0}]
["Taux exécution et vérification total",null,null,null,null,null,{"$f":"IF(ISERR(ROUND(SUM(G216:G218),2)),0,ROUND(SUM(G216:G218),2))","v":0}]
["Superficie",null,null,null,null,null,{"$f":"IF(ISERR(ROUND(G101,2)),0,ROUND(G101,2))","v":0}]
["Total exécution",null,null,null,null,null,{"$f":"IF(ISERR(G216*G220),0,G216*G220)","v":0}]
["Total vérification",null,null,null,null,null,{"$f":"IF(ISERR(ROUND(SUM(G217:G218),2)*G220),0,ROUND(SUM(G217:G218),2)*G220)","v":0}]
["Grand total admissible",null,null,null,null,null,{"$f":"IF(ISERR(SUM(G221:G222)),0,SUM(G221:G222))","v":0}]
[]
["J'atteste que les renseignements fournis dans ce document afin de calculer le taux du traitement sont complets et conformes à la vérité, au meilleur de mes connaissances."]
[]
[]
[]
["Nom et prénom de l'ingénieur forestier",null,null,null,null,null,"No de permis"]
[null,null,null,null,null,null,{"$f":"TODAY()","v":"2017-04-05"}]
[]
["Signature de l'ingénieur forestier",null,null,null,null,null,"Date (AAAA-MM-JJ)"]
[]
[]
["Section réservée au suivi du contrat"]
[]
[null,"Numéro de la prescription :",{"$f":"IF(G8<>\"\",G8,\"\")","v":""}]
[]
[null,"Numéro du contrat :"]
[null,"Numéro du projet :"]
[null,"U.G. :"]
[null,"MRC :"]
[null,"Code de traitement DICA : ",{"$f":"IF(G9<>\"\",G9,\"\")","v":""}]
[null,"Code de traitement RATF :",{"$f":"IF(G10<>\"\",G10,\"\")","v":""}]
[null,"Type d'attribution :"]
[null,"Taux AOP :"]
[null,"Nom de l'entrepreneur :"]
[null,"Numéro de fournisseur :"]
[null,"Date de début :"]
[null,"Date de fin :"]
[null,"Commentaires :"]

{"sheet":"Éclaircie commerciale EAF","index":3,"n_rows":79,"n_cols":7,"rows_kept":79,"cut":false,"hidden":false,"merged":[[64,2,65,4],[51,0,51,6],[52,0,52,6],[62,0,62,4],[53,0,55,5],[53,6,55,6],[56,0,56,5],[57,0,58,5],[57,6,58,6],[59,0,59,5],[49,0,49,5],[50,0,50,5],[46,0,46,5],[48,0,48,5],[47,0,47,5],[39,0,39,6],[40,0,40,6],[41,0,41,5],[44,0,44,5],[45,0,45,5],[42,0,42,5],[43,0,43,5],[5,0,5,5],[0,0,0,6],[1,0,1,4],[2,0,2,6],[3,0,3,6],[4,0,4,5],[21,0,21,5],[14,0,14,6],[15,0,15,6],[16,0,16,6],[17,0,17,6],[27,4,27,5],[28,4,28,5],[26,2,26,3],[27,2,27,3],[28,2,28,3],[6,0,6,5],[7,0,7,5],[8,0,8,5],[9,0,9,5],[11,0,11,5],[10,0,10,6],[29,4,29,5],[30,4,30,5],[31,4,31,5],[12,0,12,5],[13,0,13,5],[18,0,18,5],[19,1,19,5],[20,0,20,5],[22,0,22,6],[23,0,23,6],[26,0,26,1],[27,0,27,1],[28,0,28,1],[26,4,26,5],[24,0,24,6],[25,0,25,6],[31,0,31,1],[31,2,31,3],[29,0,29,1],[30,0,30,1],[29,2,29,3],[30,2,30,3],[38,0,38,4],[32,4,32,5],[32,0,32,3],[33,0,33,6],[35,0,35,6],[37,0,37,6],[34,0,34,5],[36,0,36,4]]}
[]
["Annexe au calcul des taux des traitements non commerciaux                                                                                                                                                                                                                                           2017-2018                                                                                                                                                                                                                                                                              Éclaircie commerciale EAF                                                                                          (réservé aux entreprises d'aménagement forestier)"]
[" *** Veuillez saisir les informations dans les cellules blanches seulement ***"]
["Identification"]
["UA"]
["Secteur d'intervention"]
["Unité de compilation"]
["Numéro de la prescription"]
["Traitement (code DICA)"]
["Traitement (code RATF)"]
["Traitement d'éducation de peuplement à taux variable"]
["Traitement",null,null,null,null,null,"Inscrire une valeur"]
["Taux de base",null,null,null,null,null,{"$f":"IF(G12=Menus!A367,Menus!B367,IF(G12=Menus!A368,Menus!B368,\"\"))","v":0}]
["Unité de mesure",null,null,null,null,null,{"$f":"IF(G12=Menus!A367,Menus!C367,IF(G12=Menus!A368,Menus!C368,\"\"))","v":"-"}]
["Taux d'exécution à déterminer selon la formule suivante"]
[{"$f":"IF(G12=Formules!B13,Formules!D13,\"\")","v":""}]
[{"$f":"\"Valeurs spécifiques à remplir selon le traitement - \"&G12","v":"Valeurs spécifiques à remplir selon le traitement - Inscrire une valeur"}]
["Valeurs spécifiques à remplir selon le traitement - Éclaircie commerciale EAF"]
["Volume net à prélever (m³/hectare)"]
["VREC","Volume moyen des tiges à récolter (m³/tige)"]
["Taux par mètre cube calculé à partir de l'équation et des variables reliées au traitement",null,null,null,null,null,{"$f":"IF(ISERR(('Calculs grille'!I113*G20^'Calculs grille'!I112)+'Calculs grille'!I114),0,('Calculs grille'!I113*G20^'Calculs grille'!I112)+'Calculs grille'!I114)","v":0}]
["Taux par hectare calculé à partir de l'équation et des variables reliées au traitement",null,null,null,null,null,{"$f":"G19*G21","v":0}]
[{"$f":"\"Majorations applicables à l'exécution - \"&G12","v":"Majorations applicables à l'exécution - Inscrire une valeur"}]
[{"$f":"IF(G12='Majorations applicables'!B29,'Majorations applicables'!K29,\"\")","v":""}]
["Majoration pour la pente (PE2)"]
["Majoration pour la pente (PE2) - Éclaircie commerciale EAF"]
["Classe de pente numérique",null,"Taux calculé",null,"Écart",null,"Superficie (hectare)"]
["Pente A",null,{"$f":"IF($G$22=1,$G$22*(1+0),$G$22*(1+0))","v":0},null,{"$f":"C28-$G$22","v":0}]
["Pente B",null,{"$f":"IF($G$22=1,$G$22*(1+0),$G$22*(1+0))","v":0},null,{"$f":"C29-$G$22","v":0}]
["Pente C",null,{"$f":"IF($G$22=1,$G$22*(1+0.007),$G$22*(1+0.007))","v":0},null,{"$f":"C30-$G$22","v":0}]
["Pente D",null,{"$f":"IF($G$22=1,$G$22*(1+0.026),$G$22*(1+0.026))","v":0},null,{"$f":"C31-$G$22","v":0}]
["Pente E",null,{"$f":"IF($G$22=1,$G$22*(1+0.061),$G$22*(1+0.061))","v":0},null,{"$f":"C32-$G$22","v":0}]
[null,null,null,null,"Total",null,{"$f":"SUM(G28:G32)","v":0}]
["Majoration pour le rubannage des sentiers de débardage (RUB1)"]
["Espacement entre les sentier (m)"]
["Majoration pour les opérations manuelles (MAN)"]
["Type d'opérations",null,null,null,null,{"$f":"IF(G37=Menus!A375,Menus!B375,IF(G37=Menus!A376,Menus!B376,\"\"))","v":""}]
["Majoration pour l'hébergement et la distance du secteur d'intervention (H5)"]
["Hébergement (H5)",null,null,null,null,{"$f":"IF(G39=Menus!A371,Menus!B371,IF(G39=Menus!A372,Menus!B372,\"\"))","v":""}]
["Total"]
["Calculs -  Éclaircie commerciale EAF"]
["Taux d'exécution par mètre cube",null,null,null,null,null,{"$f":"IF(ISERR(G21),0,G21)","v":0}]
["Taux d'exécution par hectare",null,null,null,null,null,{"$f":"IF(ISERR(G22),0,G22)","v":0}]
["Taux PE2",null,null,null,null,null,{"$f":"IF(ISERR(SUMPRODUCT(E28:E32,G28:G32)/G33),0,SUMPRODUCT(E28:E32,G28:G32)/G33)","v":0}]
["Taux sous-total exécution",null,null,null,null,null,{"$f":"IF(ISERR(SUM(G43:G44)),0,SUM(G43:G44))","v":0}]
["Taux RUB1",null,null,null,null,null,{"$f":"IF(ISERR(IF(OR(G35=\"Pas de rubannage des sentiers\",G35<15),0,(1135*(POWER(G35,-1))))),0,IF(OR(G35=\"Pas de rubannage des sentiers\",G35<15),0,(1135*(POWER(G35,-1)))))","v":0}]
["Taux MAN",null,null,null,null,null,{"$f":"IF(ISERR(G45*F37),0,G45*F37)","v":0}]
["Taux H5",null,null,null,null,null,{"$f":"IF(ISERR(SUM(G45,G47)*F39),0,SUM(G45,G47)*F39)","v":0}]
["Taux exécution total et majoration(s) admissible(s)",null,null,null,null,null,{"$f":"IF(ISERR(ROUND(SUM(G45:G48),2)),0,ROUND(SUM(G45:G48),2))","v":0}]
["Superficie",null,null,null,null,null,{"$f":"IF(ISERR(ROUND(G33,2)),0,ROUND(G33,2))","v":0}]
["Grand total admissible",null,null,null,null,null,{"$f":"IF(ISERR(G49*G50),0,G49*G50)","v":0}]
[]
["J'atteste que les renseignements fournis dans ce document afin de calculer le taux du traitement sont complets et conformes à la vérité, au meilleur de mes connaissances."]
[]
[]
[]
["Nom et prénom de l'ingénieur forestier",null,null,null,null,null,"No de permis"]
[null,null,null,null,null,null,{"$f":"TODAY()","v":"2017-04-05"}]
[]
["Signature de l'ingénieur forestier",null,null,null,null,null,"Date (AAAA-MM-JJ)"]
[]
[]
["Section réservée au suivi du contrat"]
[]
[null,"Numéro de la prescription :",{"$f":"IF(G8<>\"\",G8,\"\")","v":""}]
[]
[null,"Numéro du contrat :"]
[null,"Numéro du projet :"]
[null,"U.G. :"]
[null,"MRC :"]
[null,"Code de traitement DICA :",{"$f":"IF(G9<>\"\",G9,\"\")","v":""}]
[null,"Code de traitement RATF :",{"$f":"IF(G10<>\"\",G10,\"\")","v":""}]
[null,"Type d'attribution : "]
[null,"Taux AOP : "]
[null,"Nom de l'entrepreneur : "]
[null,"Numéro de fournisseur : "]
[null,"Date de début :"]
[null,"Date de fin :"]
[null,"Commentaires :"]

{"sheet":"Martelage","index":4,"n_rows":91,"n_cols":7,"rows_kept":91,"cut":false,"hidden":false,"merged":[[1,0,1,5],[0,0,0,6],[2,0,2,6],[3,0,3,6],[69,6,70,6],[26,0,26,6],[10,0,10,6],[38,0,38,6],[39,0,39,6],[21,1,21,5],[14,0,14,6],[28,0,28,4],[36,0,36,4],[37,0,37,4],[46,0,46,5],[43,0,43,5],[48,0,48,5],[71,0,71,5],[49,0,49,5],[51,0,51,6],[52,0,52,5],[53,0,53,5],[54,0,54,5],[50,0,50,5],[41,0,41,5],[42,0,42,5],[23,0,23,5],[24,0,24,6],[47,0,47,5],[40,0,40,5],[35,0,35,6],[29,0,29,6],[30,0,30,6],[31,0,31,5],[32,0,32,5],[33,0,33,5],[34,0,34,5],[44,0,44,5],[45,0,45,5],[76,2,77,4],[55,0,55,5],[63,0,63,6],[64,0,64,6],[74,0,74,4],[61,0,61,5],[62,0,62,5],[56,0,56,5],[57,0,57,5],[58,0,58,5],[59,0,59,5],[60,0,60,5],[65,0,67,5],[65,6,67,6],[68,0,68,5],[69,0,70,5],[4,0,4,5],[5,0,5,5],[6,0,6,5],[7,0,7,5],[8,0,8,5],[9,0,9,5],[11,0,11,5],[12,0,12,5],[13,0,13,5],[27,0,27,4],[25,0,25,6],[15,0,15,6],[18,0,18,6],[19,0,19,6],[20,1,20,5],[22,1,22,3],[16,0,16,6],[17,0,17,5]]}
[]
["Annexe au calcul des taux des traitements non commerciaux                                                                                                                                                        2017-2018                                                                                                                                                                                                                                                                              Martelage"]
[" *** Veuillez saisir les informations dans les cellules blanches seulement ***"]
["Identification"]
["UA"]
["Secteur d'intervention"]
["Unité de compilation"]
["Numéro de la prescription"]
["Traitement (code DICA)"]
["Traitement (code RATF)"]
["Traitement d'éducation de peuplement à taux variable"]
["Traitement",null,null,null,null,null,"Inscrire une valeur"]
["Taux de base",null,null,null,null,null,{"$f":"IF(ISNA(VLOOKUP(G12,Menus!A416:C419,2,FALSE)),\"\",VLOOKUP(G12,Menus!A416:C419,2,FALSE))","v":0}]
["Unité de mesure",null,null,null,null,null,{"$f":"IF(ISNA(VLOOKUP(G12,Menus!A416:C419,3,FALSE)),\"\",VLOOKUP(G12,Menus!A416:C419,3,FALSE))","v":"-"}]
["Taux d'exécution à déterminer selon la formule suivante"]
[{"$f":"IF(G12=Formules!B14,Formules!D14,\"\")","v":""}]
["Superficie"]
["Superficie du traitement"]
[{"$f":"\"Valeurs spécifiques à remplir selon le traitement - \"&G12","v":"Valeurs spécifiques à remplir selon le traitement - Inscrire une valeur"}]
["Valeurs spécifiques à remplir selon le traitement - Martelage"]
["PF","Proportion de feuillus"]
["NbMSCROP","Nombre de priorité de récolte combinant MSCR et OP                                                       Valeur de 0 à 8 : MO-MP-SO-SP-CO-CP-RO-RP"]
["TC","Type de coupe",null,null,"Valeur",{"$f":"IF(ISNA(VLOOKUP(G23,Menus!A422:B426,2,FALSE)),\"\",VLOOKUP(G23,Menus!A422:B426,2,FALSE))","v":""}]
["Taux par hectare calculé à partir de l'équation et des variables reliées à l'activité",null,null,null,null,null,{"$f":"IF(ISERR(('Calculs grille'!I117-('Calculs grille'!I118)*Martelage!G21+('Calculs grille'!I119*Martelage!G22))*Martelage!F23),0,('Calculs grille'!I117-('Calculs grille'!I118)*Martelage!G21+('Calculs grille'!I119*Martelage!G22))*Martelage!F23)","v":0}]
[{"$f":"\"Majorations applicables à l'exécution - \"&G12","v":"Majorations applicables à l'exécution - Inscrire une valeur"}]
[{"$f":"IF(G12='Majorations applicables'!C30,'Majorations applicables'!K30,IF(G12='Majorations applicables'!C31,'Majorations applicables'!K31,IF(G12='Majorations applicables'!C32,'Majorations applicables'!K32,\"\")))","v":""}]
["Majoration pour l'hébergement et la distance du secteur d'intervention (H3 et D200)"]
["Hébergement (H3)",null,null,null,null,{"$f":"IF(G28=\"\",\"\",IF(G28=Menus!A429,Menus!B429,IF(G28=Menus!A430,Menus!B430,IF(G28=Menus!A431,Menus!B431,IF(G28<=0.091,G28,\"Max 9,1%\")))))","v":""}]
["Distance du secteur d'intervention (D200)",null,null,null,null,{"$f":"IF(G29=Menus!A434,Menus!B434,IF(G29=Menus!A435,Menus!B435,\"\"))","v":""}]
["Vérification"]
["Vérification - Tous"]
["Délimitation des secteurs (taux par kilomètre délimité)"]
["Nombre de kilomètres délimité"]
["Inventaire après traitement (taux par hectare martelé)"]
["Nombre de placettes inventoriées"]
["Vérification - Majoration pour l'hébergement et la distance du secteur d'intervention (H3 et D200)"]
["Hébergement (H3)",null,null,null,null,{"$f":"IF(G37=\"\",\"\",IF(G37=Menus!A429,Menus!B429,IF(G37=Menus!A430,Menus!B430,IF(G37=Menus!A431,Menus!B431,IF(G37<=0.091,G37,\"Max 9,1%\")))))","v":""}]
["Distance du secteur d'intervention (D200)",null,null,null,null,{"$f":"IF(G38=Menus!$A$434,Menus!$B$434,IF(G38=Menus!$A$435,Menus!$B$435,\"\"))","v":""}]
["Total"]
["Calculs -  Martelage"]
["Taux d'exécution de base",null,null,null,null,null,{"$f":"IF(ISERR(G24),0,G24)","v":0}]
["Taux H3",null,null,null,null,null,{"$f":"IF(ISERR(G41*F28),0,G41*F28)","v":0}]
["Taux D200",null,null,null,null,null,{"$f":"IF(ISERR(G41*F29),0,G41*F29)","v":0}]
["Taux exécution total et majoration(s) admissible(s)",null,null,null,null,null,{"$f":"IF(ISERR(ROUND(SUM(G41:G43),2)),0,ROUND(SUM(G41:G43),2))","v":0}]
["Taux vérification",null,null,null,null,null,{"$f":"IF(ISERR(((G32*G33)+(G34*G35))/G18),0,((G32*G33)+(G34*G35))/G18)","v":0}]
["Taux H3 et/ou D200",null,null,null,null,null,{"$f":"IF(ISERR(G45*SUM(F37:F38)),0,G45*SUM(F37:F38))","v":0}]
["Taux exécution et vérification total",null,null,null,null,null,{"$f":"IF(ISERR(ROUND(SUM(G44:G46),2)),0,ROUND(SUM(G44:G46),2))","v":0}]
["Superficie (hectares)",null,null,null,null,null,{"$f":"IF(ISERR(G18),0,G18)","v":0}]
["Total exécution",null,null,null,null,null,{"$f":"IF(ISERR(G44*G48),0,G44*G48)","v":0}]
["Total vérification",null,null,null,null,null,{"$f":"IF(ISERR(ROUND(SUM(G45:G46),2)*G48),0,ROUND(SUM(G45:G46),2)*G48)","v":0}]
["Grand total admissible",null,null,null,null,null,{"$f":"IF(ISERR(SUM(G49:G50)),0,SUM(G49:G50))","v":0}]
["Calculs - Martelage positif et négatif  - EC (résineux ou mixte résineux)"]
["Taux d'exécution de base",null,null,null,null,null,{"$f":"IF(ISERR(G13),0,G13)","v":0}]
["Taux H3",null,null,null,null,null,{"$f":"IF(ISERR(G53*F28),0,G53*F28)","v":0}]
["Taux D200",null,null,null,null,null,{"$f":"IF(ISERR(G53*F29),0,G53*F29)","v":0}]
["Taux exécution total et majoration(s) admissible(s)",null,null,null,null,null,{"$f":"IF(ISERR(ROUND(SUM(G53:G55),2)),0,ROUND(SUM(G53:G55),2))","v":0}]
["Taux vérification",null,null,null,null,null,{"$f":"IF(ISERR(((G32*G33)+(G34*G35))/G18),0,((G32*G33)+(G34*G35))/G18)","v":0}]
["Taux H3 et/ou D200",null,null,null,null,null,{"$f":"IF(ISERR(G57*SUM(F37:F38)),0,G57*SUM(F37:F38))","v":0}]
["Taux exécution et vérification total",null,null,null,null,null,{"$f":"IF(ISERR(ROUND(SUM(G56:G58),2)),0,ROUND(SUM(G56:G58),2))","v":0}]
["Superficie",null,null,null,null,null,{"$f":"IF(ISERR(G18),0,G18)","v":0}]
["Total exécution",null,null,null,null,null,{"$f":"IF(ISERR(G56*G60),0,G56*G60)","v":0}]
["Total vérification",null,null,null,null,null,{"$f":"IF(ISERR(ROUND(SUM(G57:G58),2)*G60),0,ROUND(SUM(G57:G58),2)*G60)","v":0}]
["Grand total admissible",null,null,null,null,null,{"$f":"IF(ISERR(SUM(G61:G62)),0,SUM(G61:G62))","v":0}]
[]
["J'atteste que les renseignements fournis dans ce document afin de calculer le taux du traitement sont complets et conformes à la vérité, au meilleur de mes connaissances."]
[]
[]
[]
["Nom et prénom de l'ingénieur forestier",null,null,null,null,null,"No de permis"]
[null,null,null,null,null,null,{"$f":"TODAY()","v":"2017-04-05"}]
[]
["Signature de l'ingénieur forestier",null,null,null,null,null,"Date (AAAA-MM-JJ)"]
[]
[]
["Section réservée au suivi du contrat"]
[]
[null,"Numéro de la prescription :",{"$f":"IF(G8<>\"\",G8,\"\")","v":""}]
[]
[null,"Numéro du contrat :"]
[null,"Numéro du projet :"]
[null,"U.G. :"]
[null,"MRC :"]
[null,"Code de traitement DICA :",{"$f":"IF(G9<>\"\",G9,\"\")","v":""}]
[null,"Code de traitement RATF :",{"$f":"IF(G10<>\"\",G10,\"\")","v":""}]
[null,"Type d'attribution : "]
[null,"Taux AOP : "]
[null,"Nom de l'entrepreneur : "]
[null,"Numéro de fournisseur : "]
[null,"Date de début :"]
[null,"Date de fin :"]
[null,"Commentaires :"]

{"sheet":"Travaux de planification","index":5,"n_rows":85,"n_cols":7,"rows_kept":85,"cut":false,"hidden":false,"merged":[[10,0,10,1],[11,0,11,1],[12,0,12,1],[21,0,21,6],[24,0,24,1],[23,0,23,1],[24,3,24,4],[23,3,23,4],[22,3,22,4],[22,0,22,1],[63,6,64,6],[54,0,54,5],[55,0,55,5],[56,0,56,5],[14,3,14,4],[14,0,14,1],[19,3,19,4],[19,0,19,1],[26,0,26,1],[26,3,26,4],[25,3,25,4],[25,0,25,1],[59,6,61,6],[58,0,58,6],[53,0,53,5],[57,0,57,6],[62,0,62,5],[47,0,47,1],[48,0,48,1],[47,3,47,4],[48,3,48,4],[50,0,50,4],[51,0,51,4],[65,0,65,5],[59,0,61,5],[63,0,64,5],[27,0,27,6],[28,0,28,6],[29,0,29,6],[46,3,46,4],[45,3,45,4],[45,0,45,1],[34,4,42,4],[38,2,38,3],[37,2,37,3],[36,2,36,3],[35,2,35,3],[34,2,34,3],[30,2,30,3],[46,0,46,1],[44,0,44,6],[52,0,52,6],[30,0,43,0],[30,1,33,1],[34,1,42,1],[49,0,49,6],[43,2,43,3],[42,2,42,3],[41,2,41,3],[40,2,40,3],[39,2,39,3],[33,2,33,3],[32,2,32,3],[31,2,31,3],[30,4,33,4],[0,0,0,6],[1,0,1,4],[2,0,2,6],[3,0,3,6],[4,0,4,5],[5,0,5,5],[6,0,6,5],[7,0,7,5],[9,0,9,1],[9,3,9,4],[68,0,68,4],[70,2,71,4],[8,0,8,6],[20,0,20,1],[20,3,20,4],[15,0,15,1],[16,0,16,1],[18,0,18,6],[15,3,15,4],[16,3,16,4],[13,0,13,6],[17,0,17,1],[12,3,12,4],[10,3,10,4],[11,3,11,4],[17,3,17,4]]}
[]
["Annexe au calcul des taux des traitements non commerciaux                                                                                                                                                                                                                                           2017-2018                                                                                                                                                                                                                                                                              Travaux de planification"]
[" *** Veuillez saisir les informations dans les cellules blanches seulement ***"]
["Identification"]
["UA"]
["Secteur d'intervention"]
["Unité de compilation"]
["Numéro de la prescription"]
["Recherche de secteur d'intervention potentiel (terrain)"]
["Traitement",null,"Valeur","Unité",null,"Total","Quantité"]
["Préparation de terrain",null,{"$f":"'Calculs grille'!I96","v":5},"Nombre d'hectares recherchés",null,{"$f":"C11*G11","v":0}]
["Régénération artificielle",null,{"$f":"'Calculs grille'!I96","v":5},"Nombre d'hectares recherchés",null,{"$f":"C12*G12","v":0}]
["Éducation de peuplement",null,{"$f":"'Calculs grille'!I97","v":9},"Nombre d'hectares recherchés",null,{"$f":"C13*G13","v":0}]
["Secteur d'intervention proposé"]
["Traitement",null,"Valeur","Unité",null,"Total","Quantité"]
["Préparation de terrain",null,{"$f":"'Calculs grille'!I98","v":11},"Nombres d'hectares trouvés",null,{"$f":"C16*G16","v":0}]
["Régénération artificielle",null,{"$f":"'Calculs grille'!I98","v":11},"Nombres d'hectares trouvés",null,{"$f":"C17*G17","v":0}]
["Éducation de peuplement",null,{"$f":"'Calculs grille'!I99","v":16},"Nombres d'hectares trouvés",null,{"$f":"C18*G18","v":0}]
["Confection du plan de sondage"]
["Traitement",null,"Valeur","Unité",null,"Total","Quantité"]
["Plan de sondage",null,{"$f":"'Calculs grille'!I100","v":2},"Nombre d'hectares inventoriés",null,{"$f":"C21*G21","v":0}]
["Inventaire avant traitement"]
["Traitement",null,"Valeur","Unité",null,"Total","Quantité"]
["Préparation de terrain (sauf drainage sylvicole) et régénération artificielle",null,{"$f":"'Calculs grille'!I106","v":30},"Nombre de PE inventoriées",null,{"$f":"C24*G24","v":0}]
["Préparation de terrain (drainage sylvicole - plan et devis)",null,{"$f":"'Calculs grille'!I107","v":29},"Nombre de km ou Mm³ du devis",null,{"$f":"C25*G25","v":0}]
["Éducation de peuplement (dégagement, nettoiement et éclaircie précommerciale)",null,{"$f":"'Calculs grille'!I102","v":93},"Nombre de PE inventoriées",null,{"$f":"IF(ISERR(IF(SUM(F35:F43)>7,\"Maximum 7 critères NCP\",(C26+(SUM(F31:F34)*'Calculs grille'!I103)+(SUM(F35:F43)*'Calculs grille'!I104)+(SUM(F44)*'Calculs grille'!I105))*G26)),C26*G26,IF(SUM(F35:F43)>7,\"Maximum 7 critères NCP\",(C26+(SUM(F31:F34)*'Calculs grille'!I103)+(SUM(F35:F43)*'Calculs grille'!I104)+(SUM(F44)*'Calculs grille'!I105))*G26))","v":0}]
["Éducation de peuplement (élagage et taille de formation)",null,{"$f":"'Calculs grille'!I108","v":42},"Nombre de PE inventoriées",null,{"$f":"C27*G27","v":0}]
["Inventaire avant traitement pour éducation de peuplement (dégagement, nettoiement et éclaircie précommerciale)"]
["Critères - Inventaire avant traitement pour éducation de peuplement (dégagement, nettoiement et éclaircie précommerciale) SEULEMENT calculé selon la formule suivante"]
[{"$f":"Formules!D15","v":"Taux ($/PE) = 93 + 0,64 * (NCT) + 3,19 * (NCP) + 6,39 * (TE)"}]
["Critères","NCT","Accessibilité",null,{"$f":"SUM(F31:F34)*'Calculs grille'!I103","v":0},{"$f":"IF(G31=\"Oui\",1,IF(G31=\"Non\",0,\"\"))","v":""}]
[null,null,"Groupes d'espèces indicatrices",null,null,""]
[null,null,"Pente",null,null,""]
[null,null,"Rugosité",null,null,""]
[null,"NCP                                                                 (maximum 7 critères)","Hauteur du résineux en compétition avec le stocking de feuillus commerciaux",null,{"$f":"IF(SUM(F35:F43)<=7,SUM(F35:F43)*'Calculs grille'!I104,\"Maximum 7 critères\")","v":0},""]
[null,null,"Hauteur moyenne des feuillus non-commerciaux",null,null,""]
[null,null,"Coefficient de distribution libre de croître et éclaircie",null,null,""]
[null,null,"Nombre de faces en compétition",null,null,""]
[null,null,"Pourcentage de recouvrement par essence",null,null,""]
[null,null,"Présence d'arbres fruitiers",null,null,""]
[null,null,"Présence du charançon",null,null,""]
[null,null,"Qualification des feuillus potentiels",null,null,""]
[null,null,"Coefficient de distribution des feuillus commerciaux ou non",null,null,""]
[null,"TE","Type écologique",null,{"$f":"SUM(F44)*'Calculs grille'!I105","v":0},""]
["Délimitation des secteurs"]
["Traitement",null,"Valeur","Unité",null,"Total","Quantité"]
["Éducation de peuplement",null,{"$f":"'Calculs grille'!I110","v":136},"Nombre de km délimités",null,{"$f":"C47*G47","v":0}]
["Préparation de terrain",null,{"$f":"'Calculs grille'!I109","v":28},"Nombre de km délimités",null,{"$f":"C48*G48","v":0}]
["Régénération artificielle",null,{"$f":"'Calculs grille'!I109","v":28},"Nombre de km délimités",null,{"$f":"C49*G49","v":0}]
["Majoration pour l'hébergement et la distance du secteur d'intervention (H3 et D200)"]
["Hébergement (H3)",null,null,null,null,{"$f":"IF(G51=\"\",\"\",IF(G51=Menus!A464,Menus!B464,IF(G51=Menus!A465,Menus!B465,IF(G51=Menus!A466,Menus!B466,IF(G51<=0.091,G51,\"Max 9,1%\")))))","v":""}]
["Distance du secteur d'intervention (D200)",null,null,null,null,{"$f":"IF(G52=Menus!$A$469,Menus!$B$469,IF(G52=Menus!$A$470,Menus!$B$470,\"\"))","v":""}]
["Total"]
["Montant de base admissible",null,null,null,null,null,{"$f":"IF(ISERR(IF(SUM(F35:F43)>7,\"Maximum 7 critères NCP\",SUM(F11:F13,F16:F18,F21,F24:F25,F27,F47:F49)+(C26+(SUM(F31:F34)*'Calculs grille'!I103)+(SUM(F35:F43)*'Calculs grille'!I104)+(SUM(F44)*'Calculs grille'!I105))*G26)),0,IF(SUM(F35:F43)>7,\"Maximum 7 critères NCP\",SUM(F11:F13,F16:F18,F21,F24:F25,F27,F47:F49)+(C26+(SUM(F31:F34)*'Calculs grille'!I103)+(SUM(F35:F43)*'Calculs grille'!I104)+(SUM(F44)*'Calculs grille'!I105))*G26))","v":0}]
["Taux H3",null,null,null,null,null,{"$f":"IF(ISERR(IF(G54=\"Maximum 7 critères NCP\",0,G54*SUM(F51))),0,IF(G54=\"Maximum 7 critères NCP\",0,G54*SUM(F51)))","v":0}]
["Taux D200 (non applicable pour le plan de sondage)",null,null,null,null,null,{"$f":"IF(ISERR(IF(G54=\"Maximum 7 critères NCP\",0,(G54-F21)*F52)),0,IF(G54=\"Maximum 7 critères NCP\",0,(G54-F21)*F52))","v":0}]
["Grand total admissible",null,null,null,null,null,{"$f":"IF(ISERR(ROUND(SUM(F54:G56),2)),0,ROUND(SUM(F54:G56),2))","v":0}]
[]
["J'atteste que les renseignements fournis dans ce document afin de calculer le taux du traitement sont complets et conformes à la vérité, au meilleur de mes connaissances."]
[]
[]
[]
["Nom et prénom de l'ingénieur forestier",null,null,null,null,null,"No de permis"]
[null,null,null,null,null,null,{"$f":"TODAY()","v":"2017-04-05"}]
[]
["Signature de l'ingénieur forestier",null,null,null,null,null,"Date (AAAA-MM-JJ)"]
[]
[]
["Section réservée au suivi du contrat"]
[]
[null,"Numéro de la prescription :",{"$f":"IF(G8<>\"\",G8,\"\")","v":""}]
[]
[null,"Numéro du contrat :"]
[null,"Numéro du projet :"]
[null,"U.G. :"]
[null,"MRC :"]
[null,"Code de traitement DICA :"]
[null,"Code de traitement RATF :"]
[null,"Type d'attribution : "]
[null,"Taux AOP : "]
[null,"Nom de l'entrepreneur : "]
[null,"Numéro de fournisseur : "]
[null,"Date de début :"]
[null,"Date de fin :"]
[null,"Commentaires :"]

{"sheet":"Dispersion UA_2017-2018","index":6,"n_rows":102,"n_cols":5,"rows_kept":102,"cut":false,"hidden":false,"merged":[[0,0,0,4],[2,0,2,4],[24,0,24,4],[4,0,4,1],[3,0,3,4],[5,0,5,1],[6,0,6,1],[7,0,7,1],[8,0,8,1],[9,0,9,1],[10,0,10,1],[11,0,11,1],[12,0,12,1],[13,0,13,1],[14,0,14,1],[15,0,15,1],[99,0,99,4],[101,0,101,4],[22,0,22,1],[23,0,23,1],[1,0,1,2],[16,0,16,1],[17,0,17,1],[18,0,18,1],[19,0,19,1],[20,0,20,1],[21,0,21,1]]}
[]
["Annexe au calcul des taux des traitements                                  non commerciaux                                                                2017-2018                                                                                                                                                                                                                                                                                                                                                                                                                                                                                                                                                   Indice de dispersion"]
[]
["Majoration par indice de dispersion et catégorie de préparation de terrain"]
["Indice de dispersion (km/ha)",null,"Classe","Scarifiage Herse\n (DISP1)","Déblaiement\nExcavatrice\n (DISP2)"]
["1,01 - 2,00",null,1,3.7999999999999999E-2,0]
["2,01 - 3,00",null,2,7.5999999999999998E-2,0]
["3,01 - 4,00",null,3,0.11399999999999999,0]
["4,01 - 5,00",null,4,0.152,1.4E-2]
["5,01 - 6,00",null,5,0.19,2.8000000000000001E-2]
["6,01 - 7,00",null,6,0.22800000000000001,4.2000000000000003E-2]
["7,01 - 8,00",null,7,0.26600000000000001,5.6000000000000001E-2]
["8,01 - 9,00",null,8,0.30399999999999999,7.0000000000000007E-2]
["9,01 - 10,00",null,9,0.34199999999999997,8.4000000000000005E-2]
["10,01 - 11,00",null,10,0.34199999999999997,9.8000000000000004E-2]
["11,01 - 12,00",null,11,0.34199999999999997,0.112]
["12,01 - 13,00",null,12,0.34199999999999997,0.126]
["13,01 - 14,00",null,13,0.34199999999999997,0.14000000000000001]
["14,01 - 15,00",null,14,0.34199999999999997,0.15400000000000003]
["15,01 - 16,00",null,15,0.34199999999999997,0.16800000000000004]
["16,01 - 17,00",null,16,0.34199999999999997,0.18200000000000005]
["17,01 - 18,00",null,17,0.34199999999999997,0.19600000000000006]
["18,01 - 19,00",null,18,0.34199999999999997,0.21000000000000008]
["19,01 et +",null,19,0.34199999999999997,0.22400000000000009]
["Indice de dispersion et majoration par UA et par catégorie de préparation de terrain - 2017-2018"]
["UA","Indice de dispersion (km/ha)","Classe","Scarifiage Herse\n (DISP1)","Déblaiement\nExcavatrice (DISP2)"]
["00000",0,0,{"$f":"IF(B27>9,0.038*9,IF(B27>1,0.038*ROUNDUP((B27-1),0),0))","v":0},{"$f":"IF(B27>19,0.014*15,IF(B27>4,0.014*ROUNDUP((B27-4),0),0))","v":0}]
["01151",2.7655465497365705,2,{"$f":"IF(B28>9,0.038*9,IF(B28>1,0.038*ROUNDUP((B28-1),0),0))","v":7.5999999999999998E-2},{"$f":"IF(B28>19,0.014*15,IF(B28>4,0.014*ROUNDUP((B28-4),0),0))","v":0}]
["01152",2.7655465497365705,2,7.5999999999999998E-2,0]
["01251",2.7734908334350417,2,7.5999999999999998E-2,0]
["01252",2.7734908334350417,2,7.5999999999999998E-2,0]
["01253",2.7734908334350417,2,7.5999999999999998E-2,0]
["01254",2.7734908334350417,2,7.5999999999999998E-2,0]
["02251",2.0942101544565199,2,7.5999999999999998E-2,0]
["02351",1.3196589467589754,1,3.7999999999999999E-2,0]
["02352",1.2152972137171474,1,3.7999999999999999E-2,0]
["02451",1.0390585495900222,1,3.7999999999999999E-2,0]
["02452",1.0390585495900222,1,3.7999999999999999E-2,0]
["02551",1.0252834571088849,1,3.7999999999999999E-2,0]
["02651",1.5045137897262424,1,3.7999999999999999E-2,0]
["02661",1.5045137897262424,1,3.7999999999999999E-2,0]
["02662",1.5045137897262424,1,3.7999999999999999E-2,0]
["02663",1.5045137897262424,1,3.7999999999999999E-2,0]
["02664",1.5045137897262424,1,3.7999999999999999E-2,0]
["02665",1.5045137897262424,1,3.7999999999999999E-2,0]
["02666",1.5045137897262424,1,3.7999999999999999E-2,0]
["02751",0.86316813112379465,0,0,0]
["03151",3.9152272178543734,3,0.11399999999999999,0]
["03152",3.9152272178543734,3,0.11399999999999999,0]
["03153",3.9152272178543734,3,0.11399999999999999,0]
["03351",3.1991969783921061,3,0.11399999999999999,0]
["03451",0,0,0,0]
["03453",0,0,0,0]
["03551",8.5029168114228444,8,0.30399999999999999,7.0000000000000007E-2]
["04151",1.8904790999752921,1,3.7999999999999999E-2,0]
["04251",1.325245976534942,1,3.7999999999999999E-2,0]
["04351",1.0338590856902339,1,3.7999999999999999E-2,0]
["04352",1.0338590856902339,1,3.7999999999999999E-2,0]
["05151",0,0,0,0]
["06151",0,0,0,0]
["06152",2.52135735500265,2,7.5999999999999998E-2,0]
["06251",1.9979475456521285,1,3.7999999999999999E-2,0]
["06252",1.9979475456521285,1,3.7999999999999999E-2,0]
["06451",2.3025226995271519,2,7.5999999999999998E-2,0]
["06452",3.80685812406404,3,0.11399999999999999,0]
["07151",1.9299259814158138,1,3.7999999999999999E-2,0]
["07152",1.9299259814158138,1,3.7999999999999999E-2,0]
["07251",3.88562004631763,3,0.11399999999999999,0]
["07351",2.9381580578460622,2,7.5999999999999998E-2,0]
["07352",2.9381580578460622,2,7.5999999999999998E-2,0]
["07451",1.769368909399311,1,3.7999999999999999E-2,0]
["08151",3.5350349661574172,3,0.11399999999999999,0]
["08152",3.5350349661574172,3,0.11399999999999999,0]
["08251",5.8062392560172222,5,0.19,2.8000000000000001E-2]
["08351",3.7373079065500945,3,0.11399999999999999,0]
["08451",0.64218215436014403,0,0,0]
["08462",0.64218215436014403,0,0,0]
["08551",3.2725465708465911,3,0.11399999999999999,0]
["08562",3.2725465708465911,3,0.11399999999999999,0]
["08651",1.7198996827568722,1,3.7999999999999999E-2,0]
["08652",1.6436748207685714,1,3.7999999999999999E-2,0]
["08663",1.6436748207685714,1,3.7999999999999999E-2,0]
["08664",1.6436748207685714,1,3.7999999999999999E-2,0]
["08665",1.6436748207685714,1,3.7999999999999999E-2,0]
["08666",1.6436748207685714,1,3.7999999999999999E-2,0]
["08751",0.99514266832672205,0,0,0]
["08762",0.99514266832672205,0,0,0]
["08763",0.99514266832672205,0,0,0]
["08764",0.99514266832672205,0,0,0]
["09351",2.0699034043117042,2,7.5999999999999998E-2,0]
["09352",2.0699034043117042,2,7.5999999999999998E-2,0]
["09451",7.4416944287730713,7,{"$f":"IF(B92>9,0.038*9,IF(B92>1,0.038*ROUNDUP((B92-1),0),0))","v":0.26600000000000001},{"$f":"IF(B92>19,0.014*15,IF(B92>4,0.014*ROUNDUP((B92-4),0),0))","v":5.6000000000000001E-2}]
["09452",7.4416944287730713,7,0.26600000000000001,5.6000000000000001E-2]
["09551",0,0,0,0]
["09751",2.5095816708187275,2,7.5999999999999998E-2,0]
["11161",2.5535610747770039,2,7.5999999999999998E-2,0]
["11262",2.1882487638572337,2,7.5999999999999998E-2,0]
["11263",2.1882487638572337,2,7.5999999999999998E-2,0]
[]
["Indice de dispersion: La distance à vol d'oiseau avec comme point de départ une base régionale, en reliant l'ensemble des secteurs d'intervention à traiter d'un territoire donné et en revenant à la base régionale. La distance est divisés par la superficie totale à traiter. Cet indice s'exprime sous la forme d'une distance par hectare traité (km/ha)"]
[]
["Cet indice peut être recalculé dans le cadre de nouveaux plans spéciaux approuvé par l'unité de gestion"]

{"sheet":"Versions du fichier","index":7,"n_rows":21,"n_cols":3,"rows_kept":21,"cut":false,"hidden":false,"merged":[[15,2,15,16],[16,2,16,16],[2,2,2,7],[6,2,6,7],[0,0,0,16],[14,2,14,16],[13,2,13,16]]}
["Suivi des versions du fichier de l’annexe au calcul des taux des traitements non commerciaux 2017-2018"]
[]
["Version 1","Nom du fichier :"," Annexe_TSNC_2017-2018_Consultation_2017-02-13.xlsm"]
[null,"Date de mise en ligne :"," 2017-02-13"]
[null,"Remarques :","• Version initiale proposée pour la période de consultation"]
[]
["Version 2","Nom du fichier :"," Annexe_TSNC_2017-2018_2017-04-05.xlsm"]
[null,"Date de mise en ligne :"," 2017-04-XX"]
[null,"Remarques :","• Ajout du présent onglet afin d'informer les utilisateurs des changements entre les versions du fichier"]
[null,null,"• Correction de coquilles et précisions diverses (libellés, unités, etc.)"]
[null,null,"• Ajout d’un bouton «Réinitialiser le formulaire» pour chacune des familles de traitements"]
[null,null,"• Les couleurs utilisées pour la mise en page ont été atténuées afin d'offrir un meilleur rendu lors d'une impression noir et blanc"]
[null,null,"• Préparation de terrain : Les types de machinerie assimilés au type «TTS hydrauliques» ont été ajustés afin d'inclure «Bracke T-26 avec débardeur» et «Equisyl»"]
[null,null,"• Préparation de terrain : Le traitement «Déblaiement des résidus de coupe par placeau» a été retiré et le type de machinerie «Excavatrice ou débusqueuse ou abatteuse» \n   qui y était associé peut dorénavant être sélectionné via le traitement «Déblaiement des résidus de coupe»"]
[null,null,"• Préparation de terrain : Élargissement des valeurs possibles de la variable «R» (1% à 100% inclusivement) pour les traitements\n   «Déblaiement des résidus de coupe - Excavatrice ou débusqueuse ou abatteuse» et «Scarifiage par monticule ou inversion par placeau ou décapage par placeau - Excavatrice»\n"]
[null,null,"• Régénération artificielle : Bonification de l'outil de calcul de la valeur DS suggérée pour le traitement «Plantation uniforme et regarni en plein manuel sauf PEH»"]
[null,null,"• Régénération artificielle : Bonification de la présentation et clarification au sujet de l'usage des valeurs DS et DSA dans le calcul du taux pour le traitement «Regarni de sentier et enrichissement manuel sauf PEH»"]
[null,null,"• Les plafonds des majorations pour l'hébergement H2 et H3 ont été modifiées"]
[null,null,"• Les modalités d'application des majorations pour l'hébergement H1, H2 et H3 ont été modifiées (une valeur inférieure au maximum peut être utilisée)"]
[null,null,"• Les majorations pour la certification ont été ajoutées (CEAF1-CEAF2-CEAF3 ou ISO1-ISO2-ISO3) pour les travaux de préparation de terrain, de régénération artificielle et d'éducation de peuplement"]
[null,null,"• La majoration pour le transport collectif  (TC) a été ajoutée pour les traitements de régénération artificielle et d'éducation de peuplement"]

{"sheet":"Calculs grille","index":8,"n_rows":122,"n_cols":10,"rows_kept":122,"cut":false,"hidden":true,"merged":[[0,9,1,9],[0,8,1,8],[0,6,1,6],[0,5,1,5],[0,0,1,0],[0,1,1,1],[0,2,1,2],[0,3,1,3],[0,4,1,4]]}
["Famille","Type_1","Type_2","Type_3","Paiement","Intrant","code","2017-2018","2017-2018","Source"]
[null,null,null,null,null,null,null,"Non \narrondis"]
["Préparation de site","Scarifiage en sillon avec scarificateur","Scarificateurs à disques passifs","Type TTS passifs","Taux fixe","Taux à l'hectare","d2",227.74539287554836,228,"[Fichier calcul grille_VTSNC_ 2017-2018 - Final_v2.xlsx]Feuille de calcul'!$T4)"]
["Préparation de site","Scarifiage en sillon avec scarificateur","Scarificateurs à disques passifs","Rouleau écraseur et scarificateur à disques passifs","Taux fixe","Taux à l'hectare","d2",719.05183442913926,719,"[Fichier calcul grille_VTSNC_ 2017-2018 - Final_v2.xlsx]Feuille de calcul'!$T5)"]
["Préparation de site","Scarifiage en sillon avec scarificateur","Scarificateurs à disques hydrauliques","Bracke T-26 avec débardeur, Types TTS hydrauliques, Donaren, Equisyl ou Requin","Taux fixe","Taux à l'hectare","d2",334.28407731328377,334,"[Fichier calcul grille_VTSNC_ 2017-2018 - Final_v2.xlsx]Feuille de calcul'!$T6)"]
["Préparation de site","Scarifiage en sillon avec scarificateur","Scarificateurs à disques hydrauliques","Bracke T-26 avec porteur","Taux fixe","Taux à l'hectare","d2",379.89590706480192,380,"[Fichier calcul grille_VTSNC_ 2017-2018 - Final_v2.xlsx]Feuille de calcul'!$T8)"]
["Préparation de site","Scarifiage en sillon avec scarificateur","Scarificateurs à cônes hydrauliques","Wadell","Taux fixe","Taux à l'hectare","d2",399.94906344945429,400,"[Fichier calcul grille_VTSNC_ 2017-2018 - Final_v2.xlsx]Feuille de calcul'!$T9)"]
["Préparation de site","Scarifiage en sillon avec scarificateur","Scarificateurs à monticules","Bracke M-36a avec débardeur","Taux fixe","Taux à l'hectare","d2",316.83346558000733,317,"[Fichier calcul grille_VTSNC_ 2017-2018 - Final_v2.xlsx]Feuille de calcul'!$T10)"]
["Préparation de site","Scarifiage en sillon avec scarificateur","Scarificateurs à monticules","Bracke M-36a avec porteur","Taux fixe","Taux à l'hectare","d2",379.89590706480192,380,"[Fichier calcul grille_VTSNC_ 2017-2018 - Final_v2.xlsx]Feuille de calcul'!$T11)"]
["Préparation de site","Scarifiage en sillon avec scarificateur","Scarifiage en herse/labour","Herses forestières","Taux fixe","Taux à l'hectare","d2",404.48647325552861,404,"[Fichier calcul grille_VTSNC_ 2017-2018 - Final_v2.xlsx]Feuille de calcul'!$T12)"]
["Préparation de site","Scarifiage en sillon avec scarificateur","Scarifiage par mixage par placeau","Taupe ou pioche forestière","Taux fixe","Taux à l'hectare","d3",593.73082288352839,594,"[Fichier calcul grille_VTSNC_ 2017-2018 - Final_v2.xlsx]Feuille de calcul'!$T13)"]
["Préparation de site","Scarifiage et déblaiement","Scarifiage par monticule ou inversion par placeau ou décapage par placeau ET\nDéblaiement des résidus de coupe","Excavatrice OU Excavatrice ou débusqueuse ou abatteuse","Taux variable",{"$f":"\"Valeur par hectare = ((\"&I14&\" * R) / e (1,683*R - 0,299 * TP -0,313 * TR + 0,17 * PER + 2,014)  * VEH\"","v":"Valeur par hectare = ((26872 * R) / e (1,683*R - 0,299 * TP -0,313 * TR + 0,17 * PER + 2,014)  * VEH"}]
["Préparation de site","Scarifiage et déblaiement","Scarifiage par monticule ou inversion par placeau ou décapage par placeau ET\nDéblaiement des résidus de coupe","Excavatrice ou débusqueuse ou abatteuse","Taux variable","Taux moyen","d2",744.29740684142382,744,"[Fichier calcul grille_VTSNC_ 2017-2018 - Final_v2.xlsx]Feuille de calcul'!$T14)"]
["Préparation de site","Scarifiage et déblaiement","Scarifiage par monticule ou inversion par placeau ou décapage par placeau ET\nDéblaiement des résidus de coupe","Excavatrice ou débusqueuse ou abatteuse","Taux variable","Variable 1","d2",26872.272990129797,26872,"[Fichier calcul grille_VTSNC_ 2017-2018 - Final_v2.xlsx]Feuille de calcul'!$T15)"]
["Préparation de site","Scarifiage et déblaiement","Déblaiement des résidus de coupe avec bouteur  avec pelle râteau","Bouteur avec pelle râteau","Taux fixe","Taux à l'hectare","d2",746.69849984294774,747,"[Fichier calcul grille_VTSNC_ 2017-2018 - Final_v2.xlsx]Feuille de calcul'!$T16)"]
["Préparation de site","Scarifiage et déblaiement","Déblaiement des résidus de coupe avec abatteuse groupeuse après feux","Abatteuse groupeuse","Taux fixe","Taux à l'hectare","d2",883.22197520466852,883,"[Fichier calcul grille_VTSNC_ 2017-2018 - Final_v2.xlsx]Feuille de calcul'!$T17)"]
["Préparation de site","Drainage sylvicole","Milieu dénudé","Excavatrice","Taux fixe","Taux à l'hectare","d2",2288.755695622031,2289,"[Fichier calcul grille_VTSNC_ 2017-2018 - Final_v2.xlsx]Feuille de calcul'!$T18)"]
["Préparation de site","Drainage sylvicole","Milieu boisé","Excavatrice","Taux fixe","Taux à l'hectare","d2",2543.0277538178593,2543,"[Fichier calcul grille_VTSNC_ 2017-2018 - Final_v2.xlsx]Feuille de calcul'!$T19)"]
["Régénération artificielle","Plantation uniforme et regarni manuel sauf PEH",null,null,"Taux variable",{"$f":"\"$/ Mp  = \"&I20&\" \"&I21&\" * PR + (\"&I22&\" / (DE*DS))  + GABARIT\"","v":"$/ Mp  = 106,7 -64,61 * PR + (421746 / (DE*DS))  + GABARIT"}]
["Régénération artificielle","Plantation uniforme et regarni manuel sauf PEH",null,null,"Taux variable","Constante","d3",106.70342876260295,106.7,"[Fichier calcul grille_VTSNC_ 2017-2018 - Final_v2.xlsx]Feuille de calcul'!$T23)"]
["Régénération artificielle","Plantation uniforme et regarni manuel sauf PEH",null,null,"Taux variable","Variable 1","d3",-64.608308348615196,-64.61,"[Fichier calcul grille_VTSNC_ 2017-2018 - Final_v2.xlsx]Feuille de calcul'!$T24)"]
["Régénération artificielle","Plantation uniforme et regarni manuel sauf PEH",null,null,"Taux variable","1/(DE*DS)","d3",421746.12443389528,421746,"[Fichier calcul grille_VTSNC_ 2017-2018 - Final_v2.xlsx]Feuille de calcul'!$T25)"]
["Régénération artificielle","Plantation uniforme et regarni manuel sauf PEH",null,null,"Taux variable","Gabarit 7 : RacN PFD","d3",348.1030231996267,348,"[Fichier calcul grille_VTSNC_ 2017-2018 - Final_v2.xlsx]Feuille de calcul'!$T26)"]
["Régénération artificielle","Plantation uniforme et regarni manuel sauf PEH",null,null,"Taux variable","Gabarit 5 : Rec PFD","d3",296.4952987896653,296,"[Fichier calcul grille_VTSNC_ 2017-2018 - Final_v2.xlsx]Feuille de calcul'!$T27)"]
["Régénération artificielle","Plantation uniforme et regarni manuel sauf PEH",null,null,"Taux variable","Gabarit 4 : Rec 200cc","d3",258.82327717900239,259,"[Fichier calcul grille_VTSNC_ 2017-2018 - Final_v2.xlsx]Feuille de calcul'!$T28)"]
["Régénération artificielle","Plantation uniforme et regarni manuel sauf PEH",null,null,"Taux variable","Gabarit 3 : Rec 45-110","d3",147.37399142434398,147,"[Fichier calcul grille_VTSNC_ 2017-2018 - Final_v2.xlsx]Feuille de calcul'!$T29)"]
["Régénération artificielle","Plantation uniforme et regarni manuel sauf PEH",null,null,"Taux variable","Gabarit 2 : Rec 67-50","d3",86.305622576781886,86,"[Fichier calcul grille_VTSNC_ 2017-2018 - Final_v2.xlsx]Feuille de calcul'!$T30)"]
["Régénération artificielle","Plantation uniforme et regarni manuel sauf PEH",null,null,"Taux variable","Gabarit 1 : Rec 113-25","d3",81.381095329284832,81,"[Fichier calcul grille_VTSNC_ 2017-2018 - Final_v2.xlsx]Feuille de calcul'!$T31)"]
["Régénération artificielle","Plantation et regarni mécanique (Scarificateur-planteur (Bracke P-11a)","1500 plants/ha et +","Récipient 45-110","Taux fixe","Taux à l'hectare","d2",1252.2692673340766,1252,"[Fichier calcul grille_VTSNC_ 2017-2018 - Final_v2.xlsx]Feuille de calcul'!$T44)"]
["Régénération artificielle","Plantation et regarni mécanique (Scarificateur-planteur (Bracke P-11a)","1500 plants/ha et +","Récipient 25-200","Taux fixe","Taux à l'hectare","d2",1278.8384163268549,1279,"[Fichier calcul grille_VTSNC_ 2017-2018 - Final_v2.xlsx]Feuille de calcul'!$T45)"]
["Régénération artificielle","Plantation et regarni mécanique (Scarificateur-planteur (Bracke P-11a)","1499 plants/ha et -","Récipient 45-110","Taux fixe","Taux à l'hectare","d2",1365.8506276542487,1366,"[Fichier calcul grille_VTSNC_ 2017-2018 - Final_v2.xlsx]Feuille de calcul'!$T46)"]
["Régénération artificielle","Plantation et regarni mécanique (Scarificateur-planteur (Bracke P-11a)","1499 plants/ha et -","Récipient 25-200","Taux fixe","Taux à l'hectare","d2",1392.4235348541331,1392,"[Fichier calcul grille_VTSNC_ 2017-2018 - Final_v2.xlsx]Feuille de calcul'!$T47)"]
["Régénération artificielle","Plantation uniforme PEH","Racine nue Plant de forte dimension",null,"Taux fixe","Taux à l'hectare","d2",662.22267338229108,662,"[Fichier calcul grille_VTSNC_ 2017-2018 - Final_v2.xlsx]Feuille de calcul'!$T48)"]
["Régénération artificielle","Plantation par enrichissement","Enrichissement (350p/ha) ou Regarni pins/feuillus (< 799p/ha)","300 plants/ha par puit de lumière","Taux fixe","Taux à l'hectare","d2",713.79982887831932,714,"[Fichier calcul grille_VTSNC_ 2017-2018 - Final_v2.xlsx]Feuille de calcul'!$T49)"]
["Régénération artificielle","Ensemencement","Ensemencement","Terrestre manuel","Taux fixe","Taux à l'hectare","d3",193.78954556523777,194,"[Fichier calcul grille_VTSNC_ 2017-2018 - Final_v2.xlsx]Feuille de calcul'!$T50)"]
["Éducation de peuplement","Dégagement par coupe mécanique","Dégagement mécanique de la régénération","Dénombrement à 1m","Taux variable",{"$f":"\"Taux ($ / ha) = \"&I38&\" + (\"&I39&\" * RECFFE) + (\"&I40&\" * DI) + (\"&I41&\" * MODE)\"","v":"Taux ($ / ha) = 783 + (12,26 * RECFFE) + (0,0044 * DI) + (134,65 * MODE)"}]
["Éducation de peuplement","Dégagement par coupe mécanique","Dégagement mécanique de la régénération","Dénombrement à 1m","Taux variable","Taux moyen","d4",1227.4800471064948,1227,"[Fichier calcul grille_VTSNC_ 2017-2018 - Final_v2.xlsx]Feuille de calcul'!$T54)"]
["Éducation de peuplement","Dégagement par coupe mécanique","Dégagement mécanique de la régénération","Dénombrement à 1m","Taux variable","Variable 1","d4",783.38838552768038,783,"[Fichier calcul grille_VTSNC_ 2017-2018 - Final_v2.xlsx]Feuille de calcul'!$T55)"]
["Éducation de peuplement","Dégagement par coupe mécanique","Dégagement mécanique de la régénération","Dénombrement à 1m","Taux variable","Variable 2","d4",12.257068236647578,12.26,"[Fichier calcul grille_VTSNC_ 2017-2018 - Final_v2.xlsx]Feuille de calcul'!$T56)"]
["Éducation de peuplement","Dégagement par coupe mécanique","Dégagement mécanique de la régénération","Dénombrement à 1m","Taux variable","Variable 3","d4",4.3623246328346422E-3,4.4000000000000003E-3,"[Fichier calcul grille_VTSNC_ 2017-2018 - Final_v2.xlsx]Feuille de calcul'!$T57)"]
["Éducation de peuplement","Dégagement par coupe mécanique","Dégagement mécanique de la régénération","Dénombrement à 1m","Taux variable","Variable 4","d4",134.64687372810337,134.65,"[Fichier calcul grille_VTSNC_ 2017-2018 - Final_v2.xlsx]Feuille de calcul'!$T58)"]
["Éducation de peuplement","Entretien de la strate gaulis (2 m de hauteur moyenne)","Secteur d'intervention sans choix de tige, soit interspécifique (par groupe d'essence, résineux / feuillus) et sans espacement ","Gaulis I","Taux variable",{"$f":"\"Taux ($ / ha)  = (\"&I44&\" + (\"&I45&\" * DI) - (\"&ABS(I46)&\" * SRLC)) * CP\"","v":"Taux ($ / ha)  = (800,05 + (0,0103 * DI) - (195,54 * SRLC)) * CP"}]
["Éducation de peuplement","Entretien de la strate gaulis (2 m de hauteur moyenne)","Secteur d'intervention sans choix de tige, soit inter spécifique (par groupe d'essence, résineux / feuillus) et sans espacement ","Gaulis I","Taux variable","Taux moyen","d4",1068.121974497941,1068,"[Fichier calcul grille_VTSNC_ 2017-2018 - Final_v2.xlsx]Feuille de calcul'!$T59)"]
["Éducation de peuplement","Entretien de la strate gaulis (2 m de hauteur moyenne)","Secteur d'intervention sans choix de tige, soit inter spécifique (par groupe d'essence, résineux / feuillus) et sans espacement ","Gaulis I","Taux variable","Variable 1","d4",800.05180190973851,800.05,"[Fichier calcul grille_VTSNC_ 2017-2018 - Final_v2.xlsx]Feuille de calcul'!$T60)"]
["Éducation de peuplement","Entretien de la strate gaulis (2 m de hauteur moyenne)","Secteur d'intervention sans choix de tige, soit inter spécifique (par groupe d'essence, résineux / feuillus) et sans espacement ","Gaulis I","Taux variable","Variable 2","d4",1.0253872155138863E-2,1.03E-2,"[Fichier calcul grille_VTSNC_ 2017-2018 - Final_v2.xlsx]Feuille de calcul'!$T61)"]
["Éducation de peuplement","Entretien de la strate gaulis (2 m de hauteur moyenne)","Secteur d'intervention sans choix de tige, soit inter spécifique (par groupe d'essence, résineux / feuillus) et sans espacement ","Gaulis I","Taux variable","Variable 3","d4",-195.53503032745431,-195.54,"[Fichier calcul grille_VTSNC_ 2017-2018 - Final_v2.xlsx]Feuille de calcul'!$T62)"]
["Éducation de peuplement","Entretien de la strate gaulis (2 m de hauteur moyenne)","Secteur d'intervention sans choix de tige, soit inter spécifique (par groupe d'essence, résineux / feuillus) et sans espacement ","Gaulis II","Taux variable",{"$f":"\"Taux ($/ha) = (\"&I49&\" * ln(DI) -  \"&I50&\") * TP * CP1\"","v":"Taux ($/ha) = (563,76 * ln(DI) -  4357,86) * TP * CP1"}]
["Éducation de peuplement","Entretien de la strate gaulis (2 m de hauteur moyenne)","Secteur d'intervention sans choix de tige, soit inter spécifique (par groupe d'essence, résineux / feuillus) et sans espacement ","Gaulis II","Taux variable","Taux moyen","d4",1290.3644664162425,1290,"[Fichier calcul grille_VTSNC_ 2017-2018 - Final_v2.xlsx]Feuille de calcul'!$T63)"]
["Éducation de peuplement","Entretien de la strate gaulis (2 m de hauteur moyenne)","Secteur d'intervention sans choix de tige, soit inter spécifique (par groupe d'essence, résineux / feuillus) et sans espacement ","Gaulis II","Taux variable","Variable 1","d4",563.75667823585479,563.76,"[Fichier calcul grille_VTSNC_ 2017-2018 - Final_v2.xlsx]Feuille de calcul'!$T64)"]
["Éducation de peuplement","Entretien de la strate gaulis (2 m de hauteur moyenne)","Secteur d'intervention sans choix de tige, soit inter spécifique (par groupe d'essence, résineux / feuillus) et sans espacement ","Gaulis II","Taux variable","Variable 2","d4",4357.8559053980853,4357.8599999999997,"[Fichier calcul grille_VTSNC_ 2017-2018 - Final_v2.xlsx]Feuille de calcul'!$T65)"]
["Éducation de peuplement","Éclaircie précommerciale par puits de lumière",null,null,"Taux variable",{"$f":"\"Taux ($/ha) = \"&I53&\" * DENSTIGE * EXP(\"&I54&\" * HTTIGE) + (\"&I55&\" * DENSTIGE / (\"&I56&\" * DENSITIGE + \"&I57&\") + \"&I58&\" * TAIL + \"&I59","v":"Taux ($/ha) = 0,4439 * DENSTIGE * EXP(0,1452 * HTTIGE) + (37 * DENSTIGE / (0,1204 * DENSITIGE + 98,63) + 42,51 * TAIL + 774,22"}]
["Éducation de peuplement","Éclaircie précommerciale par puits de lumière",null,null,"Taux variable","Taux moyen (Exécution- Martelage-Taille)","d4",1326.0815655586757,1326,"[Fichier calcul grille_VTSNC_ 2017-2018 - Final_v2.xlsx]Feuille de calcul'!$T66)"]
["Éducation de peuplement","Éclaircie précommerciale par puits de lumière",null,null,"Taux variable","Variable 1","d4",0.44394873072648605,0.44390000000000002,"[Fichier calcul grille_VTSNC_ 2017-2018 - Final_v2.xlsx]Feuille de calcul'!$T67)"]
["Éducation de peuplement","Éclaircie précommerciale par puits de lumière",null,null,"Taux variable","Variable 2",null,null,0.1452]
["Éducation de peuplement","Éclaircie précommerciale par puits de lumière",null,null,"Taux variable","Variable 3 Martelage","d5",36.650538369518145,37,"[Fichier calcul grille_VTSNC_ 2017-2018 - Final_v2.xlsx]Feuille de calcul'!$T68)"]
["Éducation de peuplement","Éclaircie précommerciale par puits de lumière",null,null,"Taux variable","Variable 4 Martelage","d5",0.12036897310339933,0.12039999999999999,"[Fichier calcul grille_VTSNC_ 2017-2018 - Final_v2.xlsx]Feuille de calcul'!$T69)"]
["Éducation de peuplement","Éclaircie précommerciale par puits de lumière",null,null,"Taux variable","Variable 5 Martelage","d5",98.632178837555884,98.63,"[Fichier calcul grille_VTSNC_ 2017-2018 - Final_v2.xlsx]Feuille de calcul'!$T70)"]
["Éducation de peuplement","Éclaircie précommerciale par puits de lumière",null,null,"Taux variable","Variable 6 Taille","d5",42.514624508641042,42.51,"[Fichier calcul grille_VTSNC_ 2017-2018 - Final_v2.xlsx]Feuille de calcul'!$T71)"]
["Éducation de peuplement","Éclaircie précommerciale par puits de lumière",null,null,"Taux variable","Variable 7","d5",774.21384367468465,774.22,"[Fichier calcul grille_VTSNC_ 2017-2018 - Final_v2.xlsx]Feuille de calcul'!$T72)"]
["Éducation de peuplement","Éclaircie précommerciale par puits de lumière",null,null,"Taux variable","Taux (Exécution- Martelage-Taille)","d4",127.1991885907,127]
["Éducation de peuplement","Éclaircie précommerciale par puits de lumière",null,null,"Taux variable","Exécution","d4",957.13149441550001,957]
["Éducation de peuplement","Éclaircie précommerciale par puits de lumière",null,null,"Taux variable","Martelage+Taille","d4",147.22412095320877,147.22999999999999,"[Fichier calcul grille_VTSNC_ 2017-2018 - Final_v2.xlsx]Feuille de calcul'!$T74)"]
["Éducation de peuplement","Éclaircie précommerciale par puits de lumière",null,null,"Taux variable","Taille","d4",137.95811995899999,137.96]
["Éducation de peuplement","Éclaircie précommerciale par puits de lumière",null,null,"Constante","EPC",null,626.98972272147591,626.99,"[Fichier calcul grille_VTSNC_ 2017-2018 - Final_v2.xlsx]Feuille de calcul'!$T73)"]
["Éducation de peuplement","Éclaircie précommerciale par puits de lumière",null,null,"Constante","Martelage",null,30.616746189799457,30.62,"[Fichier calcul grille_VTSNC_ 2017-2018 - Final_v2.xlsx]Feuille de calcul'!$T75)"]
["Éducation de peuplement","Éclaircie précommerciale par puits de lumière",null,null,"Constante","Taille",null,116.60737476340933,116.61,"[Fichier calcul grille_VTSNC_ 2017-2018 - Final_v2.xlsx]Feuille de calcul'!$T76)"]
["Éducation de peuplement","Élagage pour fins de qualité",null,null,"Taux variable",{"$f":"\"Taux ($/ha) = ((\"&I69&\" * BRAN + \"&I70&\" + \"&I71&\" * LONGELA) + (- \"&I72&\" * ln(DENSELA) + \"&I73&\")) * DENSELA) + MP  + \"&I76","v":"Taux ($/ha) = ((0,0238 * BRAN + 0,3469 + 0,5777 * LONGELA) + (- 0,0577 * ln(DENSELA) + 0,4885)) * DENSELA) + MP  + 552,58"}]
["Éducation de peuplement","Élagage pour fins de qualité",null,null,"Taux variable","Taux moyen","d4",1442.0520030458854,1442,"[Fichier calcul grille_VTSNC_ 2017-2018 - Final_v2.xlsx]Feuille de calcul'!$T77)"]
["Éducation de peuplement","Élagage pour fins de qualité",null,null,"Taux variable","Variable 1","d4",2.3848138944362839E-2,2.3800000000000002E-2,"[Fichier calcul grille_VTSNC_ 2017-2018 - Final_v2.xlsx]Feuille de calcul'!$T78)"]
["Éducation de peuplement","Élagage pour fins de qualité",null,null,"Taux variable","Variable 2","d4",0.34690317235165857,0.34689999999999999,"[Fichier calcul grille_VTSNC_ 2017-2018 - Final_v2.xlsx]Feuille de calcul'!$T79)"]
["Éducation de peuplement","Élagage pour fins de qualité",null,null,"Taux variable","Variable 3","d4",0.57770662437905296,0.57769999999999999,"[Fichier calcul grille_VTSNC_ 2017-2018 - Final_v2.xlsx]Feuille de calcul'!$T80)"]
["Éducation de peuplement","Élagage pour fins de qualité",null,null,"Taux variable","Variable 4","d4",5.7700863006848652E-2,5.7700000000000001E-2,"[Fichier calcul grille_VTSNC_ 2017-2018 - Final_v2.xlsx]Feuille de calcul'!$T81)"]
["Éducation de peuplement","Élagage pour fins de qualité",null,null,"Taux variable","Variable 5","d4",0.48850073417867274,0.48849999999999999,"[Fichier calcul grille_VTSNC_ 2017-2018 - Final_v2.xlsx]Feuille de calcul'!$T82)"]
["Éducation de peuplement","Élagage pour fins de qualité",null,null,"Taux variable","Variable 6 Martelage","d5",116.39398051488315,116.39,"[Fichier calcul grille_VTSNC_ 2017-2018 - Final_v2.xlsx]Feuille de calcul'!$T83)"]
["Éducation de peuplement","Élagage pour fins de qualité",null,null,"Taux variable","Variable 7 Martelage","d5",174.22566695005031,174.23,"[Fichier calcul grille_VTSNC_ 2017-2018 - Final_v2.xlsx]Feuille de calcul'!$T84)"]
["Éducation de peuplement","Élagage pour fins de qualité",null,null,"Taux variable","Variable 8","d4",552.57882919865131,552.58000000000004,"[Fichier calcul grille_VTSNC_ 2017-2018 - Final_v2.xlsx]Feuille de calcul'!$T85)"]
["Éducation de peuplement","Taille Phytosanitaire",null,null,"Taux variable",{"$f":"\"Taux ($/ha) = ((\"&I79&\" * BRAN + \"&I80&\" + (-\"&I81&\" * ln(DENSELA) + \"&I82&\")) * DENSELA) + \"&I83&\" * DENSCO + \"&I84&\" * DENSTF  + \"&I85","v":"Taux ($/ha) = ((0,0184 * BRAN + 0,0884 + (-0,0558 * ln(DENSELA) + 0,4726)) * DENSELA) + 0,1 * DENSCO + 0,4466 * DENSTF  + 534"}]
["Éducation de peuplement","Taille Phytosanitaire",null,null,"Taux variable","Taux moyen","d4",468.56006779676045,469,"[Fichier calcul grille_VTSNC_ 2017-2018 - Final_v2.xlsx]Feuille de calcul'!$T86)"]
["Éducation de peuplement","Taille Phytosanitaire",null,null,"Taux variable","Variable 1","d4",1.8436889431757985E-2,1.84E-2,"[Fichier calcul grille_VTSNC_ 2017-2018 - Final_v2.xlsx]Feuille de calcul'!$T87)"]
["Éducation de peuplement","Taille Phytosanitaire",null,null,"Taux variable","Variable 2","d4",8.8362165203425436E-2,8.8400000000000006E-2,"[Fichier calcul grille_VTSNC_ 2017-2018 - Final_v2.xlsx]Feuille de calcul'!$T88)"]
["Éducation de peuplement","Taille Phytosanitaire",null,null,"Taux variable","Variable 3","d4",5.576034852531684E-2,5.5800000000000002E-2,"[Fichier calcul grille_VTSNC_ 2017-2018 - Final_v2.xlsx]Feuille de calcul'!$T89)"]
["Éducation de peuplement","Taille Phytosanitaire",null,null,"Taux variable","Variable 4","d4",0.47261392177506428,0.47260000000000002,"[Fichier calcul grille_VTSNC_ 2017-2018 - Final_v2.xlsx]Feuille de calcul'!$T90)"]
["Éducation de peuplement","Taille Phytosanitaire",null,null,"Taux variable","Variable 5","d4",0.10050353141458314,0.1,"[Fichier calcul grille_VTSNC_ 2017-2018 - Final_v2.xlsx]Feuille de calcul'!$T91)"]
["Éducation de peuplement","Taille Phytosanitaire",null,null,"Taux variable","Variable 6","d4",0.44664488849008815,0.4466,"[Fichier calcul grille_VTSNC_ 2017-2018 - Final_v2.xlsx]Feuille de calcul'!$T92)"]
["Éducation de peuplement","Taille Phytosanitaire",null,null,"Taux variable","Variable 7","d4",533.99527317591719,534,"[Fichier calcul grille_VTSNC_ 2017-2018 - Final_v2.xlsx]Feuille de calcul'!$T93)"]
["Travaux technique","Valeur de vérification technique","Inventaire après traitement","Traitement de préparation de site mécanisé","Taux variable","Constante","d5",36.936143223736011,37,"[Fichier calcul grille_VTSNC_ 2017-2018 - Final_v2.xlsx]Feuille de calcul'!$T96)"]
["Travaux technique","Valeur de vérification technique","Inventaire après traitement","Traitement de préparation de site mécanisé","Taux variable","Critère 1","d5",2.1544996207332296,2.15,"[Fichier calcul grille_VTSNC_ 2017-2018 - Final_v2.xlsx]Feuille de calcul'!$T97)"]
["Travaux technique","Valeur de vérification technique","Inventaire après traitement","Traitement de préparation de site manuelle","Taux fixe","Constante","d5",21.861435121543821,22,"[Fichier calcul grille_VTSNC_ 2017-2018 - Final_v2.xlsx]Feuille de calcul'!$T98)"]
["Travaux technique","Valeur de vérification technique","Inventaire après traitement","Traitement de préparation de site drainage sylvicole","Taux fixe","Constante","d5",40.738604118476736,41,"[Fichier calcul grille_VTSNC_ 2017-2018 - Final_v2.xlsx]Feuille de calcul'!$T99)"]
["Travaux technique","Valeur de vérification technique","Inventaire après traitement","Traitement de régénération artificielle","Taux variable","Constante","d5",35.275819281223818,35,"[Fichier calcul grille_VTSNC_ 2017-2018 - Final_v2.xlsx]Feuille de calcul'!$T100)"]
["Travaux technique","Valeur de vérification technique","Inventaire après traitement","Traitement de régénération artificielle","Taux variable","Variable 1",null,0.44105732732356173,0.44,"[Fichier calcul grille_VTSNC_ 2017-2018 - Final_v2.xlsx]Feuille de calcul'!$T101)"]
["Travaux technique","Valeur de vérification technique","Inventaire après traitement","Traitement d'éducation","Taux variable","Constante","d5",88.635284022407987,89,"[Fichier calcul grille_VTSNC_ 2017-2018 - Final_v2.xlsx]Feuille de calcul'!$T102)"]
["Travaux technique","Valeur de vérification technique","Inventaire après traitement","Traitement d'éducation","Taux variable","Variable 3","d5",6.6484544140288326,6.65,"[Fichier calcul grille_VTSNC_ 2017-2018 - Final_v2.xlsx]Feuille de calcul'!$T103)"]
["Travaux technique","Valeur de vérification technique","Inventaire après traitement","Traitement d'éducation","Taux variable","Variable 1","d5",3.3242272070144163,3.32,"[Fichier calcul grille_VTSNC_ 2017-2018 - Final_v2.xlsx]Feuille de calcul'!$T104)"]
["Travaux technique","Valeur de vérification technique","Inventaire après traitement","Traitement d'éducation","Taux variable","Variable 2","d5",0.66484544140288315,0.66,"[Fichier calcul grille_VTSNC_ 2017-2018 - Final_v2.xlsx]Feuille de calcul'!$T105)"]
["Travaux technique","Valeur de planification","Recherche de secteur d'intervention potentiel (terrain)","Traitement de préparation de site et régénération artificielle","Taux fixe",null,"d5",4.7673708142263838,5,"[Fichier calcul grille_VTSNC_ 2017-2018 - Final_v2.xlsx]Feuille de calcul'!$T106)"]
["Travaux technique","Valeur de planification","Recherche de secteur d'intervention potentiel (terrain)","Traitement d'éducation","Taux fixe",null,"d5",9.0398065694545018,9,"[Fichier calcul grille_VTSNC_ 2017-2018 - Final_v2.xlsx]Feuille de calcul'!$T107)"]
["Travaux technique","Valeur de planification","Recherche de secteur d'intervention trouvé (terrain)","Traitement de préparation de site et régénération artificielle","Taux fixe",null,"d5",11.103619892233782,11,"[Fichier calcul grille_VTSNC_ 2017-2018 - Final_v2.xlsx]Feuille de calcul'!$T108)"]
["Travaux technique","Valeur de planification","Recherche de secteur d'intervention trouvé (terrain)","Traitement d'éducation","Taux fixe",null,"d5",16.064888323810603,16,"[Fichier calcul grille_VTSNC_ 2017-2018 - Final_v2.xlsx]Feuille de calcul'!$T109)"]
["Travaux technique","Valeur de planification","Confection du plan de sondage",null,"Taux fixe",null,"d5",1.8652976113099984,2,"[Fichier calcul grille_VTSNC_ 2017-2018 - Final_v2.xlsx]Feuille de calcul'!$T110)"]
["Travaux technique","Valeur de planification","Inventaire avant traitement","Traitement d'éducation (dégagement, nettoiement et éclaircie précommerciale)","Taux variable",{"$f":"\"Taux ($/PE) = \"&I102&\" +  \"&I103&\" * (NCT) + \"&I104&\" * (NCP) + \"&I105&\" * (TE)\"","v":"Taux ($/PE) = 93 +  0,64 * (NCT) + 3,19 * (NCP) + 6,39 * (TE)"}]
["Travaux technique","Valeur de planification","Inventaire avant traitement","Traitement d'éducation (dégagement, nettoiement et éclaircie précommerciale)","Taux variable","Variable 1","d5",92.901915379763722,93,"[Fichier calcul grille_VTSNC_ 2017-2018 - Final_v2.xlsx]Feuille de calcul'!$T111)"]
["Travaux technique","Valeur de planification","Inventaire avant traitement","Traitement d'éducation (dégagement, nettoiement et éclaircie précommerciale)","Taux variable","Variable 2","d5",0.63517798864145636,0.64,"[Fichier calcul grille_VTSNC_ 2017-2018 - Final_v2.xlsx]Feuille de calcul'!$T112)"]
["Travaux technique","Valeur de planification","Inventaire avant traitement","Traitement d'éducation (dégagement, nettoiement et éclaircie précommerciale)","Taux variable","Variable 3","d5",3.1926051534346884,3.19,"[Fichier calcul grille_VTSNC_ 2017-2018 - Final_v2.xlsx]Feuille de calcul'!$T113)"]
["Travaux technique","Valeur de planification","Inventaire avant traitement","Traitement d'éducation (dégagement, nettoiement et éclaircie précommerciale)","Taux variable","Variable 4","d5",6.3852103068693769,6.39,"[Fichier calcul grille_VTSNC_ 2017-2018 - Final_v2.xlsx]Feuille de calcul'!$T114)"]
["Travaux technique","Valeur de planification","Inventaire avant traitement","Traitement de préparation de site (sauf drainage sylvicole) et régénération artificielle","Taux fixe",null,"d5",30.373523018630131,30,"[Fichier calcul grille_VTSNC_ 2017-2018 - Final_v2.xlsx]Feuille de calcul'!$T115)"]
["Travaux technique","Valeur de planification","Inventaire avant traitement","Traitement de préparation de site (drainage sylvicole - plan et devis)","Taux fixe",null,"d5",29.39993238169982,29,"[Fichier calcul grille_VTSNC_ 2017-2018 - Final_v2.xlsx]Feuille de calcul'!$T116)"]
["Travaux technique","Valeur de planification","Inventaire avant traitement","Traitement d'éducation (élagage et taille)","Taux fixe",null,"d5",42.466568995788634,42,"[Fichier calcul grille_VTSNC_ 2017-2018 - Final_v2.xlsx]Feuille de calcul'!$T117)"]
["Travaux technique","Valeur de planification","Délimitation de secteurs","Traitement de préparation de site et régénération artificielle","Taux fixe",null,"d5",27.519207510979637,28,"[Fichier calcul grille_VTSNC_ 2017-2018 - Final_v2.xlsx]Feuille de calcul'!$T118)"]
["Travaux technique","Valeur de planification","Délimitation de secteurs","Traitement d'éducation","Taux fixe",null,"d5",135.64897026706129,136,"[Fichier calcul grille_VTSNC_ 2017-2018 - Final_v2.xlsx]Feuille de calcul'!$T119)"]
["Éclaircie commerciale","Première éclaircie commerciale de plantation résineuse réservé aux entreprises d'aménagement forestier",null,null,"Taux variable",{"$f":"\"Taux ($/m3) = (\"&I113&\" * VREC exp \"&I112&\" ) + \"&I114","v":"Taux ($/m3) = (4,797 * VREC exp -0,682 ) + 8,611"},null,36.75,36.75]
["Éclaircie commerciale","Première éclaircie commerciale de plantation résineuse réservé aux entreprises d'aménagement forestier",null,null,null,null,"d5",-0.68200000000000005,-0.68200000000000005]
["Éclaircie commerciale","Première éclaircie commerciale de plantation résineuse réservé aux entreprises d'aménagement forestier",null,null,null,"Variable 1","d5",4.7969999999999997,4.7969999999999997]
["Éclaircie commerciale","Première éclaircie commerciale de plantation résineuse réservé aux entreprises d'aménagement forestier",null,null,null,"Variable 2","d5",8.6110000000000007,8.6110000000000007]
["Travaux technique","Valeur des activités liées au martelage pour les traitements commerciaux","Délimitation de secteurs",null,"Taux fixe",null,"d5",75.216557229124447,75,"[Fichier calcul grille_VTSNC_ 2017-2018 - Final_v2.xlsx]Feuille de calcul'!$T123)"]
["Travaux technique","Valeur des activités liées au martelage pour les traitements commerciaux","Martelage",null,"Taux variable","Taux moyen","d5",75.216557229124447,75,"[Fichier calcul grille_VTSNC_ 2017-2018 - Final_v2.xlsx]Feuille de calcul'!$T123)"]
["Travaux technique","Valeur des activités liées au martelage pour les traitements commerciaux","Martelage",null,"Taux variable","Constante","d5",143.01354573503332,143.01,"[Fichier calcul grille_VTSNC_ 2017-2018 - Final_v2.xlsx]Feuille de calcul'!$T124)"]
["Travaux technique","Valeur des activités liées au martelage pour les traitements commerciaux","Martelage",null,"Taux variable","Variable 1","d5",35.381492038235599,35.380000000000003,"[Fichier calcul grille_VTSNC_ 2017-2018 - Final_v2.xlsx]Feuille de calcul'!$T125)"]
["Travaux technique","Valeur des activités liées au martelage pour les traitements commerciaux","Martelage",null,"Taux variable","Variable 2","d5",4.0576790425071509,4.0599999999999996,"[Fichier calcul grille_VTSNC_ 2017-2018 - Final_v2.xlsx]Feuille de calcul'!$T126)"]
["Travaux technique","Valeur des activités liées au martelage pour les traitements commerciaux","Martelage en éclaircie commerciale en peuplement résineux (ou mixte à tendance résineuse)","Martelage négatif","Taux fixe",null,"d5",181.90085868471522,182,"[Fichier calcul grille_VTSNC_ 2017-2018 - Final_v2.xlsx]Feuille de calcul'!$T127)"]
["Travaux technique","Valeur des activités liées au martelage pour les traitements commerciaux","Martelage en éclaircie commerciale en peuplement résineux (ou mixte à tendance résineuse)","Martelage positif","Taux fixe",null,"d5",94.812862995635641,95,"[Fichier calcul grille_VTSNC_ 2017-2018 - Final_v2.xlsx]Feuille de calcul'!$T128)"]
["Travaux technique","Valeur des activités liées au martelage pour les traitements commerciaux","Inventaire après martelage",null,"Taux fixe",null,"d5",23.03350068422095,23,"[Fichier calcul grille_VTSNC_ 2017-2018 - Final_v2.xlsx]Feuille de calcul'!$T129)"]

{"sheet":"Traitements admissibles","index":9,"n_rows":212,"n_cols":11,"rows_kept":212,"cut":false,"hidden":true,"merged":[]}
["Famille","Traitement ","Variante","Modalité sylvicole","Phase","Code DICA","Code RATF","Description","Admissibilité","Unité","Type de taux"]
["Traitements de préparation de terrain","Déblaiement de la végétation et des résidus de coupes",null,"Partiel",null,"DEBL-PART","BPRPA","Déblaiement des résidus de coupe, bouteur avec pelle et râteau, partiel","O","ha","Fixe"]
["Traitements de préparation de terrain","Déblaiement de la végétation et des résidus de coupes",null,"Partiel",null,"DEBL-PART","AGRP","Déblaiement des résidus de coupe, abatteuse groupeuse, après feux, partiel","O","ha","Fixe"]
["Traitements de préparation de terrain","Déblaiement de la végétation et des résidus de coupes",null,"Partiel",null,"DEBL-PART","DRDVP","Déblaiement des résidus de coupe avec débusqueuse, partiel, Taux variable","O","ha","Formule"]
["Traitements de préparation de terrain","Déblaiement de la végétation et des résidus de coupes",null,"Partiel",null,"DEBL-PART","DREVP","Déblaiement des résidus de coupe avec excavatrice, partiel, Taux variable","O","ha","Formule"]
["Traitements de préparation de terrain","Déblaiement de la végétation et des résidus de coupes",null,"Partiel",null,"DEBL-PART","DRAVP","Déblaiement des résidus des coupes avec abatteuse, partiel, Taux variable","O","ha","Formule"]
["Traitements de préparation de terrain","Déblaiement de la végétation et des résidus de coupes",null,"En plein",null,"DEBL-PLEIN","BPR","Déblaiement des résidus de coupe avec bouteur pelle râteau, en plein","O","ha","Fixe"]
["Traitements de préparation de terrain","Déblaiement de la végétation et des résidus de coupes",null,"En plein",null,"DEBL-PLEIN","AGR","Déblaiement des résidus de coupe avec abatteuse groupeuse, après feux, en plein","O","ha","Fixe"]
["Traitements de préparation de terrain","Déblaiement de la végétation et des résidus de coupes",null,"En plein",null,"DEBL-PLEIN","DRDV","Déblaiement des résidus de coupe avec débusqueuse, en plein, Taux variable","O","ha","Formule"]
["Traitements de préparation de terrain","Déblaiement de la végétation et des résidus de coupes",null,"En plein",null,"DEBL-PLEIN","DREV","Déblaiement des résidus de coupe avec excavatrice, en plein, Taux variable","O","ha","Formule"]
["Traitements de préparation de terrain","Déblaiement de la végétation et des résidus de coupes",null,"En plein",null,"DEBL-PLEIN","DRAV","Déblaiement des résidus des coupes avec abatteuse, en plein, Taux variable","O","ha","Formule"]
["Traitements de préparation de terrain","Élimination des tiges résiduelles",null,null,null,"ETR","ETR","Élimination des tiges résiduelles","N","ha","Aucun"]
["Traitements de préparation de terrain","Débroussaillement de la végétation et des résidus de coupes",null,null,null,"DEBR","DEBR","Débroussaillement de la végétation et des résidus de coupes","N","ha","Aucun"]
["Traitements de préparation de terrain","Brûlage dirigé",null,null,null,"BRU","BRU","Brûlage dirigé","N","ha","Aucun"]
["Traitements de préparation de terrain","Scarifiage","Sillon","Partiel",null,"SCA_SILL-PART","TTSP","Scarifiage par sillon, Scarificateur à disque TTS passifs, partiel","O","ha","Fixe"]
["Traitements de préparation de terrain","Scarifiage","Sillon","Partiel",null,"SCA_SILL-PART","DOP","Scarifiage par sillon, Scarificateur à disques hydrauliques, Donaren, partiel","O","ha","Fixe"]
["Traitements de préparation de terrain","Scarifiage","Sillon","Partiel",null,"SCA_SILL-PART","EQSLYP","Scarifiage par sillon, Scarificateur à disques hydrauliques, Equisly, partiel","O","ha","Fixe"]
["Traitements de préparation de terrain","Scarifiage","Sillon","Partiel",null,"SCA_SILL-PART","DHP","Scarifiage par sillon, Scarificateur à disques hydrauliques, TTS hydraulique, partiel","O","ha","Fixe"]
["Traitements de préparation de terrain","Scarifiage","Sillon","Partiel",null,"SCA_SILL-PART","REQP","Scarifiage par sillon, Scarificateur à disques hydrauliques, Requin, partiel","O","ha","Fixe"]
["Traitements de préparation de terrain","Scarifiage","Sillon","Partiel",null,"SCA_SILL-PART","DHADP","Scarifiage par sillon, Scarificateur à disques hydrauliques, Bracke T-26 avec débardeur, partiel","O","ha","Fixe"]
["Traitements de préparation de terrain","Scarifiage","Sillon","Partiel",null,"SCA_SILL-PART","DHAPP","Scarifiage par sillon, Scarificateur à disques hydrauliques, Bracke T-26, avec porteur, partiel","O","ha","Fixe"]
["Traitements de préparation de terrain","Scarifiage","Sillon","Partiel",null,"SCA_SILL-PART","WADP","Scarifiage par sillon, Scarificateur à cônes hydrauliques, type Wadell, partiel","O","ha","Fixe"]
["Traitements de préparation de terrain","Scarifiage","Sillon","Partiel",null,"SCA_SILL-PART","ROUECAP","Scarifiage par sillon, Rouleau écraseur et scarificateur à disques passifs, partiel","O","ha","Fixe"]
["Traitements de préparation de terrain","Scarifiage","Sillon","En plein",null,"SCA_SILL-PLEIN","TTS","Scarifiage par sillon, Scarificateur à disque TTS passifs, en plein","O","ha","Fixe"]
["Traitements de préparation de terrain","Scarifiage","Sillon","En plein",null,"SCA_SILL-PLEIN","DO","Scarifiage par sillon, Scarificateur à disques hydrauliques, Donaren, en plein","O","ha","Fixe"]
["Traitements de préparation de terrain","Scarifiage","Sillon","En plein",null,"SCA_SILL-PLEIN","EQSLY","Scarifiage par sillon, Scarificateur à disques hydrauliques, Equisly, en plein","O","ha","Fixe"]
["Traitements de préparation de terrain","Scarifiage","Sillon","En plein",null,"SCA_SILL-PLEIN","DH","Scarifiage par sillon, Scarificateur à disques hydrauliques, TTS hydraulique, en plein","O","ha","Fixe"]
["Traitements de préparation de terrain","Scarifiage","Sillon","En plein",null,"SCA_SILL-PLEIN","REQ","Scarifiage par sillon, Scarificateur à disques hydrauliques, Requin, en plein","O","ha","Fixe"]
["Traitements de préparation de terrain","Scarifiage","Sillon","En plein",null,"SCA_SILL-PLEIN","DHAD","Scarifiage par sillon, Scarificateur à disques hydrauliques, Bracke T-26, avec débardeur, en plein","O","ha","Fixe"]
["Traitements de préparation de terrain","Scarifiage","Sillon","En plein",null,"SCA_SILL-PLEIN","DHAP","Scarifiage par sillon, Scarificateur à disques hydrauliques, Bracke T-26, avec porteur, en plein","O","ha","Fixe"]
["Traitements de préparation de terrain","Scarifiage","Sillon","En plein",null,"SCA_SILL-PLEIN","WAD","Scarifiage par sillon, Scarificateur à cônes hydrauliques, type Wadell, en plein","O","ha","Fixe"]
["Traitements de préparation de terrain","Scarifiage","Sillon","En plein",null,"SCA_SILL-PLEIN","ROUECA","Scarifiage par sillon, Rouleau écraseur et scarificateur à disques passifs, en plein","O","ha","Fixe"]
["Traitements de préparation de terrain","Scarifiage","Hersage / labour","Partiel",null,"SCA_HERS-PART","HERSEP","Herse forestière, partiel","O","ha","Fixe"]
["Traitements de préparation de terrain","Scarifiage","Hersage / labour","En plein",null,"SCA_HERS-PLEIN","HERSE","Herse forestière","O","ha","Fixe"]
["Traitements de préparation de terrain","Scarifiage","Inversion par placeau","Partiel",null,"SCA_INV-PART","SCAIPVP","Scarifiage inversion par placeau avec excavatrice, partiel, taux variable","O","ha","Formule"]
["Traitements de préparation de terrain","Scarifiage","Inversion par placeau","En plein",null,"SCA_INV-PLEIN","SCAIPV","Scarifiage inversion par placeau avec excavatrice, taux variable","O","ha","Formule"]
["Traitements de préparation de terrain","Scarifiage","Mixage par placeau","Partiel",null,"SCA_MIX-PART","TAUPIOFP","Scarifiage en mixage par placeau, taupe ou pioche forestière, partiel","O","ha","Fixe"]
["Traitements de préparation de terrain","Scarifiage","Mixage par placeau","En plein",null,"SCA_MIX-PLEIN","TAUPIOF","Taupe ou pioche forestière","O","ha","Fixe"]
["Traitements de préparation de terrain","Scarifiage","Décapage par placeau","Partiel",null,"SCA_DECAP-PART","SCAPVP","Scarifiage décapage par placeau, avec excavatrice, partiel, taux variable","O","ha","Formule"]
["Traitements de préparation de terrain","Scarifiage","Décapage par placeau","En plein",null,"SCA_DECAP-PLEIN","SCAPV","Scarifiage décapage par placeau, avec excavatrice, taux variable","O","ha","Formule"]
["Traitements de préparation de terrain","Scarifiage","Monticule","Partiel",null,"SCA_MONT-PART","BRM36DP","Scarifiage en monticule avec scarificateur, Bracke M-36a avec débardeur, partiel","O","ha","Fixe"]
["Traitements de préparation de terrain","Scarifiage","Monticule","Partiel",null,"SCA_MONT-PART","BRM36PP","Scarifiage en monticule avec scarificateur, Bracke M-36a avec porteur, partiel","O","ha","Fixe"]
["Traitements de préparation de terrain","Scarifiage","Monticule","Partiel",null,"SCA_MONT-PART","SCAMVP","Scarifiage en monticule avec excavatrice, taux variable, partiel","O","ha","Formule"]
["Traitements de préparation de terrain","Scarifiage","Monticule","En plein",null,"SCA_MONT-PLEIN","BRM36D","Scarifiage en monticule avec scarificateur, Bracke M-36a avec débardeur","O","ha","Fixe"]
["Traitements de préparation de terrain","Scarifiage","Monticule","En plein",null,"SCA_MONT-PLEIN","BRM36P","Scarifiage en monticule avec scarificateur, Bracke M-36a avec porteur","O","ha","Fixe"]
["Traitements de préparation de terrain","Scarifiage","Monticule","En plein",null,"SCA_MONT-PLEIN","SCAMV","Scarifiage en monticule avec excavatrice, taux variable","O","ha","Formule"]
["Traitements de préparation de terrain","Amendement","Fertilisation",null,null,"AMEND_FER","AMENDFER","Amendement, fertilisation","O","ha","Attente"]
["Traitements de préparation de terrain","Amendement","Chaulage",null,null,"AMEND_CHAUX","AMENDCHAU","Amendement, Chaulage","O","ha","Attente"]
["Traitements de préparation de terrain","Amendement","Amendement organique",null,null,"AMEND_ORG","AMENDORG","Amendement, organique","O","ha","Attente"]
["Traitements de préparation de terrain","Drainage","D'appoint",null,null,"DR_APP","DRAPPMD","Drainage d'appoint, milieu dénudé","O","km ou Mm³","Fixe"]
["Traitements de préparation de terrain","Drainage","D'appoint",null,null,"DR_APP","DRAPPMB","Drainage d'appoint, milieu boisé","O","km ou Mm³","Fixe"]
["Traitements de préparation de terrain","Drainage","Systématique",null,null,"DR_SYS","DRSYSMD","Drainage systématique, milieu dénudé","O","km ou Mm³","Fixe"]
["Traitements de préparation de terrain","Drainage","Systématique",null,null,"DR_SYS","DRSYSMB","Drainage systématique, milieu boisé","O","km ou Mm³","Fixe"]
["Traitements de la régénération","Plantation","Uniforme ","Mélange d'essences",null,"PL_U-MEL","P25","Plantation 113-25","O","Mplants","Formule"]
["Traitements de la régénération","Plantation","Uniforme ","Mélange d'essences",null,"PL_U-MEL","P50","Plantation 67-50","O","Mplants","Formule"]
["Traitements de la régénération","Plantation","Uniforme ","Mélange d'essences",null,"PL_U-MEL","P110","Plantation 45-110","O","Mplants","Formule"]
["Traitements de la régénération","Plantation","Uniforme ","Mélange d'essences",null,"PL_U-MEL","P200","Plantation 25-200","O","Mplants","Formule"]
["Traitements de la régénération","Plantation","Uniforme ","Mélange d'essences",null,"PL_U-MEL","PPFDBAC","Plantation PFD livré en bac","O","Mplants","Formule"]
["Traitements de la régénération","Plantation","Uniforme ","Mélange d'essences",null,"PL_U-MEL","PPFDR","Plantation PFD livré en récipient","O","Mplants","Formule"]
["Traitements de la régénération","Plantation","Uniforme ","Mélange d'essences",null,"PL_U-MEL","PPFDRN","Plantation PFD en racines nues","O","Mplants","Formule"]
["Traitements de la régénération","Plantation","Uniforme ","Mélange d'essences",null,"PL_U-MEL","PLGE","Plantation uniforme et regarni manuel sauf PEH","N","Mplants","Formule"]
["Traitements de la régénération","Plantation","Uniforme ","Mélange d'essences",null,"PL_U-MEL","SCAPL110P","Plantation mécanique 45-110,  Scarificateur planteur Bracke P-11a, 1500 plants et +","O","Mplants","Fixe"]
["Traitements de la régénération","Plantation","Uniforme ","Mélange d'essences",null,"PL_U-MEL","SCAPL200P","Plantation mécanique 25-200,  Scarificateur planteur Bracke P-11a, 1500 plants et +","O","Mplants","Fixe"]
["Traitements de la régénération","Plantation","Uniforme ","Monospécifique",null,"PL_U-MONO","P25","Plantation 113-25","O","Mplants","Formule"]
["Traitements de la régénération","Plantation","Uniforme ","Monospécifique",null,"PL_U-MONO","P50","Plantation 67-50","O","Mplants","Formule"]
["Traitements de la régénération","Plantation","Uniforme ","Monospécifique",null,"PL_U-MONO","P110","Plantation 45-110","O","Mplants","Formule"]
["Traitements de la régénération","Plantation","Uniforme ","Monospécifique",null,"PL_U-MONO","P200","Plantation 25-200","O","Mplants","Formule"]
["Traitements de la régénération","Plantation","Uniforme ","Monospécifique",null,"PL_U-MONO","PPFDBAC","Plantation PFD livré en bac","O","Mplants","Formule"]
["Traitements de la régénération","Plantation","Uniforme ","Monospécifique",null,"PL_U-MONO","PPFDR","Plantation PFD livré en récipient","O","Mplants","Formule"]
["Traitements de la régénération","Plantation","Uniforme ","Monospécifique",null,"PL_U-MONO","PPFDRN","Plantation PFD en racines nues","O","Mplants","Formule"]
["Traitements de la régénération","Plantation","Uniforme ","Monospécifique",null,"PL_U-MONO","PLGE","Plantation uniforme et regarni manuel sauf PEH","N","Mplants","Formule"]
["Traitements de la régénération","Plantation","Uniforme ","Monospécifique",null,"PL_U-MONO","PPHBO","Plantation uniforme de peuplier hybride","O","Mplants","Fixe"]
["Traitements de la régénération","Plantation","Uniforme ","Monospécifique",null,"PL_U-MONO","SCAPL110P","Plantation mécanique 45-110,  Scarificateur planteur Bracke P-11a, 1500 plants et +","O","Mplants","Fixe"]
["Traitements de la régénération","Plantation","Uniforme ","Monospécifique",null,"PL_U-MONO","SCAPL200P","Plantation mécanique 25-200,  Scarificateur planteur Bracke P-11a, 1500 plants et +","O","Mplants","Fixe"]
["Traitements de la régénération","Plantation","Regarni","Mélange d'essences",null,"PL_REG-MEL","RR25","Regarni 113-25","O","Mplants","Formule"]
["Traitements de la régénération","Plantation","Regarni","Mélange d'essences",null,"PL_REG-MEL","RR50","Regarni 67-50","O","Mplants","Formule"]
["Traitements de la régénération","Plantation","Regarni","Mélange d'essences",null,"PL_REG-MEL","RR110","Regarni 45-110","O","Mplants","Formule"]
["Traitements de la régénération","Plantation","Regarni","Mélange d'essences",null,"PL_REG-MEL","RR200","Regarni 25-200","O","Mplants","Formule"]
["Traitements de la régénération","Plantation","Regarni","Mélange d'essences",null,"PL_REG-MEL","RPFDBAC","Regarni PFD livré en bac","O","Mplants","Formule"]
["Traitements de la régénération","Plantation","Regarni","Mélange d'essences",null,"PL_REG-MEL","RPFDR","Regarni PFD livré en récipient","O","Mplants","Formule"]
["Traitements de la régénération","Plantation","Regarni","Mélange d'essences",null,"PL_REG-MEL","RPFDRN","Regarni PFD en racines nues","O","Mplants","Formule"]
["Traitements de la régénération","Plantation","Regarni","Mélange d'essences",null,"PL_REG-MEL","PLGE","Plantation uniforme et regarni manuel sauf PEH","N","Mplants","Formule"]
["Traitements de la régénération","Plantation","Regarni","Mélange d'essences",null,"PL_REG-MEL","SCAPL110R","Regarni mécanique 45-110,  Scarificateur planteur Bracke P-11a, 1499 plants et -","O","Mplants","Fixe"]
["Traitements de la régénération","Plantation","Regarni","Mélange d'essences",null,"PL_REG-MEL","SCAPL200R","Regarni mécanique 25-200,  Scarificateur planteur Bracke P-11a, 1499 plants et -","O","Mplants","Fixe"]
["Traitements de la régénération","Plantation","Regarni","Monospécifique",null,"PL_REG-MONO","RR25","Regarni 113-25","O","Mplants","Formule"]
["Traitements de la régénération","Plantation","Regarni","Monospécifique",null,"PL_REG-MONO","RR50","Regarni 67-50","O","Mplants","Formule"]
["Traitements de la régénération","Plantation","Regarni","Monospécifique",null,"PL_REG-MONO","RR110","Regarni 45-110","O","Mplants","Formule"]
["Traitements de la régénération","Plantation","Regarni","Monospécifique",null,"PL_REG-MONO","RR200","Regarni 25-200","O","Mplants","Formule"]
["Traitements de la régénération","Plantation","Regarni","Monospécifique",null,"PL_REG-MONO","RPFDBAC","Regarni PFD livré en bac","O","Mplants","Formule"]
["Traitements de la régénération","Plantation","Regarni","Monospécifique",null,"PL_REG-MONO","RPFDR","Regarni PFD livré en récipient","O","Mplants","Formule"]
["Traitements de la régénération","Plantation","Regarni","Monospécifique",null,"PL_REG-MONO","RPFDRN","Regarni PFD en racines nues","O","Mplants","Formule"]
["Traitements de la régénération","Plantation","Regarni","Monospécifique",null,"PL_REG-MONO","PLGE","Plantation uniforme et regarni manuel sauf PEH","N","Mplants","Formule"]
["Traitements de la régénération","Plantation","Regarni","Monospécifique",null,"PL_REG-MONO","SCAPL110R","Regarni mécanique 45-110,  Scarificateur planteur Bracke P-11a, 1499 plants et -","O","Mplants","Fixe"]
["Traitements de la régénération","Plantation","Regarni","Monospécifique",null,"PL_REG-MONO","SCAPL200R","Regarni mécanique 25-200,  Scarificateur planteur Bracke P-11a, 1499 plants et -","O","Mplants","Fixe"]
["Traitements de la régénération","Plantation","Enrichissement","Mélange d'essences",null,"PL_ENR-MEL","ENR","Enrichissement et regarni de feuillus et de pins","O","Mplants","Fixe"]
["Traitements de la régénération","Plantation","Enrichissement","Monospécifique",null,"PL_ENR-MONO","ENR","Enrichissement et regarni de feuillus et de pins","O","Mplants","Fixe"]
["Traitements de la régénération","Plantation","Système agroforestier","Mélange d'essences",null,"PL_AGRO-MEL","P25","Plantation 113-25","O","Mplants","Formule"]
["Traitements de la régénération","Plantation","Système agroforestier","Mélange d'essences",null,"PL_AGRO-MEL","P50","Plantation 67-50","O","Mplants","Formule"]
["Traitements de la régénération","Plantation","Système agroforestier","Mélange d'essences",null,"PL_AGRO-MEL","P110","Plantation 45-110","O","Mplants","Formule"]
["Traitements de la régénération","Plantation","Système agroforestier","Mélange d'essences",null,"PL_AGRO-MEL","P200","Plantation 25-200","O","Mplants","Formule"]
["Traitements de la régénération","Plantation","Système agroforestier","Mélange d'essences",null,"PL_AGRO-MEL","PPFDBAC","Plantation PFD livré en bac","O","Mplants","Formule"]
["Traitements de la régénération","Plantation","Système agroforestier","Mélange d'essences",null,"PL_AGRO-MEL","PPFDR","Plantation PFD livré en récipient","O","Mplants","Formule"]
["Traitements de la régénération","Plantation","Système agroforestier","Mélange d'essences",null,"PL_AGRO-MEL","PPFDRN","Plantation PFD en racines nues","O","Mplants","Formule"]
["Traitements de la régénération","Plantation","Système agroforestier","Mélange d'essences",null,"PL_AGRO-MEL","PLGE","Plantation uniforme et regarni manuel sauf PEH","N","Mplants","Formule"]
["Traitements de la régénération","Plantation","Système agroforestier","Mélange d'essences",null,"PL_AGRO-MEL","SCAPL110P","Plantation mécanique 45-110,  Scarificateur planteur Bracke P-11a, 1500 plants et +","O","Mplants","Fixe"]
["Traitements de la régénération","Plantation","Système agroforestier","Mélange d'essences",null,"PL_AGRO-MEL","SCAPL200P","Plantation mécanique 25-200,  Scarificateur planteur Bracke P-11a, 1500 plants et +","O","Mplants","Fixe"]
["Traitements de la régénération","Plantation","Système agroforestier","Monospécifique",null,"PL_AGRO-MONO","P25","Plantation 113-25","O","Mplants","Formule"]
["Traitements de la régénération","Plantation","Système agroforestier","Monospécifique",null,"PL_AGRO-MONO","P50","Plantation 67-50","O","Mplants","Formule"]
["Traitements de la régénération","Plantation","Système agroforestier","Monospécifique",null,"PL_AGRO-MONO","P110","Plantation 45-110","O","Mplants","Formule"]
["Traitements de la régénération","Plantation","Système agroforestier","Monospécifique",null,"PL_AGRO-MONO","P200","Plantation 25-200","O","Mplants","Formule"]
["Traitements de la régénération","Plantation","Système agroforestier","Monospécifique",null,"PL_AGRO-MONO","PPFDBAC","Plantation PFD livré en bac","O","Mplants","Formule"]
["Traitements de la régénération","Plantation","Système agroforestier","Monospécifique",null,"PL_AGRO-MONO","PPFDR","Plantation PFD livré en récipient","O","Mplants","Formule"]
["Traitements de la régénération","Plantation","Système agroforestier","Monospécifique",null,"PL_AGRO-MONO","PPFDRN","Plantation PFD en racines nues","O","Mplants","Formule"]
["Traitements de la régénération","Plantation","Système agroforestier","Monospécifique",null,"PL_AGRO-MONO","PLGE","Plantation uniforme et regarni manuel sauf PEH","N","Mplants","Formule"]
["Traitements de la régénération","Plantation","Système agroforestier","Monospécifique",null,"PL_AGRO-MONO","PPHBO","Plantation uniforme de peuplier hybride","O","Mplants","Fixe"]
["Traitements de la régénération","Plantation","Système agroforestier","Monospécifique",null,"PL_AGRO-MONO","SCAPL110P","Plantation mécanique 45-110,  Scarificateur planteur Bracke P-11a, 1500 plants et +","O","Mplants","Fixe"]
["Traitements de la régénération","Plantation","Système agroforestier","Monospécifique",null,"PL_AGRO-MONO","SCAPL200P","Plantation mécanique 25-200,  Scarificateur planteur Bracke P-11a, 1500 plants et +","O","Mplants","Fixe"]
["Traitements de la régénération","Ensemencement ","Aérien",null,null,"ENS_AE","ENSA","Ensemencement aérien","O","Mplants","Fixe"]
["Traitements de la régénération","Ensemencement ","Terrestre","Manuel",null,"ENS_TER-MANU","ENSM","Ensemencement terrestre manuel","O","Mplants","Fixe"]
["Traitements de la régénération","Ensemencement ","Terrestre","Mécanisé simultané récolte",null,"ENS_TER-MEC","ENSTMSR","Ensemencement terrestre mécanisé simultanément récolte","O","Mplants","Fixe"]
["Traitements de la régénération","Ensemencement ","Terrestre","Mécanisé simultané prép. terr.",null,"ENS_TER-MEC","ENSMSPT","Ensemencement terrestre mécanisé simultanément préparation de terrain","O","Mplants","Fixe"]
["Traitements de la régénération","Ensemencement ","Terrestre","Mécanisé après prép. terr.",null,"ENS_TER-MEC","ENSAPPT","Ensemencement terrestre mécanisé après préparation de terrain","O","Mplants","Fixe"]
["Traitements d'éducation","Dégagement","Coupe mécanique","Manuelle (machette,hache, …)",null,"DEG_MEC","DMAR","Dégagement manuelle","O","ha","Attente"]
["Traitements d'éducation","Dégagement","Coupe mécanique","Motorisé (avec débrousailleuse)",null,"DEG_MEC","DMRV1M","Dégagement mécanique de la régénération, dénombrement à 1 m, taux variable","O","ha","Formule"]
["Traitements d'éducation","Dégagement","Coupe mécanique","Mécanisée (Outils installés sur débardeur)",null,"DEG_MEC","DME","Dégagement mécanisé, outil installé sur un débardeur","O","ha","Attente"]
["Traitements d'éducation","Dégagement","Annélation",null,null,"DEG_ANN","DANNE","Dégagement annélation","O","ha","Attente"]
["Traitements d'éducation","Dégagement","Phytocides chimiques",null,null,"DEG_PHYC","DEGPHYC","Dégagement, phytocides chimiques","N","ha","Aucun"]
["Traitements d'éducation","Dégagement","Phytocides biologiques",null,null,"DEG_PHYB","DEGPHYB","Dégagement, phytocides biologiques","N","ha","Aucun"]
["Traitements d'éducation","Dégagement","Chaleur (vapeur d'eau)",null,null,null,null,"Pas d'information DICA"]
["Traitements d'éducation","Dégagement","Broutage",null,null,null,null,"Pas d'information DICA"]
["Traitements d'éducation","Nettoiement","Coupe mécanique","Manuelle",null,"NET_MEC","NETTOIMAV","Nettoiement manuelle","O","ha","Attente"]
["Traitements d'éducation","Nettoiement","Coupe mécanique","Manuelle",null,"NET_MEC","NETSG85","Entretien de la strate gaulis, secteur d'intervention avec un choix de tige intra spécifique (par essence) et avec un espacement ou secteur d'intervention avec choix de tige résineuse sans espacement, CP1=0.85","O","ha","Formule"]
["Traitements d'éducation","Nettoiement","Coupe mécanique","Manuelle",null,"NET_MEC","NETSG","Entretien de la strate gaulis, secteur d'intervention sans choix de tige, soit inter spécifique (par groupe d'essence, résineux/feuillus) et sans espacement","O","ha","Formule"]
["Traitements d'éducation","Nettoiement","Coupe mécanique","Mécanisée",null,"NET_MEC","NETTOIMEV","Nettoiement mécanisé","O","ha","Attente"]
["Traitements d'éducation","Nettoiement","Annélation",null,null,"NET_ANN","NETTOIANNE","Nettoiement, annélation","O","ha","Attente"]
["Traitements d'éducation","Nettoiement","Phytocides chimiques",null,null,"NET_PHYC","NETPHYC","Nettoiement, phytocides chimiques","N","ha","Aucun"]
["Traitements d'éducation","Nettoiement","Phytocides biologiques",null,null,"NET_PHYB","NETPHYB","Nettoiement, phytocides biologiques","N","ha","Aucun"]
["Traitements d'éducation","Éclaircie précommerciale (EPC)","Systématique",null,null,"EPC_SYS","EPCSYSSG","Entretien de la strate gaulis, secteur d'intervention avec un choix de tige intra spécifique (par essence) et avec un espacement ou secteur d'intervention avec choix de tige résineuse sans espacement, composition visée peuplier ou CP1=1","O","ha","Formule"]
["Traitements d'éducation","Éclaircie précommerciale (EPC)","Systématique",null,null,"EPC_PUITS","EPCPUIT13V","EPC par puit de lumière, comprend la taille de formation (prescription sylvicole 2013 et +), Taux variable","O","ha","Formule"]
["Traitements d'éducation","Dépressage",null,null,null,"DEP","DEP","Dépressage","O","ha","Attente"]
["Traitements d'éducation","Éclaircie commerciale (EC)","Systématique",null,null,"EC_SYS","ECSYS","Éclaircie commerciale, patron d'intervention systématique","N","ha","Aucun"]
["Traitements d'éducation","Éclaircie commerciale (EC)","Systématique",null,null,"EC_SYS","ECSYPR","Éclaircie commerciale, patron d'intervention systématique, première éclaircie commerciale de plantation résineuse réservée aux entreprises d'aménagement forestier, taux variable","O","$/m3","Formule"]
["Traitements d'éducation","Éclaircie commerciale (EC)","Sélective","Par le bas",null,"EC_SEL-BAS","ECSELBASPR","Éclaircie commerciale sélective par le bas, première éclaircie commerciale de plantation résineuse réservée aux entreprises d'aménagement forestier, taux variable","O","$/m3","Formule"]
["Traitements d'éducation","Éclaircie commerciale (EC)","Sélective","Par le bas",null,"EC_SEL-BAS","ECSELBASSF","Éclaircie commerciale sélective par le bas, peuplement SEPM et mixte à tendance résineuse et feuillus intolérants, taux variable","O","ha","Formule"]
["Traitements d'éducation","Éclaircie commerciale (EC)","Sélective","Par le bas",null,"EC_SEL-BAS","ECSELBASFM","Éclaircie commerciale sélective par le bas, peuplement feuillus tolérants, autres résineux et mixte feuillus, taux variable","O","ha","Formule"]
["Traitements d'éducation","Éclaircie commerciale (EC)","Sélective","Par le haut",null,"EC_SEL-HAUT","ECSELHAUPR","Éclaircie commerciale sélective par le haut, première éclaircie commerciale de plantation résineuse réservée aux entreprises d'aménagement forestier, taux variable","O","$/m3","Formule"]
["Traitements d'éducation","Éclaircie commerciale (EC)","Sélective","Par le haut",null,"EC_SEL-HAUT","ECSELHAUSF","Éclaircie commerciale sélective par le haut, peuplement SEPM et mixte à tendance résineuse et feuillus intolérants, taux variable","O","ha","Formule"]
["Traitements d'éducation","Éclaircie commerciale (EC)","Sélective","Par le haut",null,"EC_SEL-HAUT","ECSELHAUFM","Éclaircie commerciale sélective par le haut, peuplement feuillus tolérants, autres résineux et mixte feuillus, taux variable","O","ha","Formule"]
["Traitements d'éducation","Éclaircie commerciale (EC)","Sélective","Neutre",null,"EC_SEL-NEUTRE","ECSELNEUPR","Éclaircie commerciale sélective neutre, première éclaircie commerciale de plantation résineuse réservée aux entreprises d'aménagement forestier, taux variable","O","$/m3","Formule"]
["Traitements d'éducation","Éclaircie commerciale (EC)","Sélective","Neutre",null,"EC_SEL-NEUTRE","ECSELNEUSF","Éclaircie commerciale sélective neutre, peuplement SEPM et mixte à tendance résineuse et feuillus intolérants, taux variable","O","ha","Formule"]
["Traitements d'éducation","Éclaircie commerciale (EC)","Sélective","Neutre",null,"EC_SEL-NEUTRE","ECSELNEUFM","Éclaircie commerciale sélective neutre, peuplement feuillus tolérants, autres résineux et mixte feuillus, taux variable","O","ha","Formule"]
["Traitements d'éducation","Éclaircie commerciale (EC)","Mixte","Par le bas",null,"EC_MIXTE-BAS","ECMIXBASPR","Éclaircie commerciale mixte par le bas, première éclaircie commerciale de plantation résineuse réservée aux entreprises d'aménagement forestier, taux variable","O","$/m3","Formule"]
["Traitements d'éducation","Éclaircie commerciale (EC)","Mixte","Par le bas",null,"EC_MIXTE-BAS","ECMIXBASSF","Éclaircie commerciale mixte par le bas, peuplement SEPM, feuillus intolérants  et mixte à tendance résineuse, taux variable","O","ha","Formule"]
["Traitements d'éducation","Éclaircie commerciale (EC)","Mixte","Par le bas",null,"EC_MIXTE-BAS","ECMIXBASFM","Éclaircie commerciale mixte par le bas, peuplement feuillus tolérants, autres résineux et mixte feuillus, taux variable","O","ha","Formule"]
["Traitements d'éducation","Éclaircie commerciale (EC)","Mixte","Par le haut",null,"EC_MIXTE-HAUT","ECMIXHAUPR","Éclaircie commerciale mixte par le haut, première éclaircie commerciale de plantation résineuse réservée aux entreprises d'aménagement forestier, taux variable","O","$/m3","Formule"]
["Traitements d'éducation","Éclaircie commerciale (EC)","Mixte","Par le haut",null,"EC_MIXTE-HAUT","ECMIXHAUSF","Éclaircie commerciale mixte par le haut, peuplement SEPM, feuillus intolérants  et mixte à tendance résineuse, taux variable","O","ha","Formule"]
["Traitements d'éducation","Éclaircie commerciale (EC)","Mixte","Par le haut",null,"EC_MIXTE-HAUT","ECMIXHAUFM","Éclaircie commerciale mixte par le haut, peuplement feuillus tolérants, autres résineux et mixte feuillus, taux variable","O","ha","Formule"]
["Traitements d'éducation","Éclaircie commerciale (EC)","Mixte","Neutre",null,"EC_MIXTE-NEUTRE","ECMIXNEUPR","Éclaircie commerciale mixte neutre, première éclaircie commerciale de plantation résineuse réservée aux entreprises d'aménagement forestier, taux variable","O","$/m3","Formule"]
["Traitements d'éducation","Éclaircie commerciale (EC)","Mixte","Neutre",null,"EC_MIXTE-NEUTRE","ECMIXNEUSF","Éclaircie commerciale mixte neutre, peuplement SEPM, feuillus intolérants  et mixte à tendance résineuse, taux variable","O","ha","Formule"]
["Traitements d'éducation","Éclaircie commerciale (EC)","Mixte","Neutre",null,"EC_MIXTE-NEUTRE","ECMIXNEUFM","Éclaircie commerciale patron d'intervention mixte neutre, peuplement feuillus tolérants, autres résineux et mixte feuillus, taux variable","O","ha","Formule"]
["Traitements d'éducation","Élagage",null,null,null,"ELAG","ELAGV","Élagage pour fins de qualité, taux variable","O","ha","Formule"]
["Traitements d'éducation","Taille de formation (Inclut dans l'EPC par puits de lumière)","Classique",null,null,"TAILFOR_CLASS","TAILFC","Voir EPC puit de lumière","N","ha","Aucun"]
["Traitements d'éducation","Taille de formation (Inclut dans l'EPC par puits de lumière)","Systématique",null,null,"TAILFOR_SYST","TAILFS","Voir EPC puit de lumière","N","ha","Aucun"]
["Traitements d'éducation","Coupe d'assainissement",null,null,null,"CAS","CAS","Coupe d'assainissement","N","ha","Aucun"]
["Traitements d'éducation","Taille phytosanitaire",null,null,null,"TAILPHY","TAILV","Taille phytosanitaire, taux variable","O","ha","Formule"]
["Coupes de jardinage","Éclaircie jardinatoire (EJ)","Par pieds d'arbre ",null,"Initiale","EJ_P-INI","EJPINI","Éclaircie jardinatoire par pied d'arbre initiale, Martelage","O","ha","Formule"]
["Coupes de jardinage","Éclaircie jardinatoire (EJ)","Par pieds d'arbre ",null,"Classique ou finale","EJ_P-CLAS","EJPCLAS","Éclaircie jardinatoire par pied d'arbre classique ou finale, Martelage","O","ha","Formule"]
["Coupes de jardinage","Éclaircie jardinatoire (EJ)","Par pieds d'arbre et groupes d'arbres",null,"Initiale","EJ_PG-INI","EJPGINI","Éclaircie jardinatoire par pied d'arbre et groupes d'arbres initiale, Martelage","O","ha","Formule"]
["Coupes de jardinage","Éclaircie jardinatoire (EJ)","Par pieds d'arbre et groupes d'arbres",null,"Classique ou finale","EJ_PG-CLAS","EJPGCLAS","Éclaircie jardinatoire par pied d'arbre et groupes d'arbres, classique ou finale, Martelage","O","ha","Formule"]
["Coupes de jardinage","Coupe de jardinage par pieds d'arbre (CJP)",null,null,"Maintien d'une haute qualité","CJP-HQ","CJPHQ","Coupe de jardinage par pieds d'arbre, maintien d'une haute qualité, Martelage","O","ha","Formule"]
["Coupes de jardinage","Coupe de jardinage par pieds d'arbre (CJP)",null,null,"Maintien d'une qualité modérée","CJP-QM","CJPQM","Coupe de jardinage par pieds d'arbre, maintien d'une qualité modérée, Martelage","O","ha","Formule"]
["Coupes de jardinage","Coupe de jardinage par pieds d'arbre (CJP)",null,null,"Amélioration de la qualité","CJP-AM","CJPAM","Coupe de jardinage par pieds d'arbre, amélioraton de la qualité, Martelage","O","ha","Formule"]
["Coupes de jardinage","Coupe de jardinage par pieds d'arbre et groupes d'arbres (CJPG)",null,null,"Maintien d'une haute qualité","CJPG-HQ","CJPGHQ","Coupe de jardinage par pieds d'arbre et groupes d'arbres, maintien d'une haute qualité, Martelage","O","ha","Formule"]
["Coupes de jardinage","Coupe de jardinage par pieds d'arbre et groupes d'arbres (CJPG)",null,null,"Maintien d'une qualité modérée","CJPG-QM","CJPGQM","Coupe de jardinage par pieds d'arbre et groupes d'arbres, maintien d'une qualité modérée, Martelage","O","ha","Formule"]
["Coupes de jardinage","Coupe de jardinage par pieds d'arbre et groupes d'arbres (CJPG)",null,null,"Amélioration de la qualité","CJPG-AM","CJPGAM","Coupe de jardinage par pieds d'arbre et groupes d'arbres, amélioration de la qualité, Martelage","O","ha","Formule"]
["Coupes de jardinage","Coupe de jardinage par trouées",null,"Sans éclaircie dans la matrice résiduelle",null,"CJT","CJT","Coupe de jardinage par trouées patron d'intervention sans éclaircie dans la matrice résiduelle","N","ha","Aucun"]
["Coupes de jardinage","Coupe de jardinage par trouées",null,"Avec éclaircie dans la matrice résiduelle",null,"CJT-EMR","CJTM","Coupe de jardinage par trouées avec éclaircie dans la matrice résiduelle, Martelage","O","ha","Formule"]
["Coupes de jardinage","Coupe de jardinage par trouées",null,"Avec éclaircie dans la matrice résiduelle",null,"CJT-EMR","CJTMO","Coupe de jardinage par trouées avec éclaircie dans la matrice résiduelle, Opérateur","O","ha","Formule"]
["Coupes de jardinage","Coupe de jardinage par bandes",null,"Sans éclaircie dans la matrice résiduelle",null,"CJB","CJB","Coupe de jardinage par bandes patron d'intervention sans éclaircie dans la matrice résiduelle","N","ha","Aucun"]
["Coupes de jardinage","Coupe de jardinage par bandes",null,"Avec éclaircie dans la matrice résiduelle",null,"CJB-EMR","CJBM","Coupe de jardinage par bandes avec éclaircie dans la matrice résiduelle, Martelage","O","ha","Formule"]
["Coupes de jardinage","Coupe de jardinage par bandes",null,"Avec éclaircie dans la matrice résiduelle",null,"CJB-EMR","CJBMO","Coupe de jardinage par bandes avec éclaircie dans la matrice résiduelle, Opérateur","O","ha","Formule"]
["Travaux de planification","Planification","Recherche de secteurs d'intervention potentiel (terrain)",null,null,null,"SIPPSRA","Recherche secteur d'intervention potentiel, traitement de préparation de terrain et régénération artificielle","O","ha","Fixe"]
["Travaux de planification","Planification","Recherche de secteurs d'intervention potentiel (terrain)",null,null,null,"SIPEP","Recherche secteur d'intervention potentiel, traitement d'éducation de peuplement ","O","ha","Fixe"]
["Travaux de planification","Planification","Secteur d'intervention proposé",null,null,null,"SIPRPSRA","Secteur d'intervention proposé, traitement de préparation de terrain et régénération artificielle","O","ha","Fixe"]
["Travaux de planification","Planification","Secteur d'intervention proposé",null,null,null,"SIPREP","Secteur d'intervention proposé, traitement d'éducation de peuplement ","O","ha","Fixe"]
["Travaux de planification","Planification","Secteur d'intervention proposé",null,null,null,"CPLS","Confection du plan de sondage","O","ha","Fixe"]
["Travaux de planification","Planification","Inventaire avant traitement",null,null,null,"INVAVPSRA","Inv.avant traitement, traitement de préparation de site (sauf drainage sylvicole) et régénération artificielle","O","pe","Fixe"]
["Travaux de planification","Planification","Inventaire avant traitement",null,null,null,"INVAVDSPD","inv. avant traitement, traitement de préparation de site (drainage sylvicole - plan et devis)","O","km ou Mm³","Fixe"]
["Travaux de planification","Planification","Inventaire avant traitement",null,null,null,"INVAVDNE","Inv. avant traitement, traitement d'éducation de peuplement (dégagement, nettoiement, EPC)","O","pe","Formule"]
["Travaux de planification","Planification","Inventaire avant traitement",null,null,null,"INVAVEP","Inv. avant traitement, traitement d'éducation de peuplement (élagage et taille)","O","pe","Fixe"]
["Travaux de planification","Planification","Délimitation des secteurs",null,null,null,"DSPSRA","Délimitation des secteurs, traitement de préparation de site et régénération artificielle","O","km","Fixe"]
["Travaux de planification","Planification","Délimitation des secteurs",null,null,null,"DSEP","Délimitation des secteurs, traitement d'éducation de peuplement","O","km","Fixe"]
["Travaux de planification","Planification","Valeur des activités liées au martelage pour les traitements commerciaux",null,null,null,"DSTC","Délimitation de secteurs","O","km","Fixe"]
["Travaux de planification","Planification","Martelage",null,null,null,"MARTGE","Martelage",0,"ha","Formule"]
["Travaux de planification","Planification","Martelage éclaircie commerciale en peuplement résineux (ou mixte à tendance résineux)",null,null,null,"MECON","Martelage négatif",0,"ha","Formule"]
["Travaux de planification","Planification","Martelage éclaircie commerciale en peuplement résineux (ou mixte à tendance résineux)",null,null,null,"MECOP","Martelage positif",0,"ha","Formule"]
["Travaux de planification","Planification","Martelage éclaircie commerciale en peuplement résineux (ou mixte à tendance résineux)",null,null,null,"INVAPM","Inventaire après martelage","O","ha","Fixe"]
["Travaux de planification","Valeur de la vérification technique","Suivi de la qualité",null,null,null,"SQPSM","Suivi de la qualité, traitement de préparation de site mécanisé","O","ha","Fixe"]
["Travaux de planification","Valeur de la vérification technique","Suivi de la qualité",null,null,null,"SQPSMA","Suivi de la qualité, traitement de préparation de site manuel","O","Mmicrosites","Fixe"]
["Travaux de planification","Valeur de la vérification technique","Suivi de la qualité",null,null,null,"SQDS","Suivi de la qualité, traitement de site drainage sylvicole","O","Km ou Mm³","Fixe"]
["Travaux de planification","Valeur de la vérification technique","Suivi de la qualité",null,null,null,"SQRA","Suivi de la qualité, traitement de régénération artificielle","O","Mplants","Fixe"]
["Travaux de planification","Valeur de la vérification technique","Suivi de la qualité",null,null,null,"SQEP","Suivi de la qualité, traitement d'éducation de peuplement","O","ha","Fixe"]
["Travaux de planification","Valeur de la vérification technique","Inventaire après traitement",null,null,null,"INVAPPSM","Inventaire après traitement, traitement de préparation de site mécanisé","O","pe","Formule"]
["Travaux de planification","Valeur de la vérification technique","Inventaire après traitement",null,null,null,"INVAPPSMA","Inventaire après traitement, traitement de préparation de site manuel","O","pe","Fixe"]
["Travaux de planification","Valeur de la vérification technique","Inventaire après traitement",null,null,null,"INVAPDS","Inventaire après traitement, traitement de site drainage sylvicole","O","Km ou Mm³","Fixe"]
["Travaux de planification","Valeur de la vérification technique","Inventaire après traitement",null,null,null,"INVAPRA","Inventaire après traitement, traitement de régénération artificielle","O","pe","Formule"]
["Travaux de planification","Valeur de la vérification technique","Inventaire après traitement",null,null,null,"INVAPEP","Inventaire après traitement, traitement d'éducation de peuplement","O","pe","Formule"]
["Travaux de planification","Valeur de la vérification technique","Rapport d'exécution",null,null,null,"REPSM","Rapport d'exécution, traitement de préparation de site mécanisé","O","ha","Fixe"]
["Travaux de planification","Valeur de la vérification technique","Rapport d'exécution",null,null,null,"REPSMA","Rapport d'exécution, traitement de préparation de site manuel","O","Mmicrosites","Fixe"]
["Travaux de planification","Valeur de la vérification technique","Rapport d'exécution",null,null,null,"REDS","Rapport d'exécution, traitement de site drainage sylvicole","O","Km ou Mm³","Fixe"]
["Travaux de planification","Valeur de la vérification technique","Rapport d'exécution",null,null,null,"RERA","Rapport d'exécution, traitement de régénération artificielle","O","Mplants","Fixe"]
["Travaux de planification","Valeur de la vérification technique","Rapport d'exécution",null,null,null,"REEP","Rapport d'exécution, traitement d'éducation de peuplement","O","ha","Fixe"]

{"sheet":"Menus","index":10,"n_rows":470,"n_cols":9,"rows_kept":470,"cut":false,"hidden":true,"merged":[[456,0,456,2],[412,0,412,2],[0,0,0,8],[148,0,148,2],[260,0,260,2],[363,0,363,2]]}
["Onglet «Préparation de terrain»"]
[]
["Traitement unique_INDIRECT_sans_underscore","Traitement unique_INDIRECT","Traitement","Équipement","Machinerie_INDIRECT_1","Machinerie_INDIRECT_2","Machinerie_INDIRECT_3","Taux","Unité"]
["Déblaiement des résidus de coupe","PRT_Déblaiement_des_résidus_de_coupe","Déblaiement_des_résidus_de_coupe","Abatteuse groupeuse après feux",null,null,null,{"$f":"'Calculs grille'!I16","v":883},"$/hectare"]
["Drainage sylvicole","PRT_Drainage_sylvicole","Déblaiement_des_résidus_de_coupe","Bouteur avec pelle râteau",null,null,null,{"$f":"'Calculs grille'!I15","v":747},"$/hectare"]
["Scarifiage par hersage ou labour","PRT_Scarifiage_par_hersage_ou_labour","Déblaiement_des_résidus_de_coupe","Excavatrice ou débusqueuse ou abatteuse","PRT_Excavatrice_ou_debusqueuse_ou_abatteuse_R","PRT_Excavatrice_ou_debusqueuse_ou_abatteuse_TP","PRT_Excavatrice_ou_debusqueuse_ou_abatteuse_VEH","Variable","$/hectare"]
["Scarifiage par mixage par placeau","PRT_Scarifiage_par_mixage_par_placeau","Scarifiage_par_monticule_avec_scarificateur","Bracke M-36a avec débardeur",null,null,null,{"$f":"'Calculs grille'!I8","v":317},"$/hectare"]
["Scarifiage par monticule avec scarificateur","PRT_Scarifiage_par_monticule_avec_scarificateur","Scarifiage_par_monticule_avec_scarificateur","Bracke M-36a avec porteur",null,null,null,{"$f":"'Calculs grille'!I9","v":380},"$/hectare"]
["Scarifiage par monticule ou inversion par placeau ou décapage par placeau","PRT_Scarifiage_par_monticule_ou_inversion_par_placeau_ou_décapage_par_placeau","Drainage_sylvicole","Milieu boisé",null,null,null,{"$f":"'Calculs grille'!I18","v":2543},"$/km ou Mm³"]
["Scarifiage par sillon avec scarificateur","PRT_Scarifiage_par_sillon_avec_scarificateur","Drainage_sylvicole","Milieu dénudé",null,null,null,{"$f":"'Calculs grille'!I17","v":2289},"$/km ou Mm³"]
["Inscrire une valeur","PRT_Inscrire_une_valeur","Scarifiage_par_monticule_ou_inversion_par_placeau_ou_décapage_par_placeau","Excavatrice","PRT_Excavatrice_R","PRT_Excavatrice_TP","PRT_Excavatrice_VEH","Variable","$/hectare"]
[null,null,"Scarifiage_par hersage_ou_labour","Herses forestières",null,null,null,{"$f":"'Calculs grille'!I10","v":404},"$/hectare"]
[null,null,"Scarifiage_par_mixage_par_placeau","Taupe ou pioche forestière",null,null,null,{"$f":"'Calculs grille'!I11","v":594},"$/Mmicrosites"]
[null,null,"Scarifiage_par_sillon_avec_scarificateur","Bracke T-26 avec débardeur, Types TTS hydrauliques, Donaren, Equisyl ou Requin",null,null,null,{"$f":"'Calculs grille'!I5","v":334},"$/hectare"]
[null,null,"Scarifiage_par_sillon_avec_scarificateur","Bracke T-26 avec porteur",null,null,null,{"$f":"'Calculs grille'!I6","v":380},"$/hectare"]
[null,null,"Scarifiage_par_sillon_avec_scarificateur","Rouleau écraseur et scarificateur à disques passifs",null,null,null,{"$f":"'Calculs grille'!I4","v":719},"$/hectare"]
[null,null,"Scarifiage_par_sillon_avec_scarificateur","Types TTS passifs",null,null,null,{"$f":"'Calculs grille'!I3","v":228},"$/hectare"]
[null,null,"Scarifiage_par_sillon_avec_scarificateur","Wadell",null,null,null,{"$f":"'Calculs grille'!I7","v":400},"$/hectare"]
[null,null,"Inscrire_une_valeur","Inscrire une valeur",null,null,null,0,"-"]
[]
["PA0"]
["Réduction selon la distance entre les passages ","Nb Microsite /ha désiré"]
[3.5,"2800 et + microsites par hectare"]
[4,"2200- 2799 microsites par hectare"]
[4.5,"2000- 2199 microsites par hectare"]
[5,"1600 - 1999 microsites par hectare"]
[]
["H1"]
["AVEC hébergement (inscrire un taux)",0]
["AVEC hébergement (taux maximum)",3.7499999999999999E-2]
["SANS hébergement",0]
[]
["H3"]
["AVEC hébergement (inscrire un taux)",0]
["AVEC hébergement (taux maximum)",9.0999999999999998E-2]
["SANS hébergement",0]
[]
["D200"]
["Distance de 0 à 199 kilomètres",0]
["Distance de 200 kilomètres et plus",5.8000000000000003E-2]
[]
["CEAF1 et ISO1"]
["CEAF",4.1999999999999997E-3]
["ISO",5.1000000000000004E-3]
["Pas de majoration",0]
[]
["Taux variable selon formule"]
["Constante",null,2.718]
["TP : Type de couvert","Débusqueuse : Types de couvert résineux-feuillu-mixte",0,"PRT_Debusqueuse_Type_de_peuplement_résineux_feuillus_mixtes_VEH"]
[null,"Excavatrice : Types de couvert feuillu ou mixte",1,"PRT_Excavatrice_Type_de_peuplement_feuillus_ou_mixtes_VEH"]
[null,"Excavatrice : Type de couvert résineux",0,"PRT_Excavatrice_Type_de_peuplement_résineux_VEH"]
["TR : Type de procédé de récolte","Peuplement brûlé: aucune récolte de bois",1,"PRT_Peuplement_brule"]
[null,"Peuplement brûlé: récolte de bois ou peuplement en régénération de moins de 7m",0,"PRT_Peuplement_brule"]
[null,"Peuplement vert: ébranchage et écimage à la souche",1,"PRT_Peuplement_vert"]
[null,"Peuplement vert: ébranchage et écimage en bordure de route",0,"PRT_Peuplement_vert"]
["PER : Type de perturbation","Peuplement brûlé",1]
[null,"Peuplement vert",0]
["Type d'engin forestier","Abatteuse lors de la récolte",3]
[null,"Excavatrice",2]
[null,"Débusqueuse",1]
[]
["Délimitation des secteur"]
[0]
[{"$f":"'Calculs grille'!I109","v":28}]
[]
["Vérification"]
["Taux - mécanisé",0]
[null,{"$f":"'Calculs grille'!I86","v":37}]
["Taux - manuel",0]
[null,{"$f":"'Calculs grille'!I88","v":22}]
["Taux - Drainage",0]
[null,{"$f":"'Calculs grille'!I89","v":41}]
[]
["Critères"]
["Oui"]
["Non"]
[]
["Codes_DICA"]
["DEBL-PART"]
["DEBL-PLEIN"]
["DEBR"]
["DR_APP"]
["DR_SYS"]
["SCA_DECAP- PART"]
["SCA_DECAP- PLEIN"]
["SCA_HERS- PART"]
["SCA_HERS- PLEIN"]
["SCA_INV-PART"]
["SCA_INV-PLEIN"]
["SCA_MIX-PART"]
["SCA_MIX-PLEIN"]
["SCA_MONT- PART"]
["SCA_MONT- PLEIN"]
["SCA_SILL- PART"]
["SCA_SILL-PLEIN"]
[]
["Codes_RATF"]
["AGR"]
["AGRP"]
["BPR"]
["BPRPA"]
["BRM36D"]
["BRM36DP"]
["BRM36P"]
["BRM36PP"]
["DEBR"]
["DH"]
["DHAD"]
["DHADP"]
["DHAP"]
["DHAPP"]
["DHP"]
["DO"]
["DOP"]
["DRAPPMB"]
["DRAPPMD"]
["DRAV"]
["DRAVP"]
["DRDV"]
["DRDVP"]
["DREV"]
["DREVP"]
["DRSYSMB"]
["DRSYSMD"]
["EQSLY"]
["EQSLYP"]
["HERSE"]
["HERSEP"]
["REQ"]
["REQP"]
["ROUECA"]
["ROUECAP"]
["SCAIPV"]
["SCAIPVP"]
["SCAMV"]
["SCAMVP"]
["SCAPV"]
["SCAPVP"]
["TAUPIOF"]
["TAUPIOFP"]
["TTS"]
["TTSP"]
["WAD"]
["WADP"]
[]
[]
[]
[]
["Onglet «Éducation de peuplement»"]
[]
["Traitement unique"]
["Dégagement mécanique"]
["Élagage pour fins de qualité"]
["EPC par puit de lumière ET Taille de formation avec martelage"]
["Gaulis I (interspécifique et sans espacement)"]
["Gaulis II (intraspécifique avec espacement OU résineux sans espacement)"]
["Taille phytosanitaire"]
["Inscrire une valeur"]
[]
["Dégagement"]
["Mode","Plantation ou regarni de plantation",0]
[null,"Régénération naturelle ou regarni de régénération naturelle",1]
[]
["Gaulis I"]
["CP","Peuplement naturel",1]
[null,"Plantation avec SRLC >= 20%",1]
[null,"Plantation avec SRLC < 20% et DI > 20 000",1.165]
[null,"SRLC <20% et DI =< 20 000",1]
[]
["Gaulis II"]
["TP","Mixte à tendance résineuse",1.1000000000000001]
[null,"Peuplier",0.8]
[null,"Résineux",1]
["CP","Peuplement naturel avec espacement",1]
[null,"Plantation avec espacement et un coefficient de distribution  >=75%",1]
[null,"Plantation avec espacement et un coefficient de distribution < 75%",0.88]
[null,"Plantation sans espacement et peuplement naturel sans espacement",0.88]
[]
["EPC Puit lumière"]
["TAIL","AVEC taille de formation",1]
[null,"SANS taille de formation",0]
[]
["EPC Puit lumière"]
["Martelage","AVEC Martelage",1]
[null,"SANS Martelage",0]
[]
["EPC Puit lumière"]
["EPC","AVEC EPC",1]
[null,"SANS EPC",0]
[]
["Élagage Qualité"]
["LONGELA","Élagage de 3,99 mètres et moins",0]
[null,"Élagage de 4,00 mètres et plus",1]
[]
["MP"]
["Martelage de 100 tiges/ha",{"$f":"'Calculs grille'!I74","v":116.39}]
["Martelage de 400 tiges/ha",{"$f":"'Calculs grille'!I75","v":174.23}]
["SANS martelage",0]
[]
["Délimitation des secteurs"]
[0]
[{"$f":"'Calculs grille'!I110","v":136}]
[]
["Taux vérification"]
[0]
[{"$f":"'Calculs grille'!I92","v":89}]
[]
["Vérification critères"]
["Oui"]
["Non"]
[]
["H2 ou TC"]
["AVEC hébergement (inscrire un taux)",0]
["AVEC hébergement (taux maximum)",0.126]
["AVEC transport collectif",4.9000000000000002E-2]
["SANS majoration",0]
[]
["H3"]
["AVEC hébergement (inscrire un taux)",0]
["AVEC hébergement (taux maximum)",9.0999999999999998E-2]
["SANS hébergement",0]
[]
["D200"]
["Distance de 0 à 199 kilomètres",0]
["Distance de 200 kilomètres et plus",5.8000000000000003E-2]
[]
["CEAF3 et ISO3"]
["CEAF",2.3E-3]
["ISO",3.8E-3]
["Pas de majoration",0]
[]
["Codes_DICA"]
["DEG_MEC"]
["DEP"]
["ELAG"]
["EPC_PUITS"]
["EPC_SYS"]
["NET_MEC"]
["TAILFOR_CLASS"]
["TAILFOR_SYST"]
["TAILPHY"]
[]
["Codes_RATF"]
["DEP"]
["DMAR"]
["DMRV1M"]
["ELAGV"]
["EPCPUIT13V"]
["EPCSYSSG"]
["NETSG"]
["NETSG85"]
["NETTOIMAV"]
["NETTOIMEV"]
["TAILFC"]
["TAILFS"]
["TAILV"]
[]
[]
[]
[]
["Onglet «Régénération artificielle»"]
[]
["Traitement unique","Taux","Unité"]
["Ensemencement terrestre manuel",{"$f":"'Calculs grille'!I35","v":194},"$/ha"]
["Plantation uniforme et regarni en plein manuel sauf PEH","Variable","$/Mplants"]
["Plantation uniforme et regarni en plein manuel sentier préparé sauf PEH","Variable","$/Mplants"]
["Plantation uniforme et regarni mécanique (Scarificateur-planteur Bracke P-11a)","Variable selon le gabarit des plants","$/Mplants"]
["Plantation uniforme PEH",{"$f":"'Calculs grille'!I33","v":662},"$/Mplants"]
["Regarni de sentier et enrichissement manuel sauf PEH","Variable","$/Mplants"]
["Inscrire une valeur",0,"-"]
[]
["Préparation de terrain"]
["AVEC préparation de terrain",1]
["SANS préparation de terrain",0]
[]
["Gabarit"]
["PFD livré en récipient",{"$f":"'Calculs grille'!I24","v":296}]
["Racine nue PFD",{"$f":"'Calculs grille'!I23","v":348}]
["Récipient 25-200",259]
["Récipient 45-110",147]
["Récipient 67-50",86]
["Récipient 113-25",81]
[]
["Traitements de plantation mécanique"]
["Récipient 45-110, densité inférieure ou égale à 1499 plants/ha",{"$f":"'Calculs grille'!I31","v":1366}]
["Récipient 45-110, densité supérieure ou égale à 1500 plants/ha",{"$f":"'Calculs grille'!I29","v":1252}]
["Récipient 25-200, densité inférieure ou égale à 1499 plants/ha",{"$f":"'Calculs grille'!I32","v":1392}]
["Récipient 25-200, densité supérieure ou égale à 1500 plants/ha",{"$f":"'Calculs grille'!I30","v":1279}]
[]
["H2 ou TC"]
["AVEC hébergement (inscrire un taux)",0]
["AVEC hébergement (taux maximum)",0.126]
["AVEC transport collectif",4.9000000000000002E-2]
["SANS majoration",0]
[]
["H3"]
["AVEC hébergement (inscrire un taux)",0]
["AVEC hébergement (taux maximum)",9.0999999999999998E-2]
["SANS hébergement",0]
[]
["D200"]
["Distance de 0 à 199 kilomètres",0]
["Distance de 200 kilomètres et plus",5.8000000000000003E-2]
[]
["CEAF2 et ISO2"]
["CEAF",1.1999999999999999E-3]
["ISO",1.5E-3]
["Pas de majoration",0]
[]
["Délimitation des secteur"]
[0]
[{"$f":"'Calculs grille'!I109","v":28}]
[]
["Taux vérification"]
[0]
[{"$f":"'Calculs grille'!I90","v":35}]
[]
["Vérification - Critères"]
["Oui"]
["Non"]
[]
["Vérification traçabilité des plants"]
["Oui",1.81]
["Non",0]
[]
["Codes DICA"]
["ENS_TER-MANU"]
["PL_AGRO-MEL"]
["PL_AGRO-MONO"]
["PL_ENR-MEL"]
["PL_ENR-MONO"]
["PL_REG-MEL"]
["PL_REG-MONO"]
["PL_U-MEL"]
["PL_U-MONO"]
[]
["Codes_RATF"]
["ENR"]
["ENSM"]
["P110"]
["P200"]
["P25"]
["P50"]
["PLGE"]
["PPFDBAC"]
["PPFDR"]
["PPFDRN"]
["PPHBO"]
["RPFDBAC"]
["RPFDR"]
["RPFDRN"]
["RR110"]
["RR200"]
["RR25"]
["RR50"]
["SCAPL110P"]
["SCAPL110R"]
["SCAPL200P"]
["SCAPL200R"]
[]
[]
[]
[]
["Onglet «Éclaircie commerciale EAF»"]
[]
["Traitement unique","Taux","Unité"]
["Éclaircie commerciale EAF","Variable","$/m³"]
["Inscrire une valeur",0,"-"]
[]
["H5"]
["AVEC hébergement",4.7E-2]
["SANS hébergement",0]
[]
["MAN"]
["Opérations MANUELLES",0.36]
["Opérations MÉCANISÉES",0]
[]
["RUB1"]
["Pas de rubannage des sentiers"]
[15]
[16]
[17]
[18]
[19]
[20]
[21]
[22]
[23]
[24]
[25]
[]
["Codes DICA"]
["EC_MIXTE-BAS"]
["EC_MIXTE-HAUT"]
["EC_MIXTE-NEUTRE"]
["EC_SEL-BAS"]
["EC_SEL-HAUT"]
["EC_SEL-NEUTRE"]
["EC_SYS"]
[]
["Codes_RATF"]
["ECMIXBASPR"]
["ECMIXHAUPR"]
["ECMIXNEUPR"]
["ECSELBASPR"]
["ECSELHAUPR"]
["ECSELNEUPR"]
["ECSYPR"]
[]
[]
[]
[]
["Onglet «Martelage»"]
[]
["Traitement unique","Taux","Unité"]
["Martelage","Variable","$/ha"]
["Martelage négatif - EC (résineux ou mixte résineux)",{"$f":"'Calculs grille'!I120","v":182},"$/ha"]
["Martelage positif - EC (résineux ou mixte résineux)",{"$f":"'Calculs grille'!I121","v":95},"$/ha"]
["Inscrire une valeur",0,"-"]
[]
["Type de coupe","Facteur"]
["CRS",0.64200000000000002]
["CPI",1]
["CPR",1]
["CJ",1]
["EC feuillus et pins",1]
[]
["H3"]
["AVEC hébergement (inscrire un taux)",0]
["AVEC hébergement (taux maximum)",9.0999999999999998E-2]
["SANS hébergement",0]
[]
["D200"]
["Distance de 0 à 199 kilomètres",0]
["Distance de 200 kilomètres et plus",5.8000000000000003E-2]
[]
["Délimitation des secteurs"]
[0]
[{"$f":"'Calculs grille'!I115","v":75}]
[]
["Taux vérification"]
[0]
[{"$f":"'Calculs grille'!I122","v":23}]
[]
["Codes_DICA"]
["N/A"]
[]
["Codes_RATF"]
["INVAPM"]
["MARTGE"]
["MECON"]
["MECOP"]
[]
[]
[]
[]
["Onglet «Travaux de planification»"]
[]
["Critères"]
["Oui"]
["Non"]
[]
["H3"]
["AVEC hébergement (inscrire un taux)",0]
["AVEC hébergement (taux maximum)",9.0999999999999998E-2]
["SANS hébergement",0]
[]
["D200"]
["Distance de 0 à 199 kilomètres",0]
["Distance de 200 kilomètres et plus",5.8000000000000003E-2]

{"sheet":"Formules","index":11,"n_rows":15,"n_cols":10,"rows_kept":15,"cut":false,"hidden":true,"merged":[]}
["Famille","Traitement","Équation_texte","Équation_reférencé_calculs_grille","Valeur_prescription_1","Valeur_prescription_2","Valeur_prescription_3","Valeur_prescription_4","Valeur_prescription_5","Total"]
["Éducation de peuplement","Dégagement mécanique","Taux ($ / ha) = 783 + (12,26 * RECFFE) + (0,0044 * DI) + (134,65 * MODE)",{"$f":"\"Taux ($ / ha) = \"&'Calculs grille'!I38&\" + (\"&'Calculs grille'!I39&\" * RECFFE) + (\"&'Calculs grille'!I40&\" * DI) + (\"&'Calculs grille'!I41&\" * MODE)\"","v":"Taux ($ / ha) = 783 + (12,26 * RECFFE) + (0,0044 * DI) + (134,65 * MODE)"},"RECFFE","DI","MODE",null,null,{"$f":"E2&\" - \"&F2&\" - \"&G2","v":"RECFFE - DI - MODE"}]
["Éducation de peuplement","Gaulis I (interspécifique et sans espacement)","Taux ($ / ha)  = (800,05 + (0,0103 * DI) - (195,54 * SRLC)) * CP",{"$f":"\"Taux ($ / ha)  = (\"&'Calculs grille'!I44&\" + (\"&'Calculs grille'!I45&\" * DI) - (\"&ABS('Calculs grille'!I46)&\" * SRLC)) * CP\"","v":"Taux ($ / ha)  = (800,05 + (0,0103 * DI) - (195,54 * SRLC)) * CP"},"DI","SRLC","CP",null,null,{"$f":"E3&\" - \"&F3&\" - \"&G3","v":"DI - SRLC - CP"}]
["Éducation de peuplement","Gaulis II (intraspécifique avec espacement OU résineux sans espacement)","Taux ($/ha) = (563,76 * ln (DI) - 4357,86) * TP * CP1",{"$f":"\"Taux ($/ha) = (\"&'Calculs grille'!I49&\" * ln (DI) - \"&'Calculs grille'!I50&\") * TP * CP1\"","v":"Taux ($/ha) = (563,76 * ln (DI) - 4357,86) * TP * CP1"},"DI","TP","CP",null,null,{"$f":"E4&\" - \"&F4&\" - \"&G4","v":"DI - TP - CP"}]
["Éducation de peuplement","EPC par puit de lumière ET Taille de formation avec martelage","Taux ($/ha) = 0,4439 * DENSTIGE * EXP (0,1452 * HTTIGE) + 37 * DENSTIGE / (0,1204 * DENSTIGE + 98,63) + 42,51 * TAIL + 774,21",{"$f":"\"Taux ($/ha) = \"&'Calculs grille'!I53&\" * DENSTIGE * EXP (\"&'Calculs grille'!I54&\" * HTTIGE) + \"&'Calculs grille'!I55&\" * DENSTIGE / (\"&'Calculs grille'!I56&\" * DENSTIGE + \"&'Calculs grille'!I57&\") + \"&'Calculs grille'!I58&\" * TAIL + \"&'Calculs grille'!I59","v":"Taux ($/ha) = 0,4439 * DENSTIGE * EXP (0,1452 * HTTIGE) + 37 * DENSTIGE / (0,1204 * DENSTIGE + 98,63) + 42,51 * TAIL + 774,22"},"DENSTIGE","HTTIGE","TAIL",null,null,{"$f":"E5&\" - \"&F5&\" - \"&G5","v":"DENSTIGE - HTTIGE - TAIL"}]
["Éducation de peuplement","Élagage pour fins de qualité","Taux ($/ha) = ((0,0238 * BRAN + 0,3469 + 0,5777 * LONGELA) + (-0,0577 * ln (DENSELA) + 0,4885)) * DENSELA) + MP + 552,58",{"$f":"\"Taux ($/ha) = ((\"&'Calculs grille'!I69&\" * BRAN + \"&'Calculs grille'!I70&\" + \"&'Calculs grille'!I71&\" * LONGELA) + (-\"&'Calculs grille'!I72&\" * ln (DENSELA) + \"&'Calculs grille'!I73&\")) * DENSELA) + MP + \"&'Calculs grille'!I76","v":"Taux ($/ha) = ((0,0238 * BRAN + 0,3469 + 0,5777 * LONGELA) + (-0,0577 * ln (DENSELA) + 0,4885)) * DENSELA) + MP + 552,58"},"BRAN","LONGDELA","DENSELA","MP",null,{"$f":"E6&\" - \"&F6&\" - \"&G6&\" - \"&H6","v":"BRAN - LONGDELA - DENSELA - MP"}]
["Éducation de peuplement","Taille phytosanitaire","Taux ($/ha) = ((0,0184 * BRAN + 0,0884 + (-0,0558 * ln (DENSELA) + 0,4726)) * DENSELA) + 0,1 * DENSCO + 0,4466 * DENSTF + 534",{"$f":"\"Taux ($/ha) = ((\"&'Calculs grille'!I79&\" * BRAN + \"&'Calculs grille'!I80&\" + (-\"&'Calculs grille'!I81&\" * ln (DENSELA) + \"&'Calculs grille'!I82&\")) * DENSELA) + \"&'Calculs grille'!I83&\" * DENSCO + \"&'Calculs grille'!I84&\" * DENSTF + \"&'Calculs grille'!I85","v":"Taux ($/ha) = ((0,0184 * BRAN + 0,0884 + (-0,0558 * ln (DENSELA) + 0,4726)) * DENSELA) + 0,1 * DENSCO + 0,4466 * DENSTF + 534"},"BRAN","DENSELA","DENSCO","DENSTF",null,{"$f":"E7&\" - \"&F7&\" - \"&G7&\" - \"&H7","v":"BRAN - DENSELA - DENSCO - DENSTF"}]
["Préparation de terrain","Excavatrice","Taux ($/ha) = ( 26872 * R) / e ( 1,683 * R - 0,299 * TP  - 0,313 * TR + 0,17 * PER + 2,014)  * VEH",{"$f":"\"Taux ($/ha) = ( \"&'Calculs grille'!I14&\" * R) / e ( 1,683 * R - 0,299 * TP  - 0,313 * TR + 0,17 * PER + 2,014)  * VEH\"","v":"Taux ($/ha) = ( 26872 * R) / e ( 1,683 * R - 0,299 * TP  - 0,313 * TR + 0,17 * PER + 2,014)  * VEH"},"R","TP","TR","PER","VEH",{"$f":"E8&\" - \"&F8&\" - \"&G8&\" - \"&H8&\" - \"&I8","v":"R - TP - TR - PER - VEH"}]
["Préparation de terrain","Excavatrice ou débusqueuse ou abatteuse","Taux ($/ha) = ( 26872 * R) / e ( 1,683 * R - 0,299 * TP  - 0,313 * TR + 0,17 * PER + 2,014)  * VEH",{"$f":"\"Taux ($/ha) = ( \"&'Calculs grille'!I14&\" * R) / e ( 1,683 * R - 0,299 * TP  - 0,313 * TR + 0,17 * PER + 2,014)  * VEH\"","v":"Taux ($/ha) = ( 26872 * R) / e ( 1,683 * R - 0,299 * TP  - 0,313 * TR + 0,17 * PER + 2,014)  * VEH"},"R","TP","TR","PER","VEH",{"$f":"E9&\" - \"&F9&\" - \"&G9&\" - \"&H9&\" - \"&I9","v":"R - TP - TR - PER - VEH"}]
["Régénération artificielle","Plantation uniforme et regarni en plein manuel sauf PEH","Taux ($/Mplants) = 106,7 - 64,61 * PR + 421746 / (DE * DS)  + GABARIT",{"$f":"\"Taux ($/Mplants) = \"&'Calculs grille'!I20&\" - \"&ABS('Calculs grille'!I21)&\" * PR + \"&('Calculs grille'!I22&\" / (DE * DS)  + GABARIT\")","v":"Taux ($/Mplants) = 106,7 - 64,61 * PR + 421746 / (DE * DS)  + GABARIT"},"PR","DE","DS","Gabarit",null,{"$f":"E10&\" - \"&F10&\" - \"&G10&\" - \"&H10","v":"PR - DE - DS - Gabarit"}]
["Régénération artificielle","Regarni de sentier et enrichissement manuel sauf PEH","Taux ($/Mplants) = 106,7 - 64,61 * PR + 421746 / (DE * DS)  + GABARIT",{"$f":"\"Taux ($/Mplants) = \"&'Calculs grille'!I20&\" - \"&ABS('Calculs grille'!I21)&\" * PR + \"&('Calculs grille'!I22&\" / (DE * DS)  + GABARIT\")","v":"Taux ($/Mplants) = 106,7 - 64,61 * PR + 421746 / (DE * DS)  + GABARIT"},"PR","DE","DS","Gabarit",null,{"$f":"E11&\" - \"&F11&\" - \"&G11&\" - \"&H11","v":"PR - DE - DS - Gabarit"}]
["Régénération artificielle","Plantation uniforme et regarni en plein manuel sentier préparé sauf PEH","Taux ($/Mplants) = 106,7 - 64,61 * PR + 421746 / (DE * DS)  + GABARIT",{"$f":"\"Taux ($/Mplants) = \"&'Calculs grille'!I20&\" - \"&ABS('Calculs grille'!I21)&\" * PR + \"&('Calculs grille'!I22&\" / (DE * DS)  + GABARIT\")","v":"Taux ($/Mplants) = 106,7 - 64,61 * PR + 421746 / (DE * DS)  + GABARIT"},"PR","DE","DSA","Gabarit",null,{"$f":"E12&\" - \"&F12&\" - \"&G12&\" - \"&H12","v":"PR - DE - DSA - Gabarit"}]
["Éclaircie commerciale EAF","Éclaircie commerciale EAF","Taux ($/m3) = (4,797 * VREC exp  -0,682) + 8,611",{"$f":"\"Taux ($/m3) = (\"&'Calculs grille'!I113&\" * VREC exp  \"&'Calculs grille'!I112&\") + \"&'Calculs grille'!I114","v":"Taux ($/m3) = (4,797 * VREC exp  -0,682) + 8,611"},"VREC",null,null,null,null,{"$f":"E13","v":"VREC"}]
["Martelage","Martelage","Taux ($/ha) = (143,01 - (35,38 * PF) + (4,06 * NbMSCROP)) * TC",{"$f":"\"Taux ($/ha) = (\"&'Calculs grille'!I117&\" - (\"&'Calculs grille'!I118&\" * PF) + (\"&'Calculs grille'!I119&\" * NbMSCROP)) * TC\"","v":"Taux ($/ha) = (143,01 - (35,38 * PF) + (4,06 * NbMSCROP)) * TC"},"NbMSCROP","TC",null,null,null,{"$f":"E14&\" - \"&F14","v":"NbMSCROP - TC"}]
["Travaux de planification","Inventaire avant traitement pour éducation de peuplement (dégagement, nettoiement et éclaircie précommerciale)","Taux ($/PE) = 93 + 0,64 * (NCT) + 3,19 * (NCP) + 6,39 * (TE)",{"$f":"\"Taux ($/PE) = \"&'Calculs grille'!I102&\" + \"&'Calculs grille'!I103&\" * (NCT) + \"&'Calculs grille'!I104&\" * (NCP) + \"&'Calculs grille'!I105&\" * (TE)\"","v":"Taux ($/PE) = 93 + 0,64 * (NCT) + 3,19 * (NCP) + 6,39 * (TE)"},"NCT","NCP","TE",null,null,{"$f":"E15&\" - \"&F15&\" - \"&G15","v":"NCT - NCP - TE"}]

{"sheet":"Majorations applicables","index":12,"n_rows":32,"n_cols":11,"rows_kept":32,"cut":false,"hidden":true,"merged":[]}
["Total_RechercheV","Onglet","Équipement ou modalité","M1","M2","M3","M4","M5","M6","M7","Total"]
[{"$f":"K2","v":"PE2 - DISP2 - H1 - CEAF1 - ISO1"},"Préparation de terrain","Abatteuse groupeuse après feux","PE2","DISP2","H1","CEAF1","ISO1",null,null,{"$f":"D2& \" - \"&E2&\" - \"&F2&\" - \"&G2&\" - \"&H2","v":"PE2 - DISP2 - H1 - CEAF1 - ISO1"}]
["PE4 - DISP2 - H1 - CEAF1 - ISO1","Préparation de terrain","Bouteur avec pelle râteau","PE4","DISP2","H1","CEAF1","ISO1",null,null,{"$f":"D3& \" - \"&E3&\" - \"&F3&\" - \"&G3&\" - \"&H3","v":"PE4 - DISP2 - H1 - CEAF1 - ISO1"}]
["PE1 - DISP1 - H1 - CEAF1 - ISO1","Préparation de terrain","Bracke M-36a avec débardeur","PE1","DISP1","H1","CEAF1","ISO1",null,null,{"$f":"D4& \" - \"&E4&\" - \"&F4&\" - \"&G4&\" - \"&H4","v":"PE1 - DISP1 - H1 - CEAF1 - ISO1"}]
["PE1 - DISP1 - H1 - CEAF1 - ISO1","Préparation de terrain","Bracke M-36a avec porteur","PE1","DISP1","H1","CEAF1","ISO1",null,null,{"$f":"D5& \" - \"&E5&\" - \"&F5&\" - \"&G5&\" - \"&H5","v":"PE1 - DISP1 - H1 - CEAF1 - ISO1"}]
["PA0 - PA1 - PE1 - DISP1 - H1 - CEAF1 - ISO1","Préparation de terrain","Bracke T-26 avec porteur","PA0","PA1","PE1","DISP1","H1","CEAF1","ISO1",{"$f":"D6& \" - \"&E6&\" - \"&F6&\" - \"&G6&\" - \"&H6&\" - \"&I6&\" - \"&J6","v":"PA0 - PA1 - PE1 - DISP1 - H1 - CEAF1 - ISO1"}]
["H1 - CEAF1 - ISO1","Préparation de terrain","Milieu boisé","H1","CEAF1","ISO1",null,null,null,null,{"$f":"D7& \" - \"&E7&\" - \"&F7","v":"H1 - CEAF1 - ISO1"}]
["H1 - CEAF1 - ISO1","Préparation de terrain","Milieu dénudé","H1","CEAF1","ISO1",null,null,null,null,{"$f":"D8& \" - \"&E8&\" - \"&F8","v":"H1 - CEAF1 - ISO1"}]
["PA2 - PE2 - DISP1 - H1 - CEAF1 - ISO1","Préparation de terrain","Herses forestières","PA2","PE2","DISP1","H1","CEAF1","ISO1",null,{"$f":"D9& \" - \"&E9&\" - \"&F9&\" - \"&G9&\" - \"&H9&\" - \"&I9","v":"PA2 - PE2 - DISP1 - H1 - CEAF1 - ISO1"}]
["PE2 - DISP2 - H1 - CEAF1 - ISO1","Préparation de terrain","Rouleau écraseur et scarificateur à disques passifs","PE2","DISP2","H1","CEAF1","ISO1",null,null,{"$f":"D10& \" - \"&E10&\" - \"&F10&\" - \"&G10&\" - \"&H10","v":"PE2 - DISP2 - H1 - CEAF1 - ISO1"}]
["H1 - D200 - CEAF1 - ISO1","Préparation de terrain","Taupe ou pioche forestière","H1","D200","CEAF1","ISO1",null,null,null,{"$f":"D11& \" - \"&E11&\" - \"&F11&\" - \"&G11","v":"H1 - D200 - CEAF1 - ISO1"}]
["PA0 - PA1 - PE1 - DISP1 - H1 - CEAF1 - ISO1","Préparation de terrain","Types TTS passifs","PA0","PA1","PE1","DISP1","H1","CEAF1","ISO1",{"$f":"D12& \" - \"&E12&\" - \"&F12&\" - \"&G12&\" - \"&H12&\" - \"&I12&\" - \"&J12","v":"PA0 - PA1 - PE1 - DISP1 - H1 - CEAF1 - ISO1"}]
["PA0 - PA1 - PE1 - DISP1 - H1 - CEAF1 - ISO1","Préparation de terrain","Bracke T-26 avec débardeur, Types TTS hydrauliques, Donaren, Equisyl ou Requin","PA0","PA1","PE1","DISP1","H1","CEAF1","ISO1",{"$f":"D13& \" - \"&E13&\" - \"&F13&\" - \"&G13&\" - \"&H13&\" - \"&I13&\" - \"&J13","v":"PA0 - PA1 - PE1 - DISP1 - H1 - CEAF1 - ISO1"}]
["PA0 - PA1 - PE1 - DISP1 - H1 - CEAF1 - ISO1","Préparation de terrain","Wadell","PA0","PA1","PE1","DISP1","H1","CEAF1","ISO1",{"$f":"D14& \" - \"&E14&\" - \"&F14&\" - \"&G14&\" - \"&H14&\" - \"&I14&\" - \"&J14","v":"PA0 - PA1 - PE1 - DISP1 - H1 - CEAF1 - ISO1"}]
[{"$f":"K15","v":"PE2 ou PE3 - DISP2 - H1 - CEAF1 - ISO1"},"Préparation de terrain","Excavatrice","PE2","PE3","DISP2","H1","CEAF1","ISO1",null,{"$f":"D15& \" ou \"&E15&\" - \"&F15&\" - \"&G15&\" - \"&H15&\" - \"&I15","v":"PE2 ou PE3 - DISP2 - H1 - CEAF1 - ISO1"}]
["PE2 ou PE3 - DISP2 - H1 - CEAF1 - ISO1","Préparation de terrain","Excavatrice ou débusqueuse ou abatteuse","PE2","PE3","DISP2","H1","CEAF1","ISO1",null,{"$f":"D16& \" ou \"&E16&\" - \"&F16&\" - \"&G16&\" - \"&H16&\" - \"&I16","v":"PE2 ou PE3 - DISP2 - H1 - CEAF1 - ISO1"}]
[{"$f":"K17","v":"PE2 - H2 - TC - D200 - CEAF3 - ISO3"},"Éducation de peuplement","Dégagement mécanique","PE2","H2","TC","D200","CEAF3","ISO3",null,{"$f":"D17& \" - \"&E17&\" - \"&F17&\" - \"&G17&\" - \"&H17&\" - \"&I17","v":"PE2 - H2 - TC - D200 - CEAF3 - ISO3"}]
["PE2 - H2 - TC - D200 - CEAF3 - ISO3","Éducation de peuplement","Élagage pour fins de qualité","PE2","H2","TC","D200","CEAF3","ISO3",null,{"$f":"D18& \" - \"&E18&\" - \"&F18&\" - \"&G18&\" - \"&H18&\" - \"&I18","v":"PE2 - H2 - TC - D200 - CEAF3 - ISO3"}]
["PE2 - H2 - TC - D200 - CEAF3 - ISO3","Éducation de peuplement","EPC par puit de lumière ET Taille de formation avec martelage","PE2","H2","TC","D200","CEAF3","ISO3",null,"PE2 - H2 - TC - D200 - CEAF3 - ISO3"]
["PE2 - H2 - TC - D200 - CEAF3 - ISO3","Éducation de peuplement","Gaulis I (interspécifique et sans espacement)","PE2","H2","TC","D200","CEAF3","ISO3",null,"PE2 - H2 - TC - D200 - CEAF3 - ISO3"]
["PE2 - H2 - TC - D200 - CEAF3 - ISO3","Éducation de peuplement","Gaulis II (intraspécifique avec espacement OU résineux sans espacement)","PE2","H2","TC","D200","CEAF3","ISO3",null,"PE2 - H2 - TC - D200 - CEAF3 - ISO3"]
["PE2 - H2 - TC - D200 - CEAF3 - ISO3","Éducation de peuplement","Taille phytosanitaire","PE2","H2","TC","D200","CEAF3","ISO3",null,"PE2 - H2 - TC - D200 - CEAF3 - ISO3"]
["H2 - TC - D200 - CEAF2 - ISO2 - TRA","Régénération artificielle","Plantation uniforme et regarni en plein manuel sauf PEH","H2","TC","D200","CEAF2","ISO2","TRA",null,"H2 - TC - D200 - CEAF2 - ISO2 - TRA"]
["H2 - TC - D200 - CEAF2 - ISO2 - TRA","Régénération artificielle","Regarni de sentier et enrichissement manuel sauf PEH","H2","TC","D200","CEAF2","ISO2","TRA",null,"H2 - TC - D200 - CEAF2 - ISO2 - TRA"]
["H2 - TC - D200 - CEAF2 - ISO2 - TRA","Régénération artificielle","Plantation uniforme et regarni en plein manuel sentier préparé sauf PEH","H2","TC","D200","CEAF2","ISO2","TRA",null,"H2 - TC - D200 - CEAF2 - ISO2 - TRA"]
["H2 - TC - D200 - CEAF2 - ISO2 - TRA","Régénération artificielle","Plantation uniforme PEH","H2","TC","D200","CEAF2","ISO2","TRA",null,"H2 - TC - D200 - CEAF2 - ISO2 - TRA"]
["H2 - CEAF2 - ISO2 - TRA","Régénération artificielle","Plantation uniforme et regarni mécanique (Scarificateur-planteur Bracke P-11a)","H2","CEAF2","ISO2","TRA",null,null,null,{"$f":"D27& \" - \"&E27&\" - \"&F27&\" - \"&G27","v":"H2 - CEAF2 - ISO2 - TRA"}]
["PE2 - H2 - TC - D200 - CEAF2 - ISO2","Régénération artificielle","Ensemencement terrestre manuel","PE2","H2","TC","D200","CEAF2","ISO2",null,"PE2 - H2 - TC - D200 - CEAF2 - ISO2"]
["PE2 - RUB1 - MAN - H5","Éclaircie commerciale EAF","Éclaircie commerciale EAF","PE2","RUB1","MAN","H5",null,null,null,{"$f":"D29&\" - \"&E29&\" - \"&F29&\" - \"&G29","v":"PE2 - RUB1 - MAN - H5"}]
["H3 - D200","Martelage","Martelage","H3","D200",null,null,null,null,null,{"$f":"D30&\" - \"&E30","v":"H3 - D200"}]
["H3 - D200","Martelage","Martelage positif - EC (résineux ou mixte résineux)","H3","D200",null,null,null,null,null,{"$f":"D31&\" - \"&E31","v":"H3 - D200"}]
["H3 - D200","Martelage","Martelage négatif - EC (résineux ou mixte résineux)","H3","D200",null,null,null,null,null,{"$f":"D32&\" - \"&E32","v":"H3 - D200"}]